'DEPARTMENT_FAMILY,ENTITY,PAYMENT_DATE,EXPENSE_TYPE,EXPENSE_AREA,SUPPLIER,TRANSACTION_NUMBER,AMOUNT,DESCRIPTION
Ministry of Justice,MoJ HQ,19/11/2015,710600-Creditor < 1 year - Payable to Consolidated Fund,WW000-Balance Sheet,HM TREASURY - CFER PAYOVER,10589,"53,713.80 ",CFERS Paid to the Consolidated Fund
Ministry of Justice,MoJ HQ,19/11/2015,710600-Creditor < 1 year - Payable to Consolidated Fund,WW000-Balance Sheet,HM TREASURY - CFER PAYOVER,10589,933.33 ,CFERS Paid to the Consolidated Fund
Ministry of Justice,MoJ HQ,12/11/2015,223000-Other Expenditure,NZ401-Finance Group Feeder,ALLEN LANE CONSULTANCY LTD,2013312,"337,590.00 ",Fees for October 2015 Managed Accounting Service core contract and call off charges utilised across MoJ
Ministry of Justice,MoJ HQ,12/11/2015,223000-Other Expenditure,NZ401-Finance Group Feeder,ALLEN LANE CONSULTANCY LTD,2013312,"310,090.00 ",Fees for October 2015 Managed Accounting Service core contract and call off charges utilised across MoJ
Ministry of Justice,MoJ HQ,12/11/2015,223000-Other Expenditure,NZ401-Finance Group Feeder,ALLEN LANE CONSULTANCY LTD,2013312,"67,518.00 ",Fees for October 2015 Managed Accounting Service core contract and call off charges utilised across MoJ
Ministry of Justice,MoJ HQ,12/11/2015,223000-Other Expenditure,NZ401-Finance Group Feeder,ALLEN LANE CONSULTANCY LTD,2013312,"62,018.00 ",Fees for October 2015 Managed Accounting Service core contract and call off charges utilised across MoJ
Ministry of Justice,MoJ HQ,16/11/2015,223000-Other Expenditure,NZ401-Finance Group Feeder,ALLEN LANE CONSULTANCY LTD,2013482,"791,320.00 ",Fees for October 2015 Managed Accounting Service core contract and call off charges utilised across MoJ
Ministry of Justice,MoJ HQ,16/11/2015,223000-Other Expenditure,NZ401-Finance Group Feeder,ALLEN LANE CONSULTANCY LTD,2013482,"158,264.00 ",Fees for October 2015 Managed Accounting Service core contract and call off charges utilised across MoJ
Ministry of Justice,MoJ HQ,02/11/2015,265000-IT & Telecommunications,NZ900-Finance & Corporate Services,ATOS IT SERVICES UK LTD,2012759,258.33 ,Provision of IT Peripherals and individually ordered software and equipment
Ministry of Justice,MoJ HQ,02/11/2015,265000-IT & Telecommunications,NQ901-MOJ Procurement Feeder,ATOS IT SERVICES UK LTD,2012759,206.24 ,Provision of IT Peripherals and individually ordered software and equipment
Ministry of Justice,MoJ HQ,02/11/2015,265000-IT & Telecommunications,QZ500-Arms Length Bodies (CPG),ATOS IT SERVICES UK LTD,2012759,164.00 ,Provision of IT Peripherals and individually ordered software and equipment
Ministry of Justice,MoJ HQ,02/11/2015,265000-IT & Telecommunications,NZ900-Finance & Corporate Services,ATOS IT SERVICES UK LTD,2012759,154.68 ,Provision of IT Peripherals and individually ordered software and equipment
Ministry of Justice,MoJ HQ,02/11/2015,265000-IT & Telecommunications,NQ901-MOJ Procurement Feeder,ATOS IT SERVICES UK LTD,2012759,154.68 ,Provision of IT Peripherals and individually ordered software and equipment
Ministry of Justice,MoJ HQ,02/11/2015,265000-IT & Telecommunications,NZ900-Finance & Corporate Services,ATOS IT SERVICES UK LTD,2012759,128.90 ,Provision of IT Peripherals and individually ordered software and equipment
Ministry of Justice,MoJ HQ,02/11/2015,265000-IT & Telecommunications,NQ901-MOJ Procurement Feeder,ATOS IT SERVICES UK LTD,2012759,128.90 ,Provision of IT Peripherals and individually ordered software and equipment
Ministry of Justice,MoJ HQ,02/11/2015,265000-IT & Telecommunications,NZ900-Finance & Corporate Services,ATOS IT SERVICES UK LTD,2012759,82.78 ,Provision of IT Peripherals and individually ordered software and equipment
Ministry of Justice,MoJ HQ,02/11/2015,265000-IT & Telecommunications,NQ901-MOJ Procurement Feeder,ATOS IT SERVICES UK LTD,2012759,82.78 ,Provision of IT Peripherals and individually ordered software and equipment
Ministry of Justice,MoJ HQ,02/11/2015,265000-IT & Telecommunications,QZ500-Arms Length Bodies (CPG),ATOS IT SERVICES UK LTD,2012759,51.56 ,Provision of IT Peripherals and individually ordered software and equipment
Ministry of Justice,MoJ HQ,02/11/2015,265000-IT & Telecommunications,NZ900-Finance & Corporate Services,ATOS IT SERVICES UK LTD,2012759,51.56 ,Provision of IT Peripherals and individually ordered software and equipment
Ministry of Justice,MoJ HQ,02/11/2015,265000-IT & Telecommunications,QZ500-Arms Length Bodies (CPG),ATOS IT SERVICES UK LTD,2012759,51.56 ,Provision of IT Peripherals and individually ordered software and equipment
Ministry of Justice,MoJ HQ,02/11/2015,265000-IT & Telecommunications,NQ901-MOJ Procurement Feeder,ATOS IT SERVICES UK LTD,2012759,30.30 ,Provision of IT Peripherals and individually ordered software and equipment
Ministry of Justice,MoJ HQ,02/11/2015,265000-IT & Telecommunications,NZ401-Finance Group Feeder,ATOS IT SERVICES UK LTD,2012759,28.84 ,Provision of IT Peripherals and individually ordered software and equipment
Ministry of Justice,MoJ HQ,02/11/2015,265000-IT & Telecommunications,NQ901-MOJ Procurement Feeder,ATOS IT SERVICES UK LTD,2012759,28.84 ,Provision of IT Peripherals and individually ordered software and equipment
Ministry of Justice,MoJ HQ,02/11/2015,265000-IT & Telecommunications,NZ401-Finance Group Feeder,ATOS IT SERVICES UK LTD,2012759,25.78 ,Provision of IT Peripherals and individually ordered software and equipment
Ministry of Justice,MoJ HQ,02/11/2015,265000-IT & Telecommunications,NQ901-MOJ Procurement Feeder,ATOS IT SERVICES UK LTD,2012759,25.78 ,Provision of IT Peripherals and individually ordered software and equipment
Ministry of Justice,MoJ HQ,02/11/2015,265000-IT & Telecommunications,NQ901-MOJ Procurement Feeder,ATOS IT SERVICES UK LTD,2012759,25.78 ,Provision of IT Peripherals and individually ordered software and equipment
Ministry of Justice,MoJ HQ,02/11/2015,265000-IT & Telecommunications,NZ900-Finance & Corporate Services,ATOS IT SERVICES UK LTD,2012759,25.78 ,Provision of IT Peripherals and individually ordered software and equipment
Ministry of Justice,MoJ HQ,02/11/2015,265000-IT & Telecommunications,QZ500-Arms Length Bodies (CPG),ATOS IT SERVICES UK LTD,2012759,25.78 ,Provision of IT Peripherals and individually ordered software and equipment
Ministry of Justice,MoJ HQ,02/11/2015,265000-IT & Telecommunications,NZ401-Finance Group Feeder,ATOS IT SERVICES UK LTD,2012759,25.78 ,Provision of IT Peripherals and individually ordered software and equipment
Ministry of Justice,MoJ HQ,02/11/2015,265000-IT & Telecommunications,NQ901-MOJ Procurement Feeder,ATOS IT SERVICES UK LTD,2012759,25.78 ,Provision of IT Peripherals and individually ordered software and equipment
Ministry of Justice,MoJ HQ,02/11/2015,265000-IT & Telecommunications,NZ401-Finance Group Feeder,ATOS IT SERVICES UK LTD,2012759,25.78 ,Provision of IT Peripherals and individually ordered software and equipment
Ministry of Justice,MoJ HQ,02/11/2015,265000-IT & Telecommunications,NZ900-Finance & Corporate Services,ATOS IT SERVICES UK LTD,2012759,25.78 ,Provision of IT Peripherals and individually ordered software and equipment
Ministry of Justice,MoJ HQ,02/11/2015,265000-IT & Telecommunications,NQ901-MOJ Procurement Feeder,ATOS IT SERVICES UK LTD,2012759,25.78 ,Provision of IT Peripherals and individually ordered software and equipment
Ministry of Justice,MoJ HQ,02/11/2015,265000-IT & Telecommunications,QZ500-Arms Length Bodies (CPG),ATOS IT SERVICES UK LTD,2012759,25.78 ,Provision of IT Peripherals and individually ordered software and equipment
Ministry of Justice,MoJ HQ,02/11/2015,265000-IT & Telecommunications,NQ901-MOJ Procurement Feeder,ATOS IT SERVICES UK LTD,2012759,25.78 ,Provision of IT Peripherals and individually ordered software and equipment
Ministry of Justice,MoJ HQ,02/11/2015,265000-IT & Telecommunications,QZ500-Arms Length Bodies (CPG),ATOS IT SERVICES UK LTD,2012759,25.78 ,Provision of IT Peripherals and individually ordered software and equipment
Ministry of Justice,MoJ HQ,02/11/2015,265000-IT & Telecommunications,NZ900-Finance & Corporate Services,ATOS IT SERVICES UK LTD,2012759,25.78 ,Provision of IT Peripherals and individually ordered software and equipment
Ministry of Justice,MoJ HQ,02/11/2015,265000-IT & Telecommunications,NQ901-MOJ Procurement Feeder,ATOS IT SERVICES UK LTD,2012759,25.78 ,Provision of IT Peripherals and individually ordered software and equipment
Ministry of Justice,MoJ HQ,02/11/2015,265000-IT & Telecommunications,NQ901-MOJ Procurement Feeder,ATOS IT SERVICES UK LTD,2012759,25.78 ,Provision of IT Peripherals and individually ordered software and equipment
Ministry of Justice,MoJ HQ,02/11/2015,265000-IT & Telecommunications,NQ901-MOJ Procurement Feeder,ATOS IT SERVICES UK LTD,2012759,25.78 ,Provision of IT Peripherals and individually ordered software and equipment
Ministry of Justice,MoJ HQ,02/11/2015,265000-IT & Telecommunications,NZ900-Finance & Corporate Services,ATOS IT SERVICES UK LTD,2012759,25.78 ,Provision of IT Peripherals and individually ordered software and equipment
Ministry of Justice,MoJ HQ,02/11/2015,265000-IT & Telecommunications,NZ401-Finance Group Feeder,ATOS IT SERVICES UK LTD,2012759,25.78 ,Provision of IT Peripherals and individually ordered software and equipment
Ministry of Justice,MoJ HQ,02/11/2015,265000-IT & Telecommunications,NZ900-Finance & Corporate Services,ATOS IT SERVICES UK LTD,2012759,25.78 ,Provision of IT Peripherals and individually ordered software and equipment
Ministry of Justice,MoJ HQ,02/11/2015,265000-IT & Telecommunications,NZ900-Finance & Corporate Services,ATOS IT SERVICES UK LTD,2012759,25.78 ,Provision of IT Peripherals and individually ordered software and equipment
Ministry of Justice,MoJ HQ,02/11/2015,265000-IT & Telecommunications,QZ500-Arms Length Bodies (CPG),ATOS IT SERVICES UK LTD,2012759,25.78 ,Provision of IT Peripherals and individually ordered software and equipment
Ministry of Justice,MoJ HQ,02/11/2015,265000-IT & Telecommunications,LZ600-Transforming Justice,ATOS IT SERVICES UK LTD,2012759,25.78 ,Provision of IT Peripherals and individually ordered software and equipment
Ministry of Justice,MoJ HQ,02/11/2015,265000-IT & Telecommunications,QZ500-Arms Length Bodies (CPG),ATOS IT SERVICES UK LTD,2012759,25.78 ,Provision of IT Peripherals and individually ordered software and equipment
Ministry of Justice,MoJ HQ,02/11/2015,265000-IT & Telecommunications,NQ901-MOJ Procurement Feeder,ATOS IT SERVICES UK LTD,2012759,25.78 ,Provision of IT Peripherals and individually ordered software and equipment
Ministry of Justice,MoJ HQ,02/11/2015,265000-IT & Telecommunications,QZ500-Arms Length Bodies (CPG),ATOS IT SERVICES UK LTD,2012759,25.78 ,Provision of IT Peripherals and individually ordered software and equipment
Ministry of Justice,MoJ HQ,02/11/2015,265000-IT & Telecommunications,NQ901-MOJ Procurement Feeder,ATOS IT SERVICES UK LTD,2012759,25.78 ,Provision of IT Peripherals and individually ordered software and equipment
Ministry of Justice,MoJ HQ,02/11/2015,265000-IT & Telecommunications,NZ900-Finance & Corporate Services,ATOS IT SERVICES UK LTD,2012759,25.78 ,Provision of IT Peripherals and individually ordered software and equipment
Ministry of Justice,MoJ HQ,02/11/2015,265000-IT & Telecommunications,NZ900-Finance & Corporate Services,ATOS IT SERVICES UK LTD,2012759,25.78 ,Provision of IT Peripherals and individually ordered software and equipment
Ministry of Justice,MoJ HQ,02/11/2015,265000-IT & Telecommunications,NZ900-Finance & Corporate Services,ATOS IT SERVICES UK LTD,2012759,25.78 ,Provision of IT Peripherals and individually ordered software and equipment
Ministry of Justice,MoJ HQ,02/11/2015,265000-IT & Telecommunications,NQ901-MOJ Procurement Feeder,ATOS IT SERVICES UK LTD,2012759,25.78 ,Provision of IT Peripherals and individually ordered software and equipment
Ministry of Justice,MoJ HQ,02/11/2015,265000-IT & Telecommunications,NZ900-Finance & Corporate Services,ATOS IT SERVICES UK LTD,2012759,25.78 ,Provision of IT Peripherals and individually ordered software and equipment
Ministry of Justice,MoJ HQ,02/11/2015,265000-IT & Telecommunications,NQ901-MOJ Procurement Feeder,ATOS IT SERVICES UK LTD,2012759,25.78 ,Provision of IT Peripherals and individually ordered software and equipment
Ministry of Justice,MoJ HQ,02/11/2015,265000-IT & Telecommunications,NQ901-MOJ Procurement Feeder,ATOS IT SERVICES UK LTD,2012759,25.78 ,Provision of IT Peripherals and individually ordered software and equipment
Ministry of Justice,MoJ HQ,02/11/2015,265000-IT & Telecommunications,QZ500-Arms Length Bodies (CPG),ATOS IT SERVICES UK LTD,2012759,25.78 ,Provision of IT Peripherals and individually ordered software and equipment
Ministry of Justice,MoJ HQ,02/11/2015,265000-IT & Telecommunications,NZ900-Finance & Corporate Services,ATOS IT SERVICES UK LTD,2012759,25.78 ,Provision of IT Peripherals and individually ordered software and equipment
Ministry of Justice,MoJ HQ,02/11/2015,265000-IT & Telecommunications,NZ900-Finance & Corporate Services,ATOS IT SERVICES UK LTD,2012759,11.17 ,Provision of IT Peripherals and individually ordered software and equipment
Ministry of Justice,MoJ HQ,02/11/2015,265000-IT & Telecommunications,NZ401-Finance Group Feeder,ATOS IT SERVICES UK LTD,2012759,9.09 ,Provision of IT Peripherals and individually ordered software and equipment
Ministry of Justice,MoJ HQ,05/11/2015,265000-IT & Telecommunications,QY200-OU10 Billback,ATOS IT SERVICES UK LTD,2012932,"536,277.99 ",Provision of Telephony Services utilised across MoJ
Ministry of Justice,MoJ HQ,05/11/2015,265000-IT & Telecommunications,QY200-OU10 Billback,ATOS IT SERVICES UK LTD,2012932,"190,886.50 ",Provision of Sustainable Print Service utilised across MoJ
Ministry of Justice,MoJ HQ,05/11/2015,265000-IT & Telecommunications,QY200-OU10 Billback,ATOS IT SERVICES UK LTD,2012932,"107,255.60 ",Provision of Telephony Services utilised across MoJ
Ministry of Justice,MoJ HQ,05/11/2015,265000-IT & Telecommunications,QY200-OU10 Billback,ATOS IT SERVICES UK LTD,2012932,"61,242.10 ",Provision of Telephony Services utilised across MoJ
Ministry of Justice,MoJ HQ,05/11/2015,265000-IT & Telecommunications,QY200-OU10 Billback,ATOS IT SERVICES UK LTD,2012932,"12,248.42 ",Provision of Telephony Services utilised across MoJ
Ministry of Justice,MoJ HQ,30/11/2015,265000-IT & Telecommunications,NQ901-MOJ Procurement Feeder,ATOS IT SERVICES UK LTD,2014556,219.64 ,Provision of IT Peripherals and individually ordered software and equipment
Ministry of Justice,MoJ HQ,30/11/2015,265000-IT & Telecommunications,QZ500-Arms Length Bodies (CPG),ATOS IT SERVICES UK LTD,2014556,164.00 ,Provision of IT Peripherals and individually ordered software and equipment
Ministry of Justice,MoJ HQ,30/11/2015,265000-IT & Telecommunications,QZ500-Arms Length Bodies (CPG),ATOS IT SERVICES UK LTD,2014556,164.00 ,Provision of IT Peripherals and individually ordered software and equipment
Ministry of Justice,MoJ HQ,30/11/2015,265000-IT & Telecommunications,QZ500-Arms Length Bodies (CPG),ATOS IT SERVICES UK LTD,2014556,111.45 ,Provision of IT Peripherals and individually ordered software and equipment
Ministry of Justice,MoJ HQ,30/11/2015,265000-IT & Telecommunications,NZ900-Finance & Corporate Services,ATOS IT SERVICES UK LTD,2014556,86.52 ,Provision of IT Peripherals and individually ordered software and equipment
Ministry of Justice,MoJ HQ,30/11/2015,265000-IT & Telecommunications,NQ901-MOJ Procurement Feeder,ATOS IT SERVICES UK LTD,2014556,82.78 ,Provision of IT Peripherals and individually ordered software and equipment
Ministry of Justice,MoJ HQ,30/11/2015,265000-IT & Telecommunications,NQ901-MOJ Procurement Feeder,ATOS IT SERVICES UK LTD,2014556,82.78 ,Provision of IT Peripherals and individually ordered software and equipment
Ministry of Justice,MoJ HQ,30/11/2015,265000-IT & Telecommunications,NZ401-Finance Group Feeder,ATOS IT SERVICES UK LTD,2014556,78.26 ,Provision of IT Peripherals and individually ordered software and equipment
Ministry of Justice,MoJ HQ,30/11/2015,265000-IT & Telecommunications,NZ401-Finance Group Feeder,ATOS IT SERVICES UK LTD,2014556,78.26 ,Provision of IT Peripherals and individually ordered software and equipment
Ministry of Justice,MoJ HQ,30/11/2015,265000-IT & Telecommunications,QZ500-Arms Length Bodies (CPG),ATOS IT SERVICES UK LTD,2014556,77.34 ,Provision of IT Peripherals and individually ordered software and equipment
Ministry of Justice,MoJ HQ,30/11/2015,265000-IT & Telecommunications,NZ900-Finance & Corporate Services,ATOS IT SERVICES UK LTD,2014556,51.56 ,Provision of IT Peripherals and individually ordered software and equipment
Ministry of Justice,MoJ HQ,30/11/2015,265000-IT & Telecommunications,NZ900-Finance & Corporate Services,ATOS IT SERVICES UK LTD,2014556,51.56 ,Provision of IT Peripherals and individually ordered software and equipment
Ministry of Justice,MoJ HQ,30/11/2015,265000-IT & Telecommunications,QZ500-Arms Length Bodies (CPG),ATOS IT SERVICES UK LTD,2014556,46.00 ,Provision of IT Peripherals and individually ordered software and equipment
Ministry of Justice,MoJ HQ,30/11/2015,265000-IT & Telecommunications,QZ500-Arms Length Bodies (CPG),ATOS IT SERVICES UK LTD,2014556,46.00 ,Provision of IT Peripherals and individually ordered software and equipment
Ministry of Justice,MoJ HQ,30/11/2015,265000-IT & Telecommunications,NZ401-Finance Group Feeder,ATOS IT SERVICES UK LTD,2014556,28.84 ,Provision of IT Peripherals and individually ordered software and equipment
Ministry of Justice,MoJ HQ,30/11/2015,265000-IT & Telecommunications,NZ900-Finance & Corporate Services,ATOS IT SERVICES UK LTD,2014556,25.78 ,Provision of IT Peripherals and individually ordered software and equipment
Ministry of Justice,MoJ HQ,30/11/2015,265000-IT & Telecommunications,QZ500-Arms Length Bodies (CPG),ATOS IT SERVICES UK LTD,2014556,25.78 ,Provision of IT Peripherals and individually ordered software and equipment
Ministry of Justice,MoJ HQ,30/11/2015,265000-IT & Telecommunications,NQ901-MOJ Procurement Feeder,ATOS IT SERVICES UK LTD,2014556,25.78 ,Provision of IT Peripherals and individually ordered software and equipment
Ministry of Justice,MoJ HQ,30/11/2015,265000-IT & Telecommunications,NQ901-MOJ Procurement Feeder,ATOS IT SERVICES UK LTD,2014556,25.78 ,Provision of IT Peripherals and individually ordered software and equipment
Ministry of Justice,MoJ HQ,30/11/2015,265000-IT & Telecommunications,QZ500-Arms Length Bodies (CPG),ATOS IT SERVICES UK LTD,2014556,25.78 ,Provision of IT Peripherals and individually ordered software and equipment
Ministry of Justice,MoJ HQ,30/11/2015,265000-IT & Telecommunications,NZ900-Finance & Corporate Services,ATOS IT SERVICES UK LTD,2014556,25.78 ,Provision of IT Peripherals and individually ordered software and equipment
Ministry of Justice,MoJ HQ,30/11/2015,265000-IT & Telecommunications,NZ401-Finance Group Feeder,ATOS IT SERVICES UK LTD,2014556,25.78 ,Provision of IT Peripherals and individually ordered software and equipment
Ministry of Justice,MoJ HQ,30/11/2015,265000-IT & Telecommunications,NZ900-Finance & Corporate Services,ATOS IT SERVICES UK LTD,2014556,25.78 ,Provision of IT Peripherals and individually ordered software and equipment
Ministry of Justice,MoJ HQ,30/11/2015,265000-IT & Telecommunications,NZ900-Finance & Corporate Services,ATOS IT SERVICES UK LTD,2014556,25.78 ,Provision of IT Peripherals and individually ordered software and equipment
Ministry of Justice,MoJ HQ,30/11/2015,265000-IT & Telecommunications,NQ901-MOJ Procurement Feeder,ATOS IT SERVICES UK LTD,2014556,25.78 ,Provision of IT Peripherals and individually ordered software and equipment
Ministry of Justice,MoJ HQ,30/11/2015,265000-IT & Telecommunications,QZ500-Arms Length Bodies (CPG),ATOS IT SERVICES UK LTD,2014556,25.78 ,Provision of IT Peripherals and individually ordered software and equipment
Ministry of Justice,MoJ HQ,30/11/2015,265000-IT & Telecommunications,NQ901-MOJ Procurement Feeder,ATOS IT SERVICES UK LTD,2014556,25.78 ,Provision of IT Peripherals and individually ordered software and equipment
Ministry of Justice,MoJ HQ,30/11/2015,265000-IT & Telecommunications,QZ500-Arms Length Bodies (CPG),ATOS IT SERVICES UK LTD,2014556,21.38 ,Provision of IT Peripherals and individually ordered software and equipment
Ministry of Justice,MoJ HQ,30/11/2015,265000-IT & Telecommunications,LZ600-Transforming Justice,ATOS IT SERVICES UK LTD,2014556,17.16 ,Provision of IT Peripherals and individually ordered software and equipment
Ministry of Justice,MoJ HQ,30/11/2015,265000-IT & Telecommunications,QZ500-Arms Length Bodies (CPG),ATOS IT SERVICES UK LTD,2014556,12.11 ,Provision of IT Peripherals and individually ordered software and equipment
Ministry of Justice,MoJ HQ,30/11/2015,265000-IT & Telecommunications,NQ901-MOJ Procurement Feeder,ATOS IT SERVICES UK LTD,2014556,11.62 ,Provision of IT Peripherals and individually ordered software and equipment
Ministry of Justice,MoJ HQ,30/11/2015,265000-IT & Telecommunications,NZ900-Finance & Corporate Services,ATOS IT SERVICES UK LTD,2014556,11.62 ,Provision of IT Peripherals and individually ordered software and equipment
Ministry of Justice,MoJ HQ,30/11/2015,265000-IT & Telecommunications,NZ900-Finance & Corporate Services,ATOS IT SERVICES UK LTD,2014556,11.62 ,Provision of IT Peripherals and individually ordered software and equipment
Ministry of Justice,MoJ HQ,30/11/2015,265000-IT & Telecommunications,NZ900-Finance & Corporate Services,ATOS IT SERVICES UK LTD,2014556,11.17 ,Provision of IT Peripherals and individually ordered software and equipment
Ministry of Justice,MoJ HQ,30/11/2015,265000-IT & Telecommunications,NZ900-Finance & Corporate Services,ATOS IT SERVICES UK LTD,2014556,10.92 ,Provision of IT Peripherals and individually ordered software and equipment
Ministry of Justice,MoJ HQ,30/11/2015,265000-IT & Telecommunications,QZ500-Arms Length Bodies (CPG),ATOS IT SERVICES UK LTD,2014556,9.09 ,Provision of IT Peripherals and individually ordered software and equipment
Ministry of Justice,MoJ HQ,30/11/2015,265000-IT & Telecommunications,NQ901-MOJ Procurement Feeder,ATOS IT SERVICES UK LTD,2014556,9.09 ,Provision of IT Peripherals and individually ordered software and equipment
Ministry of Justice,MoJ HQ,30/11/2015,265000-IT & Telecommunications,NZ900-Finance & Corporate Services,ATOS IT SERVICES UK LTD,2014556,5.25 ,Provision of IT Peripherals and individually ordered software and equipment
Ministry of Justice,MoJ HQ,12/11/2015,265000-IT & Telecommunications,QY200-OU10 Billback,BT PLC,2013337,"23,243.03 ",Provision of telephony service utilised across MoJ related to October 2015
Ministry of Justice,MoJ HQ,12/11/2015,265000-IT & Telecommunications,QY200-OU10 Billback,BT PLC,2013337,"4,648.61 ",Provision of telephony service utilised across MoJ related to October 2015
Ministry of Justice,MoJ HQ,12/11/2015,265000-IT & Telecommunications,QY200-OU10 Billback,BT PLC,2013337,-0.01 ,Provision of telephony service utilised across MoJ related to October 2015
Ministry of Justice,MoJ HQ,16/11/2015,212001-Agency staff,QY200-OU10 Billback,CAPITA BUSINESS SERVICES LTD,2013524,"804,992.58 ",Fees and expenses for temporary contract staff utilised across MoJ
Ministry of Justice,MoJ HQ,16/11/2015,212001-Agency staff,QY200-OU10 Billback,CAPITA BUSINESS SERVICES LTD,2013524,"160,998.52 ",Fees and expenses for temporary contract staff utilised across MoJ
Ministry of Justice,MoJ HQ,19/11/2015,212001-Agency staff,QY200-OU10 Billback,CAPITA BUSINESS SERVICES LTD,2013780,"701,177.75 ",Fees and expenses for temporary contract staff utilised across MoJ
Ministry of Justice,MoJ HQ,19/11/2015,212001-Agency staff,QY200-OU10 Billback,CAPITA BUSINESS SERVICES LTD,2013780,"140,235.55 ",Fees and expenses for temporary contract staff utilised across MoJ
Ministry of Justice,MoJ HQ,26/11/2015,212001-Agency staff,QY200-OU10 Billback,CAPITA BUSINESS SERVICES LTD,2014311,"761,348.54 ",Fees and expenses for temporary contract staff utilised across MoJ
Ministry of Justice,MoJ HQ,26/11/2015,212001-Agency staff,QY200-OU10 Billback,CAPITA BUSINESS SERVICES LTD,2014311,"152,269.71 ",Fees and expenses for temporary contract staff utilised across MoJ
Ministry of Justice,MoJ HQ,09/11/2015,264000-Consultancy,NZ401-Finance Group Feeder,CHARTERED INSTITUTE OF PUBLIC FINANCE & ACCOUNTANCY (THE),2013159,"154,120.41 ",Fees to undertake a financial management assessment against the CIPFA Model for MoJ HQ and its largest agencies
Ministry of Justice,MoJ HQ,16/11/2015,223000-Other Expenditure,QY200-OU10 Billback,ENTERPRISE RENT-A-CAR UK LTD,2013553,"22,291.99 ",Provision of car hire utilised across MoJ
Ministry of Justice,MoJ HQ,16/11/2015,223000-Other Expenditure,QY200-OU10 Billback,ENTERPRISE RENT-A-CAR UK LTD,2013553,8.00 ,Provision of car hire utilised across MoJ
Ministry of Justice,MoJ HQ,16/11/2015,223000-Other Expenditure,NZ900-Finance & Corporate Services,GOVERNMENT LEGAL DEPARTMENT,10568,"1,428,582.00 ",Quarter 3 Fixed Fee Arrangement for providing legal advisory services to MoJ
Ministry of Justice,MoJ HQ,16/11/2015,223000-Other Expenditure,NZ900-Finance & Corporate Services,GOVERNMENT LEGAL DEPARTMENT,10569,"228,750.00 ","Quarters 1, 2 and 3 Fixed Fee Arrangement for providing employment lawyer advisory services to MoJ"
Ministry of Justice,MoJ HQ,06/11/2015,263000-Other Contracted Out Services,QZ500-Arms Length Bodies (CPG),NATIONAL SAVINGS & INVESTMENTS,10538,"454,085.40 ",Provision of Court Funds Office operational service for Financial Year 2015/16
Ministry of Justice,MoJ HQ,12/11/2015,224000-Staff travel and other,QY200-OU10 Billback,REDFERN TRAVEL LTD,2013424,"172,684.15 ",Provision of hotel & travel bookings utilised across MoJ
Ministry of Justice,MoJ HQ,12/11/2015,224000-Staff travel and other,QY200-OU10 Billback,REDFERN TRAVEL LTD,2013424,"157,040.84 ",Provision of hotel & travel bookings utilised across MoJ
Ministry of Justice,MoJ HQ,12/11/2015,224000-Staff travel and other,QY200-OU10 Billback,REDFERN TRAVEL LTD,2013424,"1,436.26 ",Provision of hotel & travel bookings utilised across MoJ
Ministry of Justice,MoJ HQ,12/11/2015,224000-Staff travel and other,QY200-OU10 Billback,REDFERN TRAVEL LTD,2013424,"1,201.98 ",Provision of hotel & travel bookings utilised across MoJ
Ministry of Justice,MoJ HQ,12/11/2015,224000-Staff travel and other,QY200-OU10 Billback,REDFERN TRAVEL LTD,2013424,287.25 ,Provision of hotel & travel bookings utilised across MoJ
Ministry of Justice,MoJ HQ,12/11/2015,224000-Staff travel and other,QY200-OU10 Billback,REDFERN TRAVEL LTD,2013424,240.40 ,Provision of hotel & travel bookings utilised across MoJ
Ministry of Justice,MoJ HQ,12/11/2015,224000-Staff travel and other,QY200-OU10 Billback,REDFERN TRAVEL LTD,2013424,-1.86 ,Provision of hotel & travel bookings utilised across MoJ
Ministry of Justice,MoJ HQ,12/11/2015,224000-Staff travel and other,QY200-OU10 Billback,REDFERN TRAVEL LTD,2013424,-1.81 ,Provision of hotel & travel bookings utilised across MoJ
Ministry of Justice,MoJ HQ,19/11/2015,224000-Staff travel and other,QY200-OU10 Billback,REDFERN TRAVEL LTD,2013914,"183,168.02 ",Provision of hotel & travel bookings utilised across MoJ
Ministry of Justice,MoJ HQ,19/11/2015,224000-Staff travel and other,QY200-OU10 Billback,REDFERN TRAVEL LTD,2013914,"1,338.15 ",Provision of hotel & travel bookings utilised across MoJ
Ministry of Justice,MoJ HQ,19/11/2015,224000-Staff travel and other,QY200-OU10 Billback,REDFERN TRAVEL LTD,2013914,267.63 ,Provision of hotel & travel bookings utilised across MoJ
Ministry of Justice,MoJ HQ,30/11/2015,224000-Staff travel and other,QY200-OU10 Billback,REDFERN TRAVEL LTD,2014683,"160,333.81 ",Provision of hotel & travel bookings utilised across MoJ
Ministry of Justice,MoJ HQ,30/11/2015,224000-Staff travel and other,QY200-OU10 Billback,REDFERN TRAVEL LTD,2014683,"1,253.70 ",Provision of hotel & travel bookings utilised across MoJ
Ministry of Justice,MoJ HQ,30/11/2015,224000-Staff travel and other,QY200-OU10 Billback,REDFERN TRAVEL LTD,2014683,250.74 ,Provision of hotel & travel bookings utilised across MoJ
Ministry of Justice,MoJ HQ,09/11/2015,265000-IT & Telecommunications,NZ401-Finance Group Feeder,SOPRA STERIA LTD,2013278,"49,724.80 ",Costs of migrating and reimplementation of Hyperion financial reporting system from previous service provider
Ministry of Justice,MoJ HQ,23/11/2015,246000-Current Grants,NZ401-Finance Group Feeder,UK SUPREME COURT,10596,"362,000.00 ",Additional funding contribution
Ministry of Justice,MoJ HQ,05/11/2015,223000-Other Expenditure,NZ900-Finance & Corporate Services,TNS BMRB,2013083,"78,706.00 ",Milestone payment for Justice Problem Resolution Survey
Ministry of Justice,MoJ HQ,02/11/2015,223000-Other Expenditure,NZ900-Finance & Corporate Services,IPSOS MORI (M&ORI LTD),2012827,"24,170.85 ",Milestone payment for Evaluation of Adult Out of Court Disposals Pilot
Ministry of Justice,MoJ HQ,30/11/2015,265000-IT & Telecommunications,RZ500-Arms Length Bodies (JPG),ATOS IT SERVICES UK LTD,2014556,25.78 ,Provision of IT Peripherals and individually ordered software and equipment
Ministry of Justice,MoJ HQ,02/11/2015,265000-IT & Telecommunications,RZ500-Arms Length Bodies (JPG),ATOS IT SERVICES UK LTD,2012759,232.02 ,Provision of IT Peripherals and individually ordered software and equipment
Ministry of Justice,MoJ HQ,02/11/2015,265000-IT & Telecommunications,RZ500-Arms Length Bodies (JPG),ATOS IT SERVICES UK LTD,2012759,51.56 ,Provision of IT Peripherals and individually ordered software and equipment
Ministry of Justice,MoJ HQ,02/11/2015,265000-IT & Telecommunications,RZ500-Arms Length Bodies (JPG),ATOS IT SERVICES UK LTD,2012759,28.84 ,Provision of IT Peripherals and individually ordered software and equipment
Ministry of Justice,MoJ HQ,02/11/2015,265000-IT & Telecommunications,RZ500-Arms Length Bodies (JPG),ATOS IT SERVICES UK LTD,2012759,28.84 ,Provision of IT Peripherals and individually ordered software and equipment
Ministry of Justice,MoJ HQ,02/11/2015,265000-IT & Telecommunications,RZ500-Arms Length Bodies (JPG),ATOS IT SERVICES UK LTD,2012759,28.84 ,Provision of IT Peripherals and individually ordered software and equipment
Ministry of Justice,MoJ HQ,02/11/2015,265000-IT & Telecommunications,RZ500-Arms Length Bodies (JPG),ATOS IT SERVICES UK LTD,2012759,28.84 ,Provision of IT Peripherals and individually ordered software and equipment
Ministry of Justice,MoJ HQ,02/11/2015,265000-IT & Telecommunications,RZ500-Arms Length Bodies (JPG),ATOS IT SERVICES UK LTD,2012759,28.84 ,Provision of IT Peripherals and individually ordered software and equipment
Ministry of Justice,MoJ HQ,02/11/2015,265000-IT & Telecommunications,RZ500-Arms Length Bodies (JPG),ATOS IT SERVICES UK LTD,2012759,28.84 ,Provision of IT Peripherals and individually ordered software and equipment
Ministry of Justice,MoJ HQ,02/11/2015,265000-IT & Telecommunications,RZ500-Arms Length Bodies (JPG),ATOS IT SERVICES UK LTD,2012759,28.84 ,Provision of IT Peripherals and individually ordered software and equipment
Ministry of Justice,MoJ HQ,02/11/2015,265000-IT & Telecommunications,RZ500-Arms Length Bodies (JPG),ATOS IT SERVICES UK LTD,2012759,28.84 ,Provision of IT Peripherals and individually ordered software and equipment
Ministry of Justice,MoJ HQ,02/11/2015,265000-IT & Telecommunications,RZ500-Arms Length Bodies (JPG),ATOS IT SERVICES UK LTD,2012759,28.84 ,Provision of IT Peripherals and individually ordered software and equipment
Ministry of Justice,MoJ HQ,02/11/2015,265000-IT & Telecommunications,RZ500-Arms Length Bodies (JPG),ATOS IT SERVICES UK LTD,2012759,28.84 ,Provision of IT Peripherals and individually ordered software and equipment
Ministry of Justice,MoJ HQ,02/11/2015,265000-IT & Telecommunications,RZ500-Arms Length Bodies (JPG),ATOS IT SERVICES UK LTD,2012759,28.84 ,Provision of IT Peripherals and individually ordered software and equipment
Ministry of Justice,MoJ HQ,02/11/2015,265000-IT & Telecommunications,RZ500-Arms Length Bodies (JPG),ATOS IT SERVICES UK LTD,2012759,28.84 ,Provision of IT Peripherals and individually ordered software and equipment
Ministry of Justice,MoJ HQ,02/11/2015,265000-IT & Telecommunications,RZ500-Arms Length Bodies (JPG),ATOS IT SERVICES UK LTD,2012759,28.84 ,Provision of IT Peripherals and individually ordered software and equipment
Ministry of Justice,MoJ HQ,02/11/2015,265000-IT & Telecommunications,RZ500-Arms Length Bodies (JPG),ATOS IT SERVICES UK LTD,2012759,28.84 ,Provision of IT Peripherals and individually ordered software and equipment
Ministry of Justice,MoJ HQ,02/11/2015,265000-IT & Telecommunications,RZ500-Arms Length Bodies (JPG),ATOS IT SERVICES UK LTD,2012759,28.84 ,Provision of IT Peripherals and individually ordered software and equipment
Ministry of Justice,MoJ HQ,02/11/2015,265000-IT & Telecommunications,RZ500-Arms Length Bodies (JPG),ATOS IT SERVICES UK LTD,2012759,25.78 ,Provision of IT Peripherals and individually ordered software and equipment
Ministry of Justice,MoJ HQ,02/11/2015,265000-IT & Telecommunications,RZ500-Arms Length Bodies (JPG),ATOS IT SERVICES UK LTD,2012759,25.78 ,Provision of IT Peripherals and individually ordered software and equipment
Ministry of Justice,MoJ HQ,02/11/2015,265000-IT & Telecommunications,RZ500-Arms Length Bodies (JPG),ATOS IT SERVICES UK LTD,2012759,6.28 ,Provision of IT Peripherals and individually ordered software and equipment
Ministry of Justice,MoJ HQ,02/11/2015,265000-IT & Telecommunications,RZ500-Arms Length Bodies (JPG),ATOS IT SERVICES UK LTD,2012759,6.28 ,Provision of IT Peripherals and individually ordered software and equipment
Ministry of Justice,MoJ HQ,30/11/2015,265000-IT & Telecommunications,RZ500-Arms Length Bodies (JPG),ATOS IT SERVICES UK LTD,2014556,72.00 ,Provision of IT Peripherals and individually ordered software and equipment
Ministry of Justice,MoJ HQ,30/11/2015,265000-IT & Telecommunications,RZ500-Arms Length Bodies (JPG),ATOS IT SERVICES UK LTD,2014556,46.00 ,Provision of IT Peripherals and individually ordered software and equipment
Ministry of Justice,MoJ HQ,30/11/2015,265000-IT & Telecommunications,RZ500-Arms Length Bodies (JPG),ATOS IT SERVICES UK LTD,2014556,28.84 ,Provision of IT Peripherals and individually ordered software and equipment
Ministry of Justice,MoJ HQ,30/11/2015,265000-IT & Telecommunications,RZ500-Arms Length Bodies (JPG),ATOS IT SERVICES UK LTD,2014556,28.84 ,Provision of IT Peripherals and individually ordered software and equipment
Ministry of Justice,MoJ HQ,30/11/2015,265000-IT & Telecommunications,RZ500-Arms Length Bodies (JPG),ATOS IT SERVICES UK LTD,2014556,25.78 ,Provision of IT Peripherals and individually ordered software and equipment
Ministry of Justice,MoJ HQ,30/11/2015,265000-IT & Telecommunications,RZ500-Arms Length Bodies (JPG),ATOS IT SERVICES UK LTD,2014556,25.78 ,Provision of IT Peripherals and individually ordered software and equipment
Ministry of Justice,MoJ HQ,30/11/2015,265000-IT & Telecommunications,RZ500-Arms Length Bodies (JPG),ATOS IT SERVICES UK LTD,2014556,25.78 ,Provision of IT Peripherals and individually ordered software and equipment
Ministry of Justice,MoJ HQ,02/11/2015,265000-IT & Telecommunications,MF600-Directorate of Judicial Offices,ATOS IT SERVICES UK LTD,2012759,164.00 ,Provision of IT Peripherals and individually ordered software and equipment
Ministry of Justice,MoJ HQ,02/11/2015,265000-IT & Telecommunications,MF600-Directorate of Judicial Offices,ATOS IT SERVICES UK LTD,2012759,113.16 ,Provision of IT Peripherals and individually ordered software and equipment
Ministry of Justice,MoJ HQ,02/11/2015,265000-IT & Telecommunications,MF600-Directorate of Judicial Offices,ATOS IT SERVICES UK LTD,2012759,92.44 ,Provision of IT Peripherals and individually ordered software and equipment
Ministry of Justice,MoJ HQ,02/11/2015,265000-IT & Telecommunications,MF600-Directorate of Judicial Offices,ATOS IT SERVICES UK LTD,2012759,83.96 ,Provision of IT Peripherals and individually ordered software and equipment
Ministry of Justice,MoJ HQ,02/11/2015,265000-IT & Telecommunications,MF600-Directorate of Judicial Offices,ATOS IT SERVICES UK LTD,2012759,82.78 ,Provision of IT Peripherals and individually ordered software and equipment
Ministry of Justice,MoJ HQ,02/11/2015,265000-IT & Telecommunications,MF600-Directorate of Judicial Offices,ATOS IT SERVICES UK LTD,2012759,82.78 ,Provision of IT Peripherals and individually ordered software and equipment
Ministry of Justice,MoJ HQ,02/11/2015,265000-IT & Telecommunications,MF600-Directorate of Judicial Offices,ATOS IT SERVICES UK LTD,2012759,46.00 ,Provision of IT Peripherals and individually ordered software and equipment
Ministry of Justice,MoJ HQ,02/11/2015,265000-IT & Telecommunications,MF600-Directorate of Judicial Offices,ATOS IT SERVICES UK LTD,2012759,25.78 ,Provision of IT Peripherals and individually ordered software and equipment
Ministry of Justice,MoJ HQ,02/11/2015,265000-IT & Telecommunications,MF600-Directorate of Judicial Offices,ATOS IT SERVICES UK LTD,2012759,25.78 ,Provision of IT Peripherals and individually ordered software and equipment
Ministry of Justice,MoJ HQ,02/11/2015,265000-IT & Telecommunications,MF600-Directorate of Judicial Offices,ATOS IT SERVICES UK LTD,2012759,25.78 ,Provision of IT Peripherals and individually ordered software and equipment
Ministry of Justice,MoJ HQ,02/11/2015,265000-IT & Telecommunications,MF600-Directorate of Judicial Offices,ATOS IT SERVICES UK LTD,2012759,25.78 ,Provision of IT Peripherals and individually ordered software and equipment
Ministry of Justice,MoJ HQ,02/11/2015,265000-IT & Telecommunications,MF600-Directorate of Judicial Offices,ATOS IT SERVICES UK LTD,2012759,25.78 ,Provision of IT Peripherals and individually ordered software and equipment
Ministry of Justice,MoJ HQ,02/11/2015,265000-IT & Telecommunications,MF600-Directorate of Judicial Offices,ATOS IT SERVICES UK LTD,2012759,10.92 ,Provision of IT Peripherals and individually ordered software and equipment
Ministry of Justice,MoJ HQ,19/11/2015,266000-Judicial Costs,MF600-Directorate of Judicial Offices,CALDER CONFERENCES LTD,2013777,"20,604.94 ",Venue hire costs in relation to Judicial Training for Public Law Children Seminar 4-5 November 2015
Ministry of Justice,MoJ HQ,19/11/2015,266000-Judicial Costs,MF600-Directorate of Judicial Offices,CALDER CONFERENCES LTD,2013777,"19,739.02 ",Venue hire costs in relation to Judicial Training for Trial seminar 5-6 October 2015
Ministry of Justice,MoJ HQ,19/11/2015,266000-Judicial Costs,MF600-Directorate of Judicial Offices,CALDER CONFERENCES LTD,2013777,"2,249.66 ",Venue hire costs in relation to Judicial Training for Trial seminar 5-6 October 2015
Ministry of Justice,MoJ HQ,19/11/2015,266000-Judicial Costs,MF600-Directorate of Judicial Offices,CALDER CONFERENCES LTD,2013777,333.39 ,Venue hire costs in relation to Judicial Training for Public Law Children Seminar 4-5 November 2015
Ministry of Justice,MoJ HQ,30/11/2015,265000-IT & Telecommunications,MF600-Directorate of Judicial Offices,ATOS IT SERVICES UK LTD,2014556,103.12 ,Provision of IT Peripherals and individually ordered software and equipment
Ministry of Justice,MoJ HQ,30/11/2015,265000-IT & Telecommunications,MF600-Directorate of Judicial Offices,ATOS IT SERVICES UK LTD,2014556,76.90 ,Provision of IT Peripherals and individually ordered software and equipment
Ministry of Justice,MoJ HQ,30/11/2015,265000-IT & Telecommunications,MF600-Directorate of Judicial Offices,ATOS IT SERVICES UK LTD,2014556,46.00 ,Provision of IT Peripherals and individually ordered software and equipment
Ministry of Justice,MoJ HQ,30/11/2015,265000-IT & Telecommunications,MF600-Directorate of Judicial Offices,ATOS IT SERVICES UK LTD,2014556,46.00 ,Provision of IT Peripherals and individually ordered software and equipment
Ministry of Justice,MoJ HQ,30/11/2015,265000-IT & Telecommunications,MF600-Directorate of Judicial Offices,ATOS IT SERVICES UK LTD,2014556,25.78 ,Provision of IT Peripherals and individually ordered software and equipment
Ministry of Justice,MoJ HQ,30/11/2015,265000-IT & Telecommunications,MF600-Directorate of Judicial Offices,ATOS IT SERVICES UK LTD,2014556,25.78 ,Provision of IT Peripherals and individually ordered software and equipment
Ministry of Justice,MoJ HQ,30/11/2015,265000-IT & Telecommunications,MF600-Directorate of Judicial Offices,ATOS IT SERVICES UK LTD,2014556,25.23 ,Provision of IT Peripherals and individually ordered software and equipment
Ministry of Justice,MoJ HQ,30/11/2015,265000-IT & Telecommunications,MF600-Directorate of Judicial Offices,ATOS IT SERVICES UK LTD,2014556,10.92 ,Provision of IT Peripherals and individually ordered software and equipment
Ministry of Justice,MoJ HQ,30/11/2015,265000-IT & Telecommunications,RJ999-JPG - International,ATOS IT SERVICES UK LTD,2014556,111.45 ,Provision of IT Peripherals and individually ordered software and equipment
Ministry of Justice,MoJ HQ,30/11/2015,265000-IT & Telecommunications,RJ999-JPG - International,ATOS IT SERVICES UK LTD,2014556,78.26 ,Provision of IT Peripherals and individually ordered software and equipment
Ministry of Justice,MoJ HQ,02/11/2015,265000-IT & Telecommunications,RJ999-JPG - International,ATOS IT SERVICES UK LTD,2012759,82.78 ,Provision of IT Peripherals and individually ordered software and equipment
Ministry of Justice,MoJ HQ,18/11/2015,246000-Current Grants,RJ999-JPG - International,HAGUE CONFERENCE#RJ10510001,20015,"138,657.36 ",UK subscription to The Hague Conference on International Private Law
Ministry of Justice,MoJ HQ,02/11/2015,223000-Other Expenditure,RG999-CFLAP Accumulator,MS CHRISTINA LAMBERT QC,2012847,"83,241.50 ",Christina Lambert Counsel Hillsborough Inquest FY15-16
Ministry of Justice,MoJ HQ,09/11/2015,264000-Consultancy,RG999-CFLAP Accumulator,DR JERRY NOLAN,2013179,"30,012.50 ",Experts report for Hillsborough Inquests FY15-16 
Ministry of Justice,MoJ HQ,09/11/2015,223000-Other Expenditure,RG999-CFLAP Accumulator,FIELD FISHER WATERHOUSE LLP,2013187,"102,802.15 ",Solicitors to the Hillsborough Inquests FY15-16
Ministry of Justice,MoJ HQ,09/11/2015,223000-Other Expenditure,RG999-CFLAP Accumulator,FIELD FISHER WATERHOUSE LLP,2013187,"45,704.80 ",Solicitor to the Macur Review for FY15-16
Ministry of Justice,MoJ HQ,16/11/2015,226000-Court Costs,RG999-CFLAP Accumulator,DTI (WORDWAVE INTERNATIONAL LTD),2013551,"35,372.96 ",Transcription Services to the Hillsborough Inquests FY15-16
Ministry of Justice,MoJ HQ,19/11/2015,264000-Consultancy,RG999-CFLAP Accumulator,DR JASMEET SOAR,2013809,"45,243.20 ",Experts report for Hillsborough Inquests FY15-16 
Ministry of Justice,MoJ HQ,23/11/2015,226000-Court Costs,RG999-CFLAP Accumulator,DTI (WORDWAVE INTERNATIONAL LTD),2014045,"33,854.49 ",Document management services to the Hillsborough Inquest FY15-16
Ministry of Justice,MoJ HQ,23/11/2015,226000-Court Costs,RG999-CFLAP Accumulator,DTI (WORDWAVE INTERNATIONAL LTD),2014045,"25,438.54 ",Document management services to the Hillsborough Inquest FY15-16
Ministry of Justice,MoJ HQ,23/11/2015,223000-Other Expenditure,RG999-CFLAP Accumulator,FOUR NEW SQUARE LINCOLNS INN,2014058,"29,362.70 ",Document management services to the Hillsborough Inquest FY15-16
Ministry of Justice,MoJ HQ,02/11/2015,265000-IT & Telecommunications,RG999-CFLAP Accumulator,ATOS IT SERVICES UK LTD,2012759,25.78 ,Provision of IT Peripherals and individually ordered software and equipment
Ministry of Justice,MoJ HQ,30/11/2015,265000-IT & Telecommunications,RG999-CFLAP Accumulator,ATOS IT SERVICES UK LTD,2014556,46.00 ,Provision of IT Peripherals and individually ordered software and equipment
Ministry of Justice,MoJ HQ,12/11/2015,223000-Other Expenditure,RG999-CFLAP Accumulator,GOVERNMENT LEGAL DEPARTMENT,10561,"29,710.70 ",Purchase Order for Strategy & Specialist Policy Litigation Cost regarding Deprivation of Liberty Safeguarding Orders 
Ministry of Justice,MoJ HQ,02/11/2015,265000-IT & Telecommunications,RG999-CFLAP Accumulator,ATOS IT SERVICES UK LTD,2012759,82.78 ,Provision of IT Peripherals and individually ordered software and equipment
Ministry of Justice,MoJ HQ,30/11/2015,265000-IT & Telecommunications,RG999-CFLAP Accumulator,ATOS IT SERVICES UK LTD,2014556,46.00 ,Provision of IT Peripherals and individually ordered software and equipment
Ministry of Justice,MoJ HQ,02/11/2015,265000-IT & Telecommunications,RG999-CFLAP Accumulator,ATOS IT SERVICES UK LTD,2012759,201.88 ,Provision of IT Peripherals and individually ordered software and equipment
Ministry of Justice,MoJ HQ,02/11/2015,265000-IT & Telecommunications,RG999-CFLAP Accumulator,ATOS IT SERVICES UK LTD,2012759,46.00 ,Provision of IT Peripherals and individually ordered software and equipment
Ministry of Justice,MoJ HQ,02/11/2015,265000-IT & Telecommunications,RG999-CFLAP Accumulator,ATOS IT SERVICES UK LTD,2012759,25.78 ,Provision of IT Peripherals and individually ordered software and equipment
Ministry of Justice,MoJ HQ,02/11/2015,265000-IT & Telecommunications,RG999-CFLAP Accumulator,ATOS IT SERVICES UK LTD,2012759,11.62 ,Provision of IT Peripherals and individually ordered software and equipment
Ministry of Justice,MoJ HQ,02/11/2015,265000-IT & Telecommunications,RG999-CFLAP Accumulator,ATOS IT SERVICES UK LTD,2012759,11.62 ,Provision of IT Peripherals and individually ordered software and equipment
Ministry of Justice,MoJ HQ,20/11/2015,263000-Other Contracted Out Services,RG999-CFLAP Accumulator,CAFCASS,10593,"315,737.70 ",Court directed child contact interventions including the Seperated Parents Information Programme (SPIP) and Domestic Violence Perpetrator Programme (DVPP) services
Ministry of Justice,MoJ HQ,06/11/2015,263000-Other Contracted Out Services,RG999-CFLAP Accumulator,CAFCASS,2013096,"268,531.27 ",Court directed child contact interventions including the Seperated Parents Information Programme (SPIP) and Domestic Violence Perpetrator Programme (DVPP) services
Ministry of Justice,MoJ HQ,30/11/2015,265000-IT & Telecommunications,RG999-CFLAP Accumulator,ATOS IT SERVICES UK LTD,2014556,25.78 ,Provision of IT Peripherals and individually ordered software and equipment
Ministry of Justice,MoJ HQ,30/11/2015,265000-IT & Telecommunications,RG999-CFLAP Accumulator,ATOS IT SERVICES UK LTD,2014556,25.23 ,Provision of IT Peripherals and individually ordered software and equipment
Ministry of Justice,MoJ HQ,02/11/2015,265000-IT & Telecommunications,LZ600-Transforming Justice,ATOS IT SERVICES UK LTD,2012759,98.47 ,Provision of IT Peripherals and individually ordered software and equipment
Ministry of Justice,MoJ HQ,02/11/2015,265000-IT & Telecommunications,LZ600-Transforming Justice,ATOS IT SERVICES UK LTD,2012759,78.26 ,Provision of IT Peripherals and individually ordered software and equipment
Ministry of Justice,MoJ HQ,02/11/2015,265000-IT & Telecommunications,LZ600-Transforming Justice,ATOS IT SERVICES UK LTD,2012759,25.78 ,Provision of IT Peripherals and individually ordered software and equipment
Ministry of Justice,MoJ HQ,30/11/2015,265000-IT & Telecommunications,LZ600-Transforming Justice,ATOS IT SERVICES UK LTD,2014556,54.67 ,Provision of IT Peripherals and individually ordered software and equipment
Ministry of Justice,MoJ HQ,30/11/2015,265000-IT & Telecommunications,LZ600-Transforming Justice,ATOS IT SERVICES UK LTD,2014556,46.00 ,Provision of IT Peripherals and individually ordered software and equipment
Ministry of Justice,MoJ HQ,30/11/2015,265000-IT & Telecommunications,LZ600-Transforming Justice,ATOS IT SERVICES UK LTD,2014556,25.78 ,Provision of IT Peripherals and individually ordered software and equipment
Ministry of Justice,MoJ HQ,02/11/2015,265000-IT & Telecommunications,LZ600-Transforming Justice,ATOS IT SERVICES UK LTD,2012759,46.00 ,Provision of IT Peripherals and individually ordered software and equipment
Ministry of Justice,MoJ HQ,02/11/2015,265000-IT & Telecommunications,LZ600-Transforming Justice,ATOS IT SERVICES UK LTD,2012759,25.78 ,Provision of IT Peripherals and individually ordered software and equipment
Ministry of Justice,MoJ HQ,02/11/2015,265000-IT & Telecommunications,LZ600-Transforming Justice,ATOS IT SERVICES UK LTD,2012759,25.78 ,Provision of IT Peripherals and individually ordered software and equipment
Ministry of Justice,MoJ HQ,30/11/2015,266000-Judicial Costs,LZ600-Transforming Justice,JORDAN PUBLISHING LTD,2014638,"139,799.20 ","Purchase Order for JOR Print Annuals and Ad-hocs-Period: April 2015 to March 2016"""
Ministry of Justice,MoJ HQ,30/11/2015,266000-Judicial Costs,LZ600-Transforming Justice,TSO,2014719,"70,125.00 ",Purchase Order for Government Legal Office Print Annuals and Subscriptions - Period: April 2015 to March 2016
Ministry of Justice,MoJ HQ,12/11/2015,223000-Other Expenditure,LZ600-Transforming Justice,TNT UK LTD,2013447,"76,306.06 ",Monthly storage and activity costs for paper records stored by TNT on MoJs behalf at its secure repositories.
Ministry of Justice,MoJ HQ,30/11/2015,265000-IT & Telecommunications,LZ600-Transforming Justice,ATOS IT SERVICES UK LTD,2014556,30.30 ,Provision of IT Peripherals and individually ordered software and equipment
Ministry of Justice,MoJ HQ,11/11/2015,223000-Other Expenditure,OZ501-HRD Feeder,GOVERNMENT LEGAL DEPARTMENT,10556,"60,609.89 ",Payments made to the Government Legal Department for O'Brien/ Miller litigation
Ministry of Justice,MoJ HQ,11/11/2015,223000-Other Expenditure,OZ501-HRD Feeder,GOVERNMENT LEGAL DEPARTMENT,10556,"12,121.98 ",Payments made to the Government Legal Department for O'Brien/ Miller litigation
Ministry of Justice,MoJ HQ,11/11/2015,223000-Other Expenditure,OZ501-HRD Feeder,GOVERNMENT LEGAL DEPARTMENT,10556,51.20 ,Payments made to the Government Legal Department for O'Brien/ Miller litigation
Ministry of Justice,MoJ HQ,11/11/2015,223000-Other Expenditure,OZ501-HRD Feeder,GOVERNMENT LEGAL DEPARTMENT,10556,-0.01 ,Payments made to the Government Legal Department for O'Brien/ Miller litigation
Ministry of Justice,MoJ HQ,02/11/2015,265000-IT & Telecommunications,OZ501-HRD Feeder,ATOS IT SERVICES UK LTD,2012759,82.78 ,Provision of IT Peripherals and individually ordered software and equipment
Ministry of Justice,MoJ HQ,02/11/2015,265000-IT & Telecommunications,OZ501-HRD Feeder,ATOS IT SERVICES UK LTD,2012759,25.78 ,Provision of IT Peripherals and individually ordered software and equipment
Ministry of Justice,MoJ HQ,02/11/2015,265000-IT & Telecommunications,OZ501-HRD Feeder,ATOS IT SERVICES UK LTD,2012759,11.62 ,Provision of IT Peripherals and individually ordered software and equipment
Ministry of Justice,MoJ HQ,05/11/2015,263000-Other Contracted Out Services,OZ501-HRD Feeder,HYMANS ROBERTSON & CO,2012998,"22,118.00 ","Third party administration, actuarial services, and investment advice in respect of the LSC Pension Scheme"
Ministry of Justice,MoJ HQ,05/11/2015,263000-Other Contracted Out Services,OZ501-HRD Feeder,HYMANS ROBERTSON & CO,2012998,"4,423.60 ","Third party administration, actuarial services, and investment advice in respect of the LSC Pension Scheme"
Ministry of Justice,MoJ HQ,30/11/2015,265000-IT & Telecommunications,OZ501-HRD Feeder,ATOS IT SERVICES UK LTD,2014556,28.84 ,Provision of IT Peripherals and individually ordered software and equipment
Ministry of Justice,MoJ HQ,30/11/2015,265000-IT & Telecommunications,OZ501-HRD Feeder,ATOS IT SERVICES UK LTD,2014556,25.78 ,Provision of IT Peripherals and individually ordered software and equipment
Ministry of Justice,MoJ HQ,30/11/2015,265000-IT & Telecommunications,OZ501-HRD Feeder,ATOS IT SERVICES UK LTD,2014556,11.62 ,Provision of IT Peripherals and individually ordered software and equipment
Ministry of Justice,MoJ HQ,30/11/2015,265000-IT & Telecommunications,OZ501-HRD Feeder,ATOS IT SERVICES UK LTD,2014556,11.62 ,Provision of IT Peripherals and individually ordered software and equipment
Ministry of Justice,MoJ HQ,03/11/2015,245000-Grants in Aid to NDPBs,RZ500-Arms Length Bodies (JPG),CAFCASS#RL10120021,10526,"9,020,000.00 ",GRANT IN AID
Ministry of Justice,MoJ HQ,04/11/2015,245000-Grants in Aid to NDPBs,KY600-Access to Justice,JUDICIAL APPOINTMENTS COMMISSION (JAC),10532,"1,000,000.00 ",GRANT IN AID 
Ministry of Justice,MoJ HQ,30/11/2015,265000-IT & Telecommunications,OZ501-HRD Feeder,ATOS IT SERVICES UK LTD,2014556,10.09 ,Provision of IT Peripherals and individually ordered software and equipment
Ministry of Justice,MoJ HQ,02/11/2015,265000-IT & Telecommunications,NZ900-Finance & Corporate Services,ATOS IT SERVICES UK LTD,2012759,66.86 ,Provision of IT Peripherals and individually ordered software and equipment
Ministry of Justice,MoJ HQ,02/11/2015,265000-IT & Telecommunications,NZ900-Finance & Corporate Services,ATOS IT SERVICES UK LTD,2012759,66.86 ,Provision of IT Peripherals and individually ordered software and equipment
Ministry of Justice,MoJ HQ,02/11/2015,265000-IT & Telecommunications,NZ900-Finance & Corporate Services,ATOS IT SERVICES UK LTD,2012759,66.86 ,Provision of IT Peripherals and individually ordered software and equipment
Ministry of Justice,MoJ HQ,02/11/2015,265000-IT & Telecommunications,NZ900-Finance & Corporate Services,ATOS IT SERVICES UK LTD,2012759,25.78 ,Provision of IT Peripherals and individually ordered software and equipment
Ministry of Justice,MoJ HQ,02/11/2015,265000-IT & Telecommunications,NZ900-Finance & Corporate Services,ATOS IT SERVICES UK LTD,2012759,25.78 ,Provision of IT Peripherals and individually ordered software and equipment
Ministry of Justice,MoJ HQ,30/11/2015,265000-IT & Telecommunications,NZ900-Finance & Corporate Services,ATOS IT SERVICES UK LTD,2014556,25.78 ,Provision of IT Peripherals and individually ordered software and equipment
Ministry of Justice,MoJ HQ,30/11/2015,265000-IT & Telecommunications,NZ900-Finance & Corporate Services,ATOS IT SERVICES UK LTD,2014556,25.78 ,Provision of IT Peripherals and individually ordered software and equipment
Ministry of Justice,MoJ HQ,19/11/2015,261000-Fuel and Utilities,NZ406-Strategic Estates Feeder,EDF ENERGY LTD,2013812,"24,020.72 ","Electricity charges for Clive House, for the Period 01/04/2015 - 30/04/2015."
Ministry of Justice,MoJ HQ,19/11/2015,261000-Fuel and Utilities,NZ406-Strategic Estates Feeder,EDF ENERGY LTD,2013812,"4,804.14 ","Electricity charges for Clive House, for the Period 01/04/2015 - 30/04/2015."
Ministry of Justice,MoJ HQ,19/11/2015,261000-Fuel and Utilities,NZ406-Strategic Estates Feeder,EDF ENERGY LTD,2013813,"24,846.63 ","Electricity charges for Clive House, for the Period 01/08/2015 - 31/08/2015."
Ministry of Justice,MoJ HQ,19/11/2015,261000-Fuel and Utilities,NZ406-Strategic Estates Feeder,EDF ENERGY LTD,2013813,"23,600.91 ","Electricity charges for Clive House, for the Period 01/09/2015 - 30/09/2015."
Ministry of Justice,MoJ HQ,19/11/2015,261000-Fuel and Utilities,NZ406-Strategic Estates Feeder,EDF ENERGY LTD,2013813,"4,969.33 ","Electricity charges for Clive House, for the Period 01/08/2015 - 31/08/2015."
Ministry of Justice,MoJ HQ,19/11/2015,261000-Fuel and Utilities,NZ406-Strategic Estates Feeder,EDF ENERGY LTD,2013813,"4,720.18 ","Electricity charges for Clive House, for the Period 01/09/2015 - 30/09/2015."
Ministry of Justice,MoJ HQ,05/11/2015,222003-CIS Labour TFM Estates,NZ406-Strategic Estates Feeder,AMEY,2012927,"63,147.86 ",Cleaning (Soft Fixed) for March 2015
Ministry of Justice,MoJ HQ,05/11/2015,222003-CIS Labour TFM Estates,NZ406-Strategic Estates Feeder,AMEY,2012927,"47,541.26 ",M & E Maintenance (Hard Fixed) for March 2015
Ministry of Justice,MoJ HQ,05/11/2015,222003-CIS Labour TFM Estates,NZ406-Strategic Estates Feeder,AMEY,2012927,"21,754.67 ",Hard Management (Hard Fixed) for March 2015
Ministry of Justice,MoJ HQ,05/11/2015,222003-CIS Labour TFM Estates,NZ406-Strategic Estates Feeder,AMEY,2012927,"12,724.78 ",Internal Repair & Maintenance (Hard Fixed) for March 2015
Ministry of Justice,MoJ HQ,05/11/2015,222003-CIS Labour TFM Estates,NZ406-Strategic Estates Feeder,AMEY,2012927,"7,442.58 ",Soft Management (Soft Fixed) for March 2015
Ministry of Justice,MoJ HQ,05/11/2015,222003-CIS Labour TFM Estates,NZ406-Strategic Estates Feeder,AMEY,2012927,"5,175.59 ",Waste Disposal (Soft Fixed) for March 2015
Ministry of Justice,MoJ HQ,05/11/2015,222003-CIS Labour TFM Estates,NZ406-Strategic Estates Feeder,AMEY,2012927,355.97 ,Pest Control (Soft Fixed) for March 2015
Ministry of Justice,MoJ HQ,05/11/2015,222003-CIS Labour TFM Estates,NZ406-Strategic Estates Feeder,AMEY,2012927,301.18 ,Catering Lease (Soft Fixed) for March 2015
Ministry of Justice,MoJ HQ,05/11/2015,222003-CIS Labour TFM Estates,NZ406-Strategic Estates Feeder,AMEY,2012927,208.66 ,Grounds Maintenance (Hard Fixed) for March 2015
Ministry of Justice,MoJ HQ,09/11/2015,222003-CIS Labour TFM Estates,NZ406-Strategic Estates Feeder,MITIE JUSTICE LTD,2013223,"52,704.23 ",Internal Moves (BAU - Reacitve) for September 2015
Ministry of Justice,MoJ HQ,23/11/2015,222003-CIS Labour TFM Estates,NZ406-Strategic Estates Feeder,MITIE JUSTICE LTD,2014116,"145,383.64 ",SECURITY - Soft Fixed 2015-16
Ministry of Justice,MoJ HQ,23/11/2015,222003-CIS Labour TFM Estates,NZ406-Strategic Estates Feeder,MITIE JUSTICE LTD,2014116,"10,368.20 ",MANAGEMENT - Soft Fixed 2015-16
Ministry of Justice,MoJ HQ,23/11/2015,222003-CIS Labour TFM Estates,NZ406-Strategic Estates Feeder,MITIE JUSTICE LTD,2014116,4.64 ,CLEANING - Soft Fixed 2015-16
Ministry of Justice,MoJ HQ,26/11/2015,222003-CIS Labour TFM Estates,NZ406-Strategic Estates Feeder,AMEY,2014280,"22,663.23 ",Hard Management (Hard Variable) for September 2015
Ministry of Justice,MoJ HQ,26/11/2015,222003-CIS Labour TFM Estates,NZ406-Strategic Estates Feeder,AMEY,2014280,"7,276.32 ",M & E Maintenance (Hard Variable) for September 2015
Ministry of Justice,MoJ HQ,26/11/2015,222003-CIS Labour TFM Estates,NZ406-Strategic Estates Feeder,AMEY,2014280,343.43 ,Internal Repair & Maintenance (Hard Variable) for September 2015
Ministry of Justice,MoJ HQ,30/11/2015,222003-CIS Labour TFM Estates,NZ406-Strategic Estates Feeder,AMEY,2014555,"64,047.96 ",Cleaning (Soft Fixed) for September 2015
Ministry of Justice,MoJ HQ,30/11/2015,222003-CIS Labour TFM Estates,NZ406-Strategic Estates Feeder,AMEY,2014555,"46,972.81 ",M & E Maintenance (Hard Fixed) for September 2015
Ministry of Justice,MoJ HQ,30/11/2015,222003-CIS Labour TFM Estates,NZ406-Strategic Estates Feeder,AMEY,2014555,"22,071.60 ",Hard Management (Hard Fixed) for September 2015
Ministry of Justice,MoJ HQ,30/11/2015,222003-CIS Labour TFM Estates,NZ406-Strategic Estates Feeder,AMEY,2014555,"12,031.17 ",Internal Repair & Maintenance (Hard Fixed) for September 2015
Ministry of Justice,MoJ HQ,30/11/2015,222003-CIS Labour TFM Estates,NZ406-Strategic Estates Feeder,AMEY,2014555,"7,545.29 ",Soft Management (Soft Fixed) for September 2015
Ministry of Justice,MoJ HQ,30/11/2015,222003-CIS Labour TFM Estates,NZ406-Strategic Estates Feeder,AMEY,2014555,"5,247.02 ",Waste Disposal (Soft Fixed) for September 2015
Ministry of Justice,MoJ HQ,30/11/2015,222003-CIS Labour TFM Estates,NZ406-Strategic Estates Feeder,AMEY,2014555,360.89 ,Pest Control (Soft Fixed) for September 2015
Ministry of Justice,MoJ HQ,30/11/2015,222003-CIS Labour TFM Estates,NZ406-Strategic Estates Feeder,AMEY,2014555,305.33 ,Catering Lease (Soft Fixed) for September 2015
Ministry of Justice,MoJ HQ,30/11/2015,222003-CIS Labour TFM Estates,NZ406-Strategic Estates Feeder,AMEY,2014555,209.67 ,Grounds Maintenance (Hard Fixed) for September 2015
Ministry of Justice,MoJ HQ,30/11/2015,265000-IT & Telecommunications,NZ406-Strategic Estates Feeder,ATOS IT SERVICES UK LTD,2014556,51.56 ,Provision of IT Peripherals and individually ordered software and equipment
Ministry of Justice,MoJ HQ,30/11/2015,265000-IT & Telecommunications,NZ406-Strategic Estates Feeder,ATOS IT SERVICES UK LTD,2014556,51.56 ,Provision of IT Peripherals and individually ordered software and equipment
Ministry of Justice,MoJ HQ,30/11/2015,265000-IT & Telecommunications,NZ406-Strategic Estates Feeder,ATOS IT SERVICES UK LTD,2014556,25.78 ,Provision of IT Peripherals and individually ordered software and equipment
Ministry of Justice,MoJ HQ,16/11/2015,222001-Maintenance,NZ406-Strategic Estates Feeder,JONES LANG LASALLE LTD,2013591,"51,996.00 ",Provision of Estates Surveying Services for the Disposal of Grenadier House.  This was cancelled by Invoice No. EN002-0193028C dated 13/11/2015.
Ministry of Justice,MoJ HQ,16/11/2015,222001-Maintenance,NZ406-Strategic Estates Feeder,JONES LANG LASALLE LTD,2013591,"51,966.00 ","Provision of Estates Surveying Services for the Disposal of Grenadier House.  Replaced Invoice No. EN002-0193028C, which was cancelled on 13/11/2015."
Ministry of Justice,MoJ HQ,16/11/2015,222001-Maintenance,NZ406-Strategic Estates Feeder,JONES LANG LASALLE LTD,2013591,"10,399.20 ",Provision of Estates Surveying Services for the Disposal of Grenadier House.  This was cancelled by Invoice No. EN002-0193028C dated 13/11/2015.
Ministry of Justice,MoJ HQ,16/11/2015,222001-Maintenance,NZ406-Strategic Estates Feeder,JONES LANG LASALLE LTD,2013591,"10,393.20 ","Provision of Estates Surveying Services for the Disposal of Grenadier House.  Replaced Invoice No. EN002-0193028C, which was cancelled on 13/11/2015."
Ministry of Justice,MoJ HQ,06/11/2015,221000-Property Rent and Rates,NZ406-Strategic Estates Feeder,DEPARTMENT FOR COMMUNITIES & LOCAL GOVERNMENT,10534,"105,162.72 ",Payment of Q2 (Jul 15 - Sep 15) Rent for St Philip's Place 
Ministry of Justice,MoJ HQ,06/11/2015,221000-Property Rent and Rates,NZ406-Strategic Estates Feeder,DEPARTMENT FOR COMMUNITIES & LOCAL GOVERNMENT,10534,"32,616.94 ",Payment of Q2 (Jul 15 - Sep 15) Rates for St Philip's Place 
Ministry of Justice,MoJ HQ,06/11/2015,222001-Maintenance,NZ406-Strategic Estates Feeder,DEPARTMENT FOR COMMUNITIES & LOCAL GOVERNMENT,10534,"25,019.44 ",Payment of Q2 (Jul 15 - Sep 15) FM Services for St Philip's Place 
Ministry of Justice,MoJ HQ,06/11/2015,261000-Fuel and Utilities,NZ406-Strategic Estates Feeder,DEPARTMENT FOR COMMUNITIES & LOCAL GOVERNMENT,10534,"7,665.90 ",Payment of Q2 (Jul 15 - Sep 15) Electricity Costs for St Philip's Place 
Ministry of Justice,MoJ HQ,06/11/2015,261000-Fuel and Utilities,NZ406-Strategic Estates Feeder,DEPARTMENT FOR COMMUNITIES & LOCAL GOVERNMENT,10534,"1,737.25 ",Payment of Q2 (Jul 15 - Sep 15) Gas Costs for St Philip's Place 
Ministry of Justice,MoJ HQ,06/11/2015,223000-Other Expenditure,NZ406-Strategic Estates Feeder,DEPARTMENT FOR COMMUNITIES & LOCAL GOVERNMENT,10534,"1,238.56 ",Payment of Q2 (Jul 15 - Sep 15) Insurance Costs for St Philip's Place 
Ministry of Justice,MoJ HQ,06/11/2015,222002-Other Property Costs,NZ406-Strategic Estates Feeder,DEPARTMENT FOR COMMUNITIES & LOCAL GOVERNMENT,10534,787.80 ,Payment of Q2 (Jul 15 - Sep 15) Bid Levy Costs for St Philip's Place 
Ministry of Justice,MoJ HQ,06/11/2015,261000-Fuel and Utilities,NZ406-Strategic Estates Feeder,DEPARTMENT FOR COMMUNITIES & LOCAL GOVERNMENT,10534,733.26 ,Payment of Q2 (Jul 15 - Sep 15) Water Costs for St Philip's Place 
Ministry of Justice,MoJ HQ,12/11/2015,262000-SCA Costs,NZ406-Strategic Estates Feeder,LAND SECURITIES PROPERTIES LTD,2013384,"4,009,693.50 ",Payment of Incremental Rent for 102 Petty France for the period 01/10/2015 - 31/12/2015
Ministry of Justice,MoJ HQ,19/11/2015,261000-Fuel and Utilities,NZ406-Strategic Estates Feeder,EDF ENERGY LTD,2013812,"69,239.35 ","Electricity charges for 102 Petty France, for the Period 01/09/2015 - 30/09/2015."
Ministry of Justice,MoJ HQ,19/11/2015,261000-Fuel and Utilities,NZ406-Strategic Estates Feeder,EDF ENERGY LTD,2013812,"13,847.87 ","Electricity charges for 102 Petty France, for the Period 01/09/2015 - 30/09/2015."
Ministry of Justice,MoJ HQ,19/11/2015,261000-Fuel and Utilities,NZ406-Strategic Estates Feeder,EDF ENERGY LTD,2013812,0.01 ,"Electricity charges for 102 Petty France, for the Period 01/09/2015 - 30/09/2015."
Ministry of Justice,MoJ HQ,19/11/2015,261000-Fuel and Utilities,NZ406-Strategic Estates Feeder,EDF ENERGY LTD,2013813,"71,415.50 ","Electricity charges for 102 Petty France, for the Period 01/08/2015 - 31/08/2015."
Ministry of Justice,MoJ HQ,19/11/2015,261000-Fuel and Utilities,NZ406-Strategic Estates Feeder,EDF ENERGY LTD,2013813,"14,283.10 ","Electricity charges for 102 Petty France, for the Period 01/08/2015 - 31/08/2015."
Ministry of Justice,MoJ HQ,23/11/2015,532000-Tangible GBV - Additions,NZ406-Strategic Estates Feeder,SHEPHERD CONSTRUCTION LTD,2014219,"37,297.82 ",102 Petty France and Clive House Refurbishment Works
Ministry of Justice,MoJ HQ,23/11/2015,532000-Tangible GBV - Additions,NZ406-Strategic Estates Feeder,SHEPHERD CONSTRUCTION LTD,2014219,"7,459.56 ",102 Petty France and Clive House Refurbishment Works
Ministry of Justice,MoJ HQ,24/11/2015,222001-Maintenance,NZ406-Strategic Estates Feeder,DTZ DEBENHAM TIE LEUNG#NE13010070,2014268,"101,242.72 ",Facilities Management Fees for May 15 - Oct 15 and Maintenance Fees for Feb 15 - Mar 15
Ministry of Justice,MoJ HQ,19/11/2015,261000-Fuel and Utilities,NZ406-Strategic Estates Feeder,AMEY,2013753,"54,178.18 ",Annual Electricity Metering and Communications charges for the period 10/06/14 - 09/06/15 
Ministry of Justice,MoJ HQ,19/11/2015,261000-Fuel and Utilities,NZ406-Strategic Estates Feeder,AMEY,2013753,"10,835.64 ",Annual Electricity Metering and Communications charges for the period 10/06/14 - 09/06/15 
Ministry of Justice,MoJ HQ,30/11/2015,265000-IT & Telecommunications,NZ406-Strategic Estates Feeder,ATOS IT SERVICES UK LTD,2014556,51.56 ,Provision of IT Peripherals and individually ordered software and equipment
Ministry of Justice,MoJ HQ,02/11/2015,265000-IT & Telecommunications,NZ406-Strategic Estates Feeder,ATOS IT SERVICES UK LTD,2012759,86.52 ,Provision of IT Peripherals and individually ordered software and equipment
Ministry of Justice,MoJ HQ,30/11/2015,265000-IT & Telecommunications,NZ406-Strategic Estates Feeder,ATOS IT SERVICES UK LTD,2014556,11.17 ,Provision of IT Peripherals and individually ordered software and equipment
Ministry of Justice,MoJ HQ,30/11/2015,265000-IT & Telecommunications,NZ406-Strategic Estates Feeder,ATOS IT SERVICES UK LTD,2014556,11.17 ,Provision of IT Peripherals and individually ordered software and equipment
Ministry of Justice,MoJ HQ,02/11/2015,265000-IT & Telecommunications,NZ406-Strategic Estates Feeder,ATOS IT SERVICES UK LTD,2012759,78.26 ,Provision of IT Peripherals and individually ordered software and equipment
Ministry of Justice,MoJ HQ,30/11/2015,265000-IT & Telecommunications,NZ406-Strategic Estates Feeder,ATOS IT SERVICES UK LTD,2014556,46.00 ,Provision of IT Peripherals and individually ordered software and equipment
Ministry of Justice,MoJ HQ,02/11/2015,265000-IT & Telecommunications,NX900-MOJ Shared Services,ATOS IT SERVICES UK LTD,2012759,51.56 ,Provision of IT Peripherals and individually ordered software and equipment
Ministry of Justice,MoJ HQ,02/11/2015,265000-IT & Telecommunications,NX900-MOJ Shared Services,ATOS IT SERVICES UK LTD,2012759,23.24 ,Provision of IT Peripherals and individually ordered software and equipment
Ministry of Justice,MoJ HQ,02/11/2015,265000-IT & Telecommunications,NX900-MOJ Shared Services,ATOS IT SERVICES UK LTD,2012759,23.24 ,Provision of IT Peripherals and individually ordered software and equipment
Ministry of Justice,MoJ HQ,02/11/2015,265000-IT & Telecommunications,NX900-MOJ Shared Services,ATOS IT SERVICES UK LTD,2012759,11.62 ,Provision of IT Peripherals and individually ordered software and equipment
Ministry of Justice,MoJ HQ,30/11/2015,265000-IT & Telecommunications,NX900-MOJ Shared Services,ATOS IT SERVICES UK LTD,2014556,25.78 ,Provision of IT Peripherals and individually ordered software and equipment
Ministry of Justice,MoJ HQ,30/11/2015,265000-IT & Telecommunications,NX900-MOJ Shared Services,ATOS IT SERVICES UK LTD,2014556,25.78 ,Provision of IT Peripherals and individually ordered software and equipment
Ministry of Justice,MoJ HQ,02/11/2015,265000-IT & Telecommunications,NX900-MOJ Shared Services,ATOS IT SERVICES UK LTD,2012759,25.78 ,Provision of IT Peripherals and individually ordered software and equipment
Ministry of Justice,MoJ HQ,05/11/2015,265000-IT & Telecommunications,NX900-MOJ Shared Services,CERTUS SOLUTIONS CONSULTING SERVICES LTD,2012950,"59,325.00 ",Data Migration to Shared Services IT Platfrom
Ministry of Justice,MoJ HQ,05/11/2015,265000-IT & Telecommunications,NX900-MOJ Shared Services,CERTUS SOLUTIONS CONSULTING SERVICES LTD,2012950,"46,300.00 ",Data Migration to Shared Services IT Platfrom
Ministry of Justice,MoJ HQ,09/11/2015,263000-Other Contracted Out Services,NX900-MOJ Shared Services,SSCL (SHARED SERVICES CONNECTED LTD),2013280,"1,659,032.00 ",ICT Network Services
Ministry of Justice,MoJ HQ,19/11/2015,265000-IT & Telecommunications,NX900-MOJ Shared Services,CERTUS SOLUTIONS CONSULTING SERVICES LTD,2013783,"58,562.50 ",Data Migration to Shared Services IT Platfrom
Ministry of Justice,MoJ HQ,19/11/2015,263000-Other Contracted Out Services,NX900-MOJ Shared Services,HP ENTERPRISE SERVICES UK LTD,2013840,"65,564.56 ",Data Migration to Shared Services IT Platfrom
Ministry of Justice,MoJ HQ,19/11/2015,265000-IT & Telecommunications,NX900-MOJ Shared Services,LIBERATA UK LTD,2013864,"126,387.12 ",Data Migration to Shared Services IT Platfrom
Ministry of Justice,MoJ HQ,30/11/2015,265000-IT & Telecommunications,NX900-MOJ Shared Services,ATOS IT SERVICES UK LTD,2014556,34.65 ,Provision of IT Peripherals and individually ordered software and equipment
Ministry of Justice,MoJ HQ,30/11/2015,265000-IT & Telecommunications,NX900-MOJ Shared Services,ATOS IT SERVICES UK LTD,2014556,11.62 ,Provision of IT Peripherals and individually ordered software and equipment
Ministry of Justice,MoJ HQ,30/11/2015,265000-IT & Telecommunications,NX900-MOJ Shared Services,ATOS IT SERVICES UK LTD,2014556,11.62 ,Provision of IT Peripherals and individually ordered software and equipment
Ministry of Justice,MoJ HQ,30/11/2015,265000-IT & Telecommunications,NX900-MOJ Shared Services,ATOS IT SERVICES UK LTD,2014556,11.62 ,Provision of IT Peripherals and individually ordered software and equipment
Ministry of Justice,MoJ HQ,30/11/2015,265000-IT & Telecommunications,NX900-MOJ Shared Services,ATOS IT SERVICES UK LTD,2014556,6.93 ,Provision of IT Peripherals and individually ordered software and equipment
Ministry of Justice,MoJ HQ,16/11/2015,263000-Other Contracted Out Services,NX900-MOJ Shared Services,SSCL (SHARED SERVICES CONNECTED LTD),2013689,"283,000.00 ",Charges for the delivery of Shared services from Shared Services Connected Ltd
Ministry of Justice,MoJ HQ,16/11/2015,263000-Other Contracted Out Services,NX900-MOJ Shared Services,SSCL (SHARED SERVICES CONNECTED LTD),2013689,"283,000.00 ",Charges for the delivery of Shared services from Shared Services Connected Ltd
Ministry of Justice,MoJ HQ,16/11/2015,263000-Other Contracted Out Services,NX900-MOJ Shared Services,SSCL (SHARED SERVICES CONNECTED LTD),2013689,"283,000.00 ",Charges for the delivery of Shared services from Shared Services Connected Ltd
Ministry of Justice,MoJ HQ,16/11/2015,263000-Other Contracted Out Services,NX900-MOJ Shared Services,SSCL (SHARED SERVICES CONNECTED LTD),2013689,"283,000.00 ",Charges for the delivery of Shared services from Shared Services Connected Ltd
Ministry of Justice,MoJ HQ,23/11/2015,263000-Other Contracted Out Services,NX900-MOJ Shared Services,SSCL (SHARED SERVICES CONNECTED LTD),2014225,"309,838.23 ",Charges for the delivery of Shared services from Shared Services Connected Ltd
Ministry of Justice,MoJ HQ,23/11/2015,263000-Other Contracted Out Services,NX900-MOJ Shared Services,SSCL (SHARED SERVICES CONNECTED LTD),2014225,"235,068.01 ",Charges for the delivery of Shared services from Shared Services Connected Ltd
Ministry of Justice,MoJ HQ,30/11/2015,263000-Other Contracted Out Services,NX900-MOJ Shared Services,SSCL (SHARED SERVICES CONNECTED LTD),2014704,"116,800.00 ",NOMS Switchboard Service to July 2017
Ministry of Justice,MoJ HQ,02/11/2015,265000-IT & Telecommunications,OZ501-HRD Feeder,ATOS IT SERVICES UK LTD,2012759,28.84 ,Provision of IT Peripherals and individually ordered software and equipment
Ministry of Justice,MoJ HQ,02/11/2015,265000-IT & Telecommunications,OZ501-HRD Feeder,CERTUS SOLUTIONS CONSULTING SERVICES LTD,2012782,"48,337.50 ",Casework Management Application development. Income received to offsett some of cost.
Ministry of Justice,MoJ HQ,30/11/2015,265000-IT & Telecommunications,OZ501-HRD Feeder,ATOS IT SERVICES UK LTD,2014556,25.78 ,Provision of IT Peripherals and individually ordered software and equipment
Ministry of Justice,MoJ HQ,02/11/2015,265000-IT & Telecommunications,OZ501-HRD Feeder,ATOS IT SERVICES UK LTD,2012759,99.88 ,Provision of IT Peripherals and individually ordered software and equipment
Ministry of Justice,MoJ HQ,02/11/2015,265000-IT & Telecommunications,OZ501-HRD Feeder,ATOS IT SERVICES UK LTD,2012759,43.43 ,Provision of IT Peripherals and individually ordered software and equipment
Ministry of Justice,MoJ HQ,02/11/2015,265000-IT & Telecommunications,NZ900-Finance & Corporate Services,ATOS IT SERVICES UK LTD,2012759,257.80 ,Provision of IT Peripherals and individually ordered software and equipment
Ministry of Justice,MoJ HQ,02/11/2015,265000-IT & Telecommunications,NZ900-Finance & Corporate Services,ATOS IT SERVICES UK LTD,2012759,257.80 ,Provision of IT Peripherals and individually ordered software and equipment
Ministry of Justice,MoJ HQ,02/11/2015,265000-IT & Telecommunications,NZ900-Finance & Corporate Services,ATOS IT SERVICES UK LTD,2012759,25.78 ,Provision of IT Peripherals and individually ordered software and equipment
Ministry of Justice,MoJ HQ,02/11/2015,265000-IT & Telecommunications,NZ900-Finance & Corporate Services,ATOS IT SERVICES UK LTD,2012759,25.78 ,Provision of IT Peripherals and individually ordered software and equipment
Ministry of Justice,MoJ HQ,30/11/2015,265000-IT & Telecommunications,NZ900-Finance & Corporate Services,ATOS IT SERVICES UK LTD,2014556,257.80 ,Provision of IT Peripherals and individually ordered software and equipment
Ministry of Justice,MoJ HQ,30/11/2015,265000-IT & Telecommunications,NZ900-Finance & Corporate Services,ATOS IT SERVICES UK LTD,2014556,257.80 ,Provision of IT Peripherals and individually ordered software and equipment
Ministry of Justice,MoJ HQ,30/11/2015,265000-IT & Telecommunications,NZ900-Finance & Corporate Services,ATOS IT SERVICES UK LTD,2014556,257.80 ,Provision of IT Peripherals and individually ordered software and equipment
Ministry of Justice,MoJ HQ,30/11/2015,265000-IT & Telecommunications,NZ900-Finance & Corporate Services,ATOS IT SERVICES UK LTD,2014556,232.02 ,Provision of IT Peripherals and individually ordered software and equipment
Ministry of Justice,MoJ HQ,30/11/2015,265000-IT & Telecommunications,NZ900-Finance & Corporate Services,ATOS IT SERVICES UK LTD,2014556,111.45 ,Provision of IT Peripherals and individually ordered software and equipment
Ministry of Justice,MoJ HQ,30/11/2015,265000-IT & Telecommunications,NZ900-Finance & Corporate Services,ATOS IT SERVICES UK LTD,2014556,82.78 ,Provision of IT Peripherals and individually ordered software and equipment
Ministry of Justice,MoJ HQ,30/11/2015,265000-IT & Telecommunications,NZ900-Finance & Corporate Services,ATOS IT SERVICES UK LTD,2014556,78.26 ,Provision of IT Peripherals and individually ordered software and equipment
Ministry of Justice,MoJ HQ,30/11/2015,265000-IT & Telecommunications,NZ900-Finance & Corporate Services,ATOS IT SERVICES UK LTD,2014556,51.56 ,Provision of IT Peripherals and individually ordered software and equipment
Ministry of Justice,MoJ HQ,30/11/2015,265000-IT & Telecommunications,NZ900-Finance & Corporate Services,ATOS IT SERVICES UK LTD,2014556,43.43 ,Provision of IT Peripherals and individually ordered software and equipment
Ministry of Justice,MoJ HQ,30/11/2015,265000-IT & Telecommunications,NZ900-Finance & Corporate Services,ATOS IT SERVICES UK LTD,2014556,28.84 ,Provision of IT Peripherals and individually ordered software and equipment
Ministry of Justice,MoJ HQ,30/11/2015,265000-IT & Telecommunications,NZ900-Finance & Corporate Services,ATOS IT SERVICES UK LTD,2014556,11.62 ,Provision of IT Peripherals and individually ordered software and equipment
Ministry of Justice,MoJ HQ,30/11/2015,265000-IT & Telecommunications,NZ900-Finance & Corporate Services,ATOS IT SERVICES UK LTD,2014556,11.62 ,Provision of IT Peripherals and individually ordered software and equipment
Ministry of Justice,MoJ HQ,30/11/2015,265000-IT & Telecommunications,NZ900-Finance & Corporate Services,ATOS IT SERVICES UK LTD,2014556,11.62 ,Provision of IT Peripherals and individually ordered software and equipment
Ministry of Justice,MoJ HQ,30/11/2015,265000-IT & Telecommunications,NZ900-Finance & Corporate Services,ATOS IT SERVICES UK LTD,2014556,11.62 ,Provision of IT Peripherals and individually ordered software and equipment
Ministry of Justice,MoJ HQ,02/11/2015,265000-IT & Telecommunications,NZ900-Finance & Corporate Services,ATOS IT SERVICES UK LTD,2012759,"1,718.74 ",Provision of IT Peripherals and individually ordered software and equipment
Ministry of Justice,MoJ HQ,02/11/2015,265000-IT & Telecommunications,NZ900-Finance & Corporate Services,ATOS IT SERVICES UK LTD,2012759,859.37 ,Provision of IT Peripherals and individually ordered software and equipment
Ministry of Justice,MoJ HQ,05/11/2015,265000-IT & Telecommunications,NZ900-Finance & Corporate Services,ATOS IT SERVICES UK LTD,2012931,"972,479.68 ",ICT Hosting Services 
Ministry of Justice,MoJ HQ,05/11/2015,265000-IT & Telecommunications,NZ900-Finance & Corporate Services,ATOS IT SERVICES UK LTD,2012931,"543,865.57 ",ICT BAU SIAM activity.
Ministry of Justice,MoJ HQ,05/11/2015,265000-IT & Telecommunications,NZ900-Finance & Corporate Services,ATOS IT SERVICES UK LTD,2012931,"53,641.79 ",ICT Telephony Services
Ministry of Justice,MoJ HQ,05/11/2015,265000-IT & Telecommunications,NZ900-Finance & Corporate Services,ATOS IT SERVICES UK LTD,2012931,"10,728.36 ",ICT Telephony Services 
Ministry of Justice,MoJ HQ,05/11/2015,265000-IT & Telecommunications,NZ900-Finance & Corporate Services,ATOS IT SERVICES UK LTD,2012932,"1,400,337.58 ",ICT Network Services 
Ministry of Justice,MoJ HQ,05/11/2015,265000-IT & Telecommunications,NZ900-Finance & Corporate Services,ATOS IT SERVICES UK LTD,2012932,"652,277.06 ",ICT Desktop activity. 
Ministry of Justice,MoJ HQ,05/11/2015,265000-IT & Telecommunications,NZ900-Finance & Corporate Services,ATOS IT SERVICES UK LTD,2012932,"185,738.96 ",ICT Hosting Services 
Ministry of Justice,MoJ HQ,05/11/2015,265000-IT & Telecommunications,NZ900-Finance & Corporate Services,ATOS IT SERVICES UK LTD,2012932,"166,636.54 ",ICT Other 
Ministry of Justice,MoJ HQ,05/11/2015,265000-IT & Telecommunications,NZ900-Finance & Corporate Services,ATOS IT SERVICES UK LTD,2012932,"159,580.00 ",ICT Desktop activity.
Ministry of Justice,MoJ HQ,05/11/2015,265000-IT & Telecommunications,NZ900-Finance & Corporate Services,ATOS IT SERVICES UK LTD,2012932,"95,891.25 ",ICT Other 
Ministry of Justice,MoJ HQ,05/11/2015,265000-IT & Telecommunications,NZ900-Finance & Corporate Services,ATOS IT SERVICES UK LTD,2012932,"70,825.97 ",ICT App Maintenance and Support 
Ministry of Justice,MoJ HQ,05/11/2015,265000-IT & Telecommunications,NZ900-Finance & Corporate Services,ATOS IT SERVICES UK LTD,2012932,"25,428.75 ",ICT Telephony Services 
Ministry of Justice,MoJ HQ,05/11/2015,265000-IT & Telecommunications,NZ900-Finance & Corporate Services,ATOS IT SERVICES UK LTD,2012932,"23,523.44 ",ICT Network Services 
Ministry of Justice,MoJ HQ,05/11/2015,265000-IT & Telecommunications,NZ900-Finance & Corporate Services,ATOS IT SERVICES UK LTD,2012932,"5,085.75 ",ICT Network Services 
Ministry of Justice,MoJ HQ,30/11/2015,265000-IT & Telecommunications,NZ900-Finance & Corporate Services,ATOS IT SERVICES UK LTD,2014556,"1,398.30 ",Provision of IT Peripherals and individually ordered software and equipment
Ministry of Justice,MoJ HQ,30/11/2015,265000-IT & Telecommunications,NZ900-Finance & Corporate Services,ATOS IT SERVICES UK LTD,2014556,859.37 ,Provision of IT Peripherals and individually ordered software and equipment
Ministry of Justice,MoJ HQ,30/11/2015,265000-IT & Telecommunications,NZ900-Finance & Corporate Services,ATOS IT SERVICES UK LTD,2014556,11.62 ,Provision of IT Peripherals and individually ordered software and equipment
Ministry of Justice,MoJ HQ,02/11/2015,265000-IT & Telecommunications,NZ900-Finance & Corporate Services,CGI IT UK LTD,2012783,"2,261,895.99 ",Monthly CGI IT UK LTD costs for Application Maintenance and Support
Ministry of Justice,MoJ HQ,02/11/2015,265000-IT & Telecommunications,NZ900-Finance & Corporate Services,CGI IT UK LTD,2012783,"218,457.79 ",Monthly CGI IT UK LTD costs for Printing 
Ministry of Justice,MoJ HQ,02/11/2015,265000-IT & Telecommunications,NZ900-Finance & Corporate Services,CGI IT UK LTD,2012783,"21,091.00 ",Monthly CGI IT UK LTD costs for Application Maintenance and Support
Ministry of Justice,MoJ HQ,30/11/2015,265000-IT & Telecommunications,NZ900-Finance & Corporate Services,ATOS IT SERVICES UK LTD,2014556,82.78 ,Provision of IT Peripherals and individually ordered software and equipment
Ministry of Justice,MoJ HQ,30/11/2015,265000-IT & Telecommunications,NZ900-Finance & Corporate Services,ATOS IT SERVICES UK LTD,2014556,82.78 ,Provision of IT Peripherals and individually ordered software and equipment
Ministry of Justice,MoJ HQ,30/11/2015,265000-IT & Telecommunications,NZ900-Finance & Corporate Services,ATOS IT SERVICES UK LTD,2014556,82.78 ,Provision of IT Peripherals and individually ordered software and equipment
Ministry of Justice,MoJ HQ,30/11/2015,265000-IT & Telecommunications,NZ900-Finance & Corporate Services,ATOS IT SERVICES UK LTD,2014556,25.78 ,Provision of IT Peripherals and individually ordered software and equipment
Ministry of Justice,MoJ HQ,02/11/2015,265000-IT & Telecommunications,NZ900-Finance & Corporate Services,ATOS IT SERVICES UK LTD,2012759,198.12 ,Provision of IT Peripherals and individually ordered software and equipment
Ministry of Justice,MoJ HQ,02/11/2015,265000-IT & Telecommunications,NZ900-Finance & Corporate Services,ATOS IT SERVICES UK LTD,2012759,69.72 ,Provision of IT Peripherals and individually ordered software and equipment
Ministry of Justice,MoJ HQ,02/11/2015,265000-IT & Telecommunications,NZ900-Finance & Corporate Services,ATOS IT SERVICES UK LTD,2012759,46.48 ,Provision of IT Peripherals and individually ordered software and equipment
Ministry of Justice,MoJ HQ,02/11/2015,265000-IT & Telecommunications,NZ900-Finance & Corporate Services,ATOS IT SERVICES UK LTD,2012759,34.86 ,Provision of IT Peripherals and individually ordered software and equipment
Ministry of Justice,MoJ HQ,02/11/2015,265000-IT & Telecommunications,NZ900-Finance & Corporate Services,ATOS IT SERVICES UK LTD,2012759,34.86 ,Provision of IT Peripherals and individually ordered software and equipment
Ministry of Justice,MoJ HQ,02/11/2015,265000-IT & Telecommunications,NZ900-Finance & Corporate Services,ATOS IT SERVICES UK LTD,2012759,28.84 ,Provision of IT Peripherals and individually ordered software and equipment
Ministry of Justice,MoJ HQ,02/11/2015,265000-IT & Telecommunications,NZ900-Finance & Corporate Services,ATOS IT SERVICES UK LTD,2012759,25.78 ,Provision of IT Peripherals and individually ordered software and equipment
Ministry of Justice,MoJ HQ,02/11/2015,265000-IT & Telecommunications,NZ900-Finance & Corporate Services,ATOS IT SERVICES UK LTD,2012759,25.78 ,Provision of IT Peripherals and individually ordered software and equipment
Ministry of Justice,MoJ HQ,02/11/2015,265000-IT & Telecommunications,NZ900-Finance & Corporate Services,ATOS IT SERVICES UK LTD,2012759,11.62 ,Provision of IT Peripherals and individually ordered software and equipment
Ministry of Justice,MoJ HQ,02/11/2015,265000-IT & Telecommunications,NZ900-Finance & Corporate Services,ATOS IT SERVICES UK LTD,2012759,11.62 ,Provision of IT Peripherals and individually ordered software and equipment
Ministry of Justice,MoJ HQ,02/11/2015,265000-IT & Telecommunications,NZ900-Finance & Corporate Services,ATOS IT SERVICES UK LTD,2012759,11.62 ,Provision of IT Peripherals and individually ordered software and equipment
Ministry of Justice,MoJ HQ,02/11/2015,265000-IT & Telecommunications,NZ900-Finance & Corporate Services,ATOS IT SERVICES UK LTD,2012759,11.62 ,Provision of IT Peripherals and individually ordered software and equipment
Ministry of Justice,MoJ HQ,02/11/2015,265000-IT & Telecommunications,NZ900-Finance & Corporate Services,ATOS IT SERVICES UK LTD,2012759,11.62 ,Provision of IT Peripherals and individually ordered software and equipment
Ministry of Justice,MoJ HQ,02/11/2015,265000-IT & Telecommunications,NZ900-Finance & Corporate Services,ATOS IT SERVICES UK LTD,2012759,11.62 ,Provision of IT Peripherals and individually ordered software and equipment
Ministry of Justice,MoJ HQ,02/11/2015,265000-IT & Telecommunications,NZ900-Finance & Corporate Services,ATOS IT SERVICES UK LTD,2012759,11.62 ,Provision of IT Peripherals and individually ordered software and equipment
Ministry of Justice,MoJ HQ,02/11/2015,265000-IT & Telecommunications,NZ900-Finance & Corporate Services,ATOS IT SERVICES UK LTD,2012759,11.62 ,Provision of IT Peripherals and individually ordered software and equipment
Ministry of Justice,MoJ HQ,02/11/2015,265000-IT & Telecommunications,NZ900-Finance & Corporate Services,ATOS IT SERVICES UK LTD,2012759,11.62 ,Provision of IT Peripherals and individually ordered software and equipment
Ministry of Justice,MoJ HQ,02/11/2015,265000-IT & Telecommunications,NZ900-Finance & Corporate Services,ATOS IT SERVICES UK LTD,2012759,11.62 ,Provision of IT Peripherals and individually ordered software and equipment
Ministry of Justice,MoJ HQ,02/11/2015,265000-IT & Telecommunications,NZ900-Finance & Corporate Services,ATOS IT SERVICES UK LTD,2012759,11.62 ,Provision of IT Peripherals and individually ordered software and equipment
Ministry of Justice,MoJ HQ,02/11/2015,265000-IT & Telecommunications,NZ900-Finance & Corporate Services,ATOS IT SERVICES UK LTD,2012759,11.62 ,Provision of IT Peripherals and individually ordered software and equipment
Ministry of Justice,MoJ HQ,02/11/2015,265000-IT & Telecommunications,NZ900-Finance & Corporate Services,ATOS IT SERVICES UK LTD,2012759,11.62 ,Provision of IT Peripherals and individually ordered software and equipment
Ministry of Justice,MoJ HQ,02/11/2015,265000-IT & Telecommunications,NZ900-Finance & Corporate Services,ATOS IT SERVICES UK LTD,2012759,11.62 ,Provision of IT Peripherals and individually ordered software and equipment
Ministry of Justice,MoJ HQ,02/11/2015,265000-IT & Telecommunications,NZ900-Finance & Corporate Services,ATOS IT SERVICES UK LTD,2012759,11.62 ,Provision of IT Peripherals and individually ordered software and equipment
Ministry of Justice,MoJ HQ,02/11/2015,265000-IT & Telecommunications,NZ900-Finance & Corporate Services,ATOS IT SERVICES UK LTD,2012759,11.62 ,Provision of IT Peripherals and individually ordered software and equipment
Ministry of Justice,MoJ HQ,02/11/2015,265000-IT & Telecommunications,NZ900-Finance & Corporate Services,ATOS IT SERVICES UK LTD,2012759,11.62 ,Provision of IT Peripherals and individually ordered software and equipment
Ministry of Justice,MoJ HQ,02/11/2015,265000-IT & Telecommunications,NZ900-Finance & Corporate Services,ATOS IT SERVICES UK LTD,2012759,11.62 ,Provision of IT Peripherals and individually ordered software and equipment
Ministry of Justice,MoJ HQ,02/11/2015,265000-IT & Telecommunications,NZ900-Finance & Corporate Services,ATOS IT SERVICES UK LTD,2012759,11.62 ,Provision of IT Peripherals and individually ordered software and equipment
Ministry of Justice,MoJ HQ,02/11/2015,265000-IT & Telecommunications,NZ900-Finance & Corporate Services,ATOS IT SERVICES UK LTD,2012759,11.62 ,Provision of IT Peripherals and individually ordered software and equipment
Ministry of Justice,MoJ HQ,02/11/2015,265000-IT & Telecommunications,NZ900-Finance & Corporate Services,ATOS IT SERVICES UK LTD,2012759,11.62 ,Provision of IT Peripherals and individually ordered software and equipment
Ministry of Justice,MoJ HQ,02/11/2015,265000-IT & Telecommunications,NZ900-Finance & Corporate Services,ATOS IT SERVICES UK LTD,2012759,11.62 ,Provision of IT Peripherals and individually ordered software and equipment
Ministry of Justice,MoJ HQ,05/11/2015,265000-IT & Telecommunications,NZ900-Finance & Corporate Services,ATOS IT SERVICES UK LTD,2012932,"41,889.43 ",FITS Transition Milestone costs for Data Centre Tower
Ministry of Justice,MoJ HQ,05/11/2015,265000-IT & Telecommunications,NZ900-Finance & Corporate Services,CGI IT UK LTD,2012951,"26,022.89 ",Workshops for AMS Tower
Ministry of Justice,MoJ HQ,09/11/2015,265000-IT & Telecommunications,NZ900-Finance & Corporate Services,HP ENTERPRISE SERVICES UK LTD,2013200,"142,983.91 ",Exit and Transition  services
Ministry of Justice,MoJ HQ,09/11/2015,223000-Other Expenditure,NZ900-Finance & Corporate Services,SHARPE PRITCHARD LLP,2013269,"44,584.17 ",Legal costs in support of the FITS Programme
Ministry of Justice,MoJ HQ,16/11/2015,265000-IT & Telecommunications,NZ900-Finance & Corporate Services,6POINT6 LTD,2013478,"39,200.00 ",Managed Service to support the delivery of the FITS Programme 
Ministry of Justice,MoJ HQ,16/11/2015,265000-IT & Telecommunications,NZ900-Finance & Corporate Services,6POINT6 LTD,2013478,"7,840.00 ",Managed Service to support the delivery of the FITS Programme 
Ministry of Justice,MoJ HQ,16/11/2015,265000-IT & Telecommunications,NZ900-Finance & Corporate Services,HUNTER MACDONALD,2013584,"207,800.00 ",Managed Service to support the delivery of the FITS Programme 
Ministry of Justice,MoJ HQ,16/11/2015,265000-IT & Telecommunications,NZ900-Finance & Corporate Services,HUNTER MACDONALD,2013584,"41,560.00 ",Managed Service to support the delivery of the FITS Programme 
Ministry of Justice,MoJ HQ,19/11/2015,265000-IT & Telecommunications,NZ900-Finance & Corporate Services,LOCKHEED MARTIN UK LTD,2013867,"192,323.47 ",Financial Transition & Assurance Function services for the SIAM Tower
Ministry of Justice,MoJ HQ,19/11/2015,265000-IT & Telecommunications,NZ900-Finance & Corporate Services,LOCKHEED MARTIN UK LTD,2013867,"125,567.95 ",Financial Transition & Assurance Function services for the SIAM Tower
Ministry of Justice,MoJ HQ,23/11/2015,265000-IT & Telecommunications,NZ900-Finance & Corporate Services,ATOS IT SERVICES UK LTD,2013994,"30,900.00 ",Planning study for the Probation Trusts' Citrix Environment
Ministry of Justice,MoJ HQ,26/11/2015,265000-IT & Telecommunications,NZ900-Finance & Corporate Services,ATOS IT SERVICES UK LTD,2014285,"61,050.21 ",FITS Transition Milestone costs for Data Centre Tower
Ministry of Justice,MoJ HQ,30/11/2015,265000-IT & Telecommunications,NZ900-Finance & Corporate Services,ATOS IT SERVICES UK LTD,2014556,78.26 ,Provision of IT Peripherals and individually ordered software and equipment
Ministry of Justice,MoJ HQ,30/11/2015,265000-IT & Telecommunications,NZ900-Finance & Corporate Services,ATOS IT SERVICES UK LTD,2014556,23.24 ,Provision of IT Peripherals and individually ordered software and equipment
Ministry of Justice,MoJ HQ,30/11/2015,265000-IT & Telecommunications,NZ900-Finance & Corporate Services,ATOS IT SERVICES UK LTD,2014556,23.24 ,Provision of IT Peripherals and individually ordered software and equipment
Ministry of Justice,MoJ HQ,30/11/2015,265000-IT & Telecommunications,NZ900-Finance & Corporate Services,ATOS IT SERVICES UK LTD,2014556,11.62 ,Provision of IT Peripherals and individually ordered software and equipment
Ministry of Justice,MoJ HQ,30/11/2015,265000-IT & Telecommunications,NZ900-Finance & Corporate Services,ATOS IT SERVICES UK LTD,2014556,11.62 ,Provision of IT Peripherals and individually ordered software and equipment
Ministry of Justice,MoJ HQ,30/11/2015,265000-IT & Telecommunications,NZ900-Finance & Corporate Services,ATOS IT SERVICES UK LTD,2014556,11.62 ,Provision of IT Peripherals and individually ordered software and equipment
Ministry of Justice,MoJ HQ,30/11/2015,265000-IT & Telecommunications,NZ900-Finance & Corporate Services,ATOS IT SERVICES UK LTD,2014556,11.62 ,Provision of IT Peripherals and individually ordered software and equipment
Ministry of Justice,MoJ HQ,30/11/2015,265000-IT & Telecommunications,NZ900-Finance & Corporate Services,ATOS IT SERVICES UK LTD,2014556,11.62 ,Provision of IT Peripherals and individually ordered software and equipment
Ministry of Justice,MoJ HQ,30/11/2015,265000-IT & Telecommunications,NZ900-Finance & Corporate Services,ATOS IT SERVICES UK LTD,2014556,11.62 ,Provision of IT Peripherals and individually ordered software and equipment
Ministry of Justice,MoJ HQ,30/11/2015,265000-IT & Telecommunications,NZ900-Finance & Corporate Services,ATOS IT SERVICES UK LTD,2014556,11.62 ,Provision of IT Peripherals and individually ordered software and equipment
Ministry of Justice,MoJ HQ,30/11/2015,265000-IT & Telecommunications,NZ900-Finance & Corporate Services,ATOS IT SERVICES UK LTD,2014556,11.62 ,Provision of IT Peripherals and individually ordered software and equipment
Ministry of Justice,MoJ HQ,30/11/2015,265000-IT & Telecommunications,NZ900-Finance & Corporate Services,ATOS IT SERVICES UK LTD,2014556,11.62 ,Provision of IT Peripherals and individually ordered software and equipment
Ministry of Justice,MoJ HQ,30/11/2015,265000-IT & Telecommunications,NZ900-Finance & Corporate Services,ATOS IT SERVICES UK LTD,2014556,11.62 ,Provision of IT Peripherals and individually ordered software and equipment
Ministry of Justice,MoJ HQ,30/11/2015,265000-IT & Telecommunications,NZ900-Finance & Corporate Services,CGI IT UK LTD,2014577,"26,343.77 ",Exit and Transition  services
Ministry of Justice,MoJ HQ,30/11/2015,265000-IT & Telecommunications,NZ900-Finance & Corporate Services,SOPRA STERIA LTD,2014703,"83,689.34 ",Support for new WAN Links to assist with Transition
Ministry of Justice,MoJ HQ,30/11/2015,265000-IT & Telecommunications,NZ900-Finance & Corporate Services,SOPRA STERIA LTD,2014703,"32,427.90 ",Support for new WAN Links to assist with Transition
Ministry of Justice,MoJ HQ,30/11/2015,265000-IT & Telecommunications,NZ900-Finance & Corporate Services,SOPRA STERIA LTD,2014703,"32,427.90 ",Support for new WAN Links to assist with Transition
Ministry of Justice,MoJ HQ,30/11/2015,265000-IT & Telecommunications,NZ900-Finance & Corporate Services,SOPRA STERIA LTD,2014703,"16,737.87 ",Support for new WAN Links to assist with Transition
Ministry of Justice,MoJ HQ,30/11/2015,265000-IT & Telecommunications,NZ900-Finance & Corporate Services,SOPRA STERIA LTD,2014703,"6,485.58 ",Support for new WAN Links to assist with Transition
Ministry of Justice,MoJ HQ,30/11/2015,265000-IT & Telecommunications,NZ900-Finance & Corporate Services,SOPRA STERIA LTD,2014703,"6,485.58 ",Support for new WAN Links to assist with Transition
Ministry of Justice,MoJ HQ,24/11/2015,265000-IT & Telecommunications,NZ900-Finance & Corporate Services,HOME OFFICE,10598,"90,400.00 ",Testing Team support from the Home Office
Ministry of Justice,MoJ HQ,24/11/2015,265000-IT & Telecommunications,NZ900-Finance & Corporate Services,HOME OFFICE,10598,"18,080.00 ",Testing Team support from the Home Office
Ministry of Justice,MoJ HQ,09/11/2015,265000-IT & Telecommunications,NZ900-Finance & Corporate Services,LOCKHEED MARTIN UK LTD,2013210,"183,052.93 ",Service Integration and Management Tower Transition Costs
Ministry of Justice,MoJ HQ,09/11/2015,265000-IT & Telecommunications,NZ900-Finance & Corporate Services,LOCKHEED MARTIN UK LTD,2013210,"66,951.78 ",Service Integration and Management Tower Transition Costs
Ministry of Justice,MoJ HQ,09/11/2015,265000-IT & Telecommunications,NZ900-Finance & Corporate Services,QINETIQ LTD,2013261,"146,139.39 ",Transition costs for the Security Protective Monitoring Tower
Ministry of Justice,MoJ HQ,26/11/2015,265000-IT & Telecommunications,NZ900-Finance & Corporate Services,ARK DATA CENTRES LTD,2014283,"77,580.00 ",Further transition for the Data Centre Tower
Ministry of Justice,MoJ HQ,26/11/2015,265000-IT & Telecommunications,NZ900-Finance & Corporate Services,VODAFONE CORPORATE LTD,2014519,"51,435.00 ",Transition costs for the Video and Voice Integration Tower
Ministry of Justice,MoJ HQ,16/11/2015,265000-IT & Telecommunications,NZ900-Finance & Corporate Services,LOCKHEED MARTIN UK LTD,2013609,"55,020.87 ",Service Transition T&M
Ministry of Justice,MoJ HQ,19/11/2015,265000-IT & Telecommunications,NZ900-Finance & Corporate Services,LOCKHEED MARTIN UK LTD,2013867,"418,021.69 ",Monthly Lockheed Martin costs for SIAM charges
Ministry of Justice,MoJ HQ,19/11/2015,265000-IT & Telecommunications,NZ900-Finance & Corporate Services,LOCKHEED MARTIN UK LTD,2013867,"119,358.22 ",Monthly Lockheed Martin costs for SIAM charges
Ministry of Justice,MoJ HQ,05/11/2015,265000-IT & Telecommunications,NZ900-Finance & Corporate Services,VODAFONE LTD (RETAIL),2013090,"96,408.79 ",VVI Fixed Charges April 2015 - March 2016.
Ministry of Justice,MoJ HQ,05/11/2015,265000-IT & Telecommunications,NZ900-Finance & Corporate Services,VODAFONE LTD (RETAIL),2013090,"91,570.50 ",VVI Fixed Charges April 2015 - March 2016.
Ministry of Justice,MoJ HQ,05/11/2015,265000-IT & Telecommunications,NZ900-Finance & Corporate Services,VODAFONE LTD (RETAIL),2013090,"19,281.76 ",VVI Fixed Charges April 2015 - March 2016.
Ministry of Justice,MoJ HQ,16/11/2015,265000-IT & Telecommunications,NZ900-Finance & Corporate Services,VODAFONE LTD (RETAIL),2013717,"376,247.12 ",VVI Fixed Charges April 2015 - March 2016.
Ministry of Justice,MoJ HQ,23/11/2015,265000-IT & Telecommunications,NZ900-Finance & Corporate Services,VODAFONE LTD (RETAIL),2014248,"21,611.12 ",VVI Fixed Charges April 2015 - March 2016.
Ministry of Justice,MoJ HQ,23/11/2015,265000-IT & Telecommunications,NZ900-Finance & Corporate Services,VODAFONE LTD (RETAIL),2014248,"4,322.22 ",VVI Fixed Charges April 2015 - March 2016.
Ministry of Justice,MoJ HQ,12/11/2015,265000-IT & Telecommunications,NZ900-Finance & Corporate Services,ARK DATA CENTRES LTD,2013317,"208,066.22 ",Datacentre Costs November 2015
Ministry of Justice,MoJ HQ,05/11/2015,265000-IT & Telecommunications,NZ900-Finance & Corporate Services,HP ENTERPRISE SERVICES UK LTD,2012994,"576,807.60 ",HP Monthly Network service charges
Ministry of Justice,MoJ HQ,05/11/2015,265000-IT & Telecommunications,NZ900-Finance & Corporate Services,HP ENTERPRISE SERVICES UK LTD,2012994,"403,068.89 ",HP Monthly General service charges
Ministry of Justice,MoJ HQ,05/11/2015,265000-IT & Telecommunications,NZ900-Finance & Corporate Services,HP ENTERPRISE SERVICES UK LTD,2012994,"75,980.95 ",HP Monthly Telephony service charges
Ministry of Justice,MoJ HQ,05/11/2015,265000-IT & Telecommunications,NZ900-Finance & Corporate Services,HP ENTERPRISE SERVICES UK LTD,2012994,"50,396.05 ",HP Monthly General service charges
Ministry of Justice,MoJ HQ,05/11/2015,265000-IT & Telecommunications,NZ900-Finance & Corporate Services,HP ENTERPRISE SERVICES UK LTD,2012994,"15,196.19 ",HP Monthly General service charges
Ministry of Justice,MoJ HQ,09/11/2015,265000-IT & Telecommunications,NZ900-Finance & Corporate Services,EVERYTHING EVERYWHERE LTD,2013184,"22,284.54 ",HP Monthly Telephony service charges
Ministry of Justice,MoJ HQ,09/11/2015,265000-IT & Telecommunications,NZ900-Finance & Corporate Services,EVERYTHING EVERYWHERE LTD,2013184,"4,456.91 ",HP Monthly Telephony service charges
Ministry of Justice,MoJ HQ,09/11/2015,265000-IT & Telecommunications,NZ900-Finance & Corporate Services,EVERYTHING EVERYWHERE LTD,2013184,511.61 ,HP Monthly Telephony service charges
Ministry of Justice,MoJ HQ,09/11/2015,265000-IT & Telecommunications,NZ900-Finance & Corporate Services,EVERYTHING EVERYWHERE LTD,2013184,0.01 ,HP Monthly Telephony service charges
Ministry of Justice,MoJ HQ,16/11/2015,265000-IT & Telecommunications,NZ900-Finance & Corporate Services,HP ENTERPRISE SERVICES UK LTD,2013581,"1,267,382.75 ",HP Application Maintenance & support monthly service charges
Ministry of Justice,MoJ HQ,16/11/2015,265000-IT & Telecommunications,NZ900-Finance & Corporate Services,HP ENTERPRISE SERVICES UK LTD,2013581,"625,936.64 ",HP Monthly Hosting service charges
Ministry of Justice,MoJ HQ,16/11/2015,265000-IT & Telecommunications,NZ900-Finance & Corporate Services,HP ENTERPRISE SERVICES UK LTD,2013581,"399,187.60 ",HP Monthly SIAM service charges
Ministry of Justice,MoJ HQ,16/11/2015,265000-IT & Telecommunications,NZ900-Finance & Corporate Services,HP ENTERPRISE SERVICES UK LTD,2013581,"235,581.61 ",HP Monthly Security service charges
Ministry of Justice,MoJ HQ,26/11/2015,265000-IT & Telecommunications,NZ900-Finance & Corporate Services,TRUSTMARQUE SOLUTIONS LTD,2014512,"143,773.06 ",HP Application Maintenance & support monthly service charges
Ministry of Justice,MoJ HQ,26/11/2015,265000-IT & Telecommunications,NZ900-Finance & Corporate Services,TRUSTMARQUE SOLUTIONS LTD,2014512,"28,754.61 ",HP Application Maintenance & support monthly service charges
Ministry of Justice,MoJ HQ,05/11/2015,265000-IT & Telecommunications,NZ900-Finance & Corporate Services,i2N LTD,2012999,"25,000.00 ", Offender Management National Infrastructure Support and Maintenance
Ministry of Justice,MoJ HQ,05/11/2015,265000-IT & Telecommunications,NZ900-Finance & Corporate Services,i2N LTD,2012999,"5,000.00 ", Offender Management National Infrastructure Support and Maintenance
Ministry of Justice,MoJ HQ,12/11/2015,265000-IT & Telecommunications,NZ900-Finance & Corporate Services,SOPRA STERIA LTD,2013433,"197,991.00 ", Offender Management National Infrastructure Applications Maint & Support
Ministry of Justice,MoJ HQ,19/11/2015,265000-IT & Telecommunications,NZ900-Finance & Corporate Services,LOCKHEED MARTIN UK LTD,2013867,"232,184.00 ", Offender Management National Infrastructure End User Computing - Desktops 
Ministry of Justice,MoJ HQ,19/11/2015,265000-IT & Telecommunications,NZ900-Finance & Corporate Services,SOPRA STERIA LTD,2013934,"65,997.00 ", Offender Management National Infrastructure End User Computing - Desktops 
Ministry of Justice,MoJ HQ,23/11/2015,265000-IT & Telecommunications,NZ900-Finance & Corporate Services,SOPRA STERIA LTD,2014223,"834,887.65 ", Offender Management National Infrastructure End User Computing - Desktops 
Ministry of Justice,MoJ HQ,23/11/2015,265000-IT & Telecommunications,NZ900-Finance & Corporate Services,SOPRA STERIA LTD,2014223,"819,810.44 ", Offender Management National Infrastructure End User Computing - Desktops 
Ministry of Justice,MoJ HQ,23/11/2015,265000-IT & Telecommunications,NZ900-Finance & Corporate Services,SOPRA STERIA LTD,2014223,"559,850.12 ", Offender Management National Infrastructure End User Computing - Desktops 
Ministry of Justice,MoJ HQ,23/11/2015,265000-IT & Telecommunications,NZ900-Finance & Corporate Services,SOPRA STERIA LTD,2014223,"75,141.52 ", Offender Management National Infrastructure End User Computing - Desktops 
Ministry of Justice,MoJ HQ,23/11/2015,265000-IT & Telecommunications,NZ900-Finance & Corporate Services,SOPRA STERIA LTD,2014223,"72,097.41 ", Offender Management National Infrastructure End User Computing - Desktops 
Ministry of Justice,MoJ HQ,23/11/2015,265000-IT & Telecommunications,NZ900-Finance & Corporate Services,SOPRA STERIA LTD,2014223,"63,980.03 ", Offender Management National Infrastructure End User Computing - Desktops 
Ministry of Justice,MoJ HQ,23/11/2015,265000-IT & Telecommunications,NZ900-Finance & Corporate Services,SOPRA STERIA LTD,2014223,"60,200.76 ", Offender Management National Infrastructure End User Computing - Desktops 
Ministry of Justice,MoJ HQ,05/11/2015,265000-IT & Telecommunications,NZ900-Finance & Corporate Services,FUJITSU SERVICES LTD,2012978,"153,839.28 ",Service Integration & Management Service Management
Ministry of Justice,MoJ HQ,05/11/2015,265000-IT & Telecommunications,NZ900-Finance & Corporate Services,FUJITSU SERVICES LTD,2012978,"72,873.99 ",Service Integration & Management Solution Assurance
Ministry of Justice,MoJ HQ,05/11/2015,265000-IT & Telecommunications,NZ900-Finance & Corporate Services,FUJITSU SERVICES LTD,2012978,"46,935.57 ",Service Integration & Management Service Desk
Ministry of Justice,MoJ HQ,05/11/2015,265000-IT & Telecommunications,NZ900-Finance & Corporate Services,FUJITSU SERVICES LTD,2012978,"36,860.00 ",Service Integration & Management Data Centre
Ministry of Justice,MoJ HQ,12/11/2015,265000-IT & Telecommunications,NZ900-Finance & Corporate Services,FUJITSU SERVICES LTD,2013367,"526,340.03 ",Service Integration & Management Operations
Ministry of Justice,MoJ HQ,12/11/2015,265000-IT & Telecommunications,NZ900-Finance & Corporate Services,FUJITSU SERVICES LTD,2013367,"45,207.40 ",Service Integration & Management Governance
Ministry of Justice,MoJ HQ,12/11/2015,265000-IT & Telecommunications,NZ900-Finance & Corporate Services,FUJITSU SERVICES LTD,2013367,"35,235.35 ",Service Integration & Management Security Management
Ministry of Justice,MoJ HQ,16/11/2015,265000-IT & Telecommunications,NZ900-Finance & Corporate Services,VODAFONE LTD (RETAIL),2013717,"199,920.38 ",Criminal Justice Secure Mail (CJSM) Monthly Charge 
Ministry of Justice,MoJ HQ,16/11/2015,265000-IT & Telecommunications,NZ900-Finance & Corporate Services,VODAFONE LTD (RETAIL),2013717,"39,984.08 ",Criminal Justice Secure Mail (CJSM) Monthly Charge 
Ministry of Justice,MoJ HQ,02/11/2015,265000-IT & Telecommunications,NZ900-Finance & Corporate Services,ATOS IT SERVICES UK LTD,2012759,"1,406.15 ",Provision of IT Peripherals and individually ordered software and equipment
Ministry of Justice,MoJ HQ,02/11/2015,265000-IT & Telecommunications,NZ900-Finance & Corporate Services,ATOS IT SERVICES UK LTD,2012759,"1,406.15 ",Provision of IT Peripherals and individually ordered software and equipment
Ministry of Justice,MoJ HQ,02/11/2015,265000-IT & Telecommunications,NZ900-Finance & Corporate Services,ATOS IT SERVICES UK LTD,2012759,"1,398.30 ",Provision of IT Peripherals and individually ordered software and equipment
Ministry of Justice,MoJ HQ,02/11/2015,265000-IT & Telecommunications,NZ900-Finance & Corporate Services,ATOS IT SERVICES UK LTD,2012759,807.72 ,Provision of IT Peripherals and individually ordered software and equipment
Ministry of Justice,MoJ HQ,02/11/2015,265000-IT & Telecommunications,NZ900-Finance & Corporate Services,ATOS IT SERVICES UK LTD,2012759,381.33 ,Provision of IT Peripherals and individually ordered software and equipment
Ministry of Justice,MoJ HQ,02/11/2015,265000-IT & Telecommunications,NZ900-Finance & Corporate Services,ATOS IT SERVICES UK LTD,2012759,242.09 ,Provision of IT Peripherals and individually ordered software and equipment
Ministry of Justice,MoJ HQ,02/11/2015,265000-IT & Telecommunications,NZ900-Finance & Corporate Services,ATOS IT SERVICES UK LTD,2012759,242.09 ,Provision of IT Peripherals and individually ordered software and equipment
Ministry of Justice,MoJ HQ,02/11/2015,265000-IT & Telecommunications,NZ900-Finance & Corporate Services,ATOS IT SERVICES UK LTD,2012759,234.78 ,Provision of IT Peripherals and individually ordered software and equipment
Ministry of Justice,MoJ HQ,02/11/2015,265000-IT & Telecommunications,NZ900-Finance & Corporate Services,ATOS IT SERVICES UK LTD,2012759,128.90 ,Provision of IT Peripherals and individually ordered software and equipment
Ministry of Justice,MoJ HQ,02/11/2015,265000-IT & Telecommunications,NZ900-Finance & Corporate Services,ATOS IT SERVICES UK LTD,2012759,120.68 ,Provision of IT Peripherals and individually ordered software and equipment
Ministry of Justice,MoJ HQ,02/11/2015,265000-IT & Telecommunications,NZ900-Finance & Corporate Services,ATOS IT SERVICES UK LTD,2012759,110.13 ,Provision of IT Peripherals and individually ordered software and equipment
Ministry of Justice,MoJ HQ,02/11/2015,265000-IT & Telecommunications,NZ900-Finance & Corporate Services,ATOS IT SERVICES UK LTD,2012759,99.88 ,Provision of IT Peripherals and individually ordered software and equipment
Ministry of Justice,MoJ HQ,02/11/2015,265000-IT & Telecommunications,NZ900-Finance & Corporate Services,ATOS IT SERVICES UK LTD,2012759,83.46 ,Provision of IT Peripherals and individually ordered software and equipment
Ministry of Justice,MoJ HQ,02/11/2015,265000-IT & Telecommunications,NZ900-Finance & Corporate Services,ATOS IT SERVICES UK LTD,2012759,83.46 ,Provision of IT Peripherals and individually ordered software and equipment
Ministry of Justice,MoJ HQ,02/11/2015,265000-IT & Telecommunications,NZ900-Finance & Corporate Services,ATOS IT SERVICES UK LTD,2012759,82.78 ,Provision of IT Peripherals and individually ordered software and equipment
Ministry of Justice,MoJ HQ,02/11/2015,265000-IT & Telecommunications,NZ900-Finance & Corporate Services,ATOS IT SERVICES UK LTD,2012759,82.78 ,Provision of IT Peripherals and individually ordered software and equipment
Ministry of Justice,MoJ HQ,02/11/2015,265000-IT & Telecommunications,NZ900-Finance & Corporate Services,ATOS IT SERVICES UK LTD,2012759,78.26 ,Provision of IT Peripherals and individually ordered software and equipment
Ministry of Justice,MoJ HQ,02/11/2015,265000-IT & Telecommunications,NZ900-Finance & Corporate Services,ATOS IT SERVICES UK LTD,2012759,60.34 ,Provision of IT Peripherals and individually ordered software and equipment
Ministry of Justice,MoJ HQ,02/11/2015,265000-IT & Telecommunications,NZ900-Finance & Corporate Services,ATOS IT SERVICES UK LTD,2012759,46.00 ,Provision of IT Peripherals and individually ordered software and equipment
Ministry of Justice,MoJ HQ,02/11/2015,265000-IT & Telecommunications,NZ900-Finance & Corporate Services,ATOS IT SERVICES UK LTD,2012759,46.00 ,Provision of IT Peripherals and individually ordered software and equipment
Ministry of Justice,MoJ HQ,02/11/2015,265000-IT & Telecommunications,NZ900-Finance & Corporate Services,ATOS IT SERVICES UK LTD,2012759,43.43 ,Provision of IT Peripherals and individually ordered software and equipment
Ministry of Justice,MoJ HQ,02/11/2015,265000-IT & Telecommunications,NZ900-Finance & Corporate Services,ATOS IT SERVICES UK LTD,2012759,43.43 ,Provision of IT Peripherals and individually ordered software and equipment
Ministry of Justice,MoJ HQ,02/11/2015,265000-IT & Telecommunications,NZ900-Finance & Corporate Services,ATOS IT SERVICES UK LTD,2012759,28.84 ,Provision of IT Peripherals and individually ordered software and equipment
Ministry of Justice,MoJ HQ,02/11/2015,265000-IT & Telecommunications,NZ900-Finance & Corporate Services,ATOS IT SERVICES UK LTD,2012759,25.96 ,Provision of IT Peripherals and individually ordered software and equipment
Ministry of Justice,MoJ HQ,02/11/2015,265000-IT & Telecommunications,NZ900-Finance & Corporate Services,ATOS IT SERVICES UK LTD,2012759,25.78 ,Provision of IT Peripherals and individually ordered software and equipment
Ministry of Justice,MoJ HQ,02/11/2015,265000-IT & Telecommunications,NZ900-Finance & Corporate Services,ATOS IT SERVICES UK LTD,2012759,25.78 ,Provision of IT Peripherals and individually ordered software and equipment
Ministry of Justice,MoJ HQ,02/11/2015,265000-IT & Telecommunications,NZ900-Finance & Corporate Services,ATOS IT SERVICES UK LTD,2012759,25.78 ,Provision of IT Peripherals and individually ordered software and equipment
Ministry of Justice,MoJ HQ,02/11/2015,265000-IT & Telecommunications,NZ900-Finance & Corporate Services,ATOS IT SERVICES UK LTD,2012759,23.24 ,Provision of IT Peripherals and individually ordered software and equipment
Ministry of Justice,MoJ HQ,02/11/2015,265000-IT & Telecommunications,NZ900-Finance & Corporate Services,ATOS IT SERVICES UK LTD,2012759,23.24 ,Provision of IT Peripherals and individually ordered software and equipment
Ministry of Justice,MoJ HQ,02/11/2015,265000-IT & Telecommunications,NZ900-Finance & Corporate Services,ATOS IT SERVICES UK LTD,2012759,17.16 ,Provision of IT Peripherals and individually ordered software and equipment
Ministry of Justice,MoJ HQ,02/11/2015,265000-IT & Telecommunications,NZ900-Finance & Corporate Services,ATOS IT SERVICES UK LTD,2012759,11.62 ,Provision of IT Peripherals and individually ordered software and equipment
Ministry of Justice,MoJ HQ,02/11/2015,265000-IT & Telecommunications,NZ900-Finance & Corporate Services,ATOS IT SERVICES UK LTD,2012759,11.62 ,Provision of IT Peripherals and individually ordered software and equipment
Ministry of Justice,MoJ HQ,02/11/2015,265000-IT & Telecommunications,NZ900-Finance & Corporate Services,ATOS IT SERVICES UK LTD,2012759,11.62 ,Provision of IT Peripherals and individually ordered software and equipment
Ministry of Justice,MoJ HQ,02/11/2015,265000-IT & Telecommunications,NZ900-Finance & Corporate Services,ATOS IT SERVICES UK LTD,2012759,11.62 ,Provision of IT Peripherals and individually ordered software and equipment
Ministry of Justice,MoJ HQ,02/11/2015,265000-IT & Telecommunications,NZ900-Finance & Corporate Services,ATOS IT SERVICES UK LTD,2012759,11.62 ,Provision of IT Peripherals and individually ordered software and equipment
Ministry of Justice,MoJ HQ,02/11/2015,265000-IT & Telecommunications,NZ900-Finance & Corporate Services,ATOS IT SERVICES UK LTD,2012759,11.62 ,Provision of IT Peripherals and individually ordered software and equipment
Ministry of Justice,MoJ HQ,02/11/2015,265000-IT & Telecommunications,NZ900-Finance & Corporate Services,ATOS IT SERVICES UK LTD,2012759,11.62 ,Provision of IT Peripherals and individually ordered software and equipment
Ministry of Justice,MoJ HQ,02/11/2015,265000-IT & Telecommunications,NZ900-Finance & Corporate Services,ATOS IT SERVICES UK LTD,2012759,10.09 ,Provision of IT Peripherals and individually ordered software and equipment
Ministry of Justice,MoJ HQ,02/11/2015,265000-IT & Telecommunications,NZ900-Finance & Corporate Services,ATOS IT SERVICES UK LTD,2012759,10.09 ,Provision of IT Peripherals and individually ordered software and equipment
Ministry of Justice,MoJ HQ,02/11/2015,265000-IT & Telecommunications,NZ900-Finance & Corporate Services,ATOS IT SERVICES UK LTD,2012759,10.09 ,Provision of IT Peripherals and individually ordered software and equipment
Ministry of Justice,MoJ HQ,02/11/2015,265000-IT & Telecommunications,NZ900-Finance & Corporate Services,ATOS IT SERVICES UK LTD,2012759,10.09 ,Provision of IT Peripherals and individually ordered software and equipment
Ministry of Justice,MoJ HQ,02/11/2015,265000-IT & Telecommunications,NZ900-Finance & Corporate Services,ATOS IT SERVICES UK LTD,2012759,10.09 ,Provision of IT Peripherals and individually ordered software and equipment
Ministry of Justice,MoJ HQ,02/11/2015,265000-IT & Telecommunications,NZ900-Finance & Corporate Services,ATOS IT SERVICES UK LTD,2012759,10.09 ,Provision of IT Peripherals and individually ordered software and equipment
Ministry of Justice,MoJ HQ,02/11/2015,265000-IT & Telecommunications,NZ900-Finance & Corporate Services,ATOS IT SERVICES UK LTD,2012759,9.09 ,Provision of IT Peripherals and individually ordered software and equipment
Ministry of Justice,MoJ HQ,02/11/2015,265000-IT & Telecommunications,NZ900-Finance & Corporate Services,ATOS IT SERVICES UK LTD,2012759,9.09 ,Provision of IT Peripherals and individually ordered software and equipment
Ministry of Justice,MoJ HQ,02/11/2015,265000-IT & Telecommunications,NZ900-Finance & Corporate Services,ATOS IT SERVICES UK LTD,2012759,9.09 ,Provision of IT Peripherals and individually ordered software and equipment
Ministry of Justice,MoJ HQ,02/11/2015,265000-IT & Telecommunications,NZ900-Finance & Corporate Services,ATOS IT SERVICES UK LTD,2012759,9.09 ,Provision of IT Peripherals and individually ordered software and equipment
Ministry of Justice,MoJ HQ,02/11/2015,265000-IT & Telecommunications,NZ900-Finance & Corporate Services,ATOS IT SERVICES UK LTD,2012759,8.19 ,Provision of IT Peripherals and individually ordered software and equipment
Ministry of Justice,MoJ HQ,02/11/2015,265000-IT & Telecommunications,NZ900-Finance & Corporate Services,ATOS IT SERVICES UK LTD,2012759,8.19 ,Provision of IT Peripherals and individually ordered software and equipment
Ministry of Justice,MoJ HQ,30/11/2015,265000-IT & Telecommunications,NZ900-Finance & Corporate Services,ATOS IT SERVICES UK LTD,2014556,"1,406.15 ",Provision of IT Peripherals and individually ordered software and equipment
Ministry of Justice,MoJ HQ,30/11/2015,265000-IT & Telecommunications,NZ900-Finance & Corporate Services,ATOS IT SERVICES UK LTD,2014556,"1,398.30 ",Provision of IT Peripherals and individually ordered software and equipment
Ministry of Justice,MoJ HQ,30/11/2015,265000-IT & Telecommunications,NZ900-Finance & Corporate Services,ATOS IT SERVICES UK LTD,2014556,281.23 ,Provision of IT Peripherals and individually ordered software and equipment
Ministry of Justice,MoJ HQ,30/11/2015,265000-IT & Telecommunications,NZ900-Finance & Corporate Services,ATOS IT SERVICES UK LTD,2014556,242.09 ,Provision of IT Peripherals and individually ordered software and equipment
Ministry of Justice,MoJ HQ,30/11/2015,265000-IT & Telecommunications,NZ900-Finance & Corporate Services,ATOS IT SERVICES UK LTD,2014556,242.09 ,Provision of IT Peripherals and individually ordered software and equipment
Ministry of Justice,MoJ HQ,30/11/2015,265000-IT & Telecommunications,NZ900-Finance & Corporate Services,ATOS IT SERVICES UK LTD,2014556,242.09 ,Provision of IT Peripherals and individually ordered software and equipment
Ministry of Justice,MoJ HQ,30/11/2015,265000-IT & Telecommunications,NZ900-Finance & Corporate Services,ATOS IT SERVICES UK LTD,2014556,77.34 ,Provision of IT Peripherals and individually ordered software and equipment
Ministry of Justice,MoJ HQ,30/11/2015,265000-IT & Telecommunications,NZ900-Finance & Corporate Services,ATOS IT SERVICES UK LTD,2014556,66.86 ,Provision of IT Peripherals and individually ordered software and equipment
Ministry of Justice,MoJ HQ,30/11/2015,265000-IT & Telecommunications,NZ900-Finance & Corporate Services,ATOS IT SERVICES UK LTD,2014556,56.55 ,Provision of IT Peripherals and individually ordered software and equipment
Ministry of Justice,MoJ HQ,30/11/2015,265000-IT & Telecommunications,NZ900-Finance & Corporate Services,ATOS IT SERVICES UK LTD,2014556,46.00 ,Provision of IT Peripherals and individually ordered software and equipment
Ministry of Justice,MoJ HQ,30/11/2015,265000-IT & Telecommunications,NZ900-Finance & Corporate Services,ATOS IT SERVICES UK LTD,2014556,30.27 ,Provision of IT Peripherals and individually ordered software and equipment
Ministry of Justice,MoJ HQ,30/11/2015,265000-IT & Telecommunications,NZ900-Finance & Corporate Services,ATOS IT SERVICES UK LTD,2014556,28.84 ,Provision of IT Peripherals and individually ordered software and equipment
Ministry of Justice,MoJ HQ,30/11/2015,265000-IT & Telecommunications,NZ900-Finance & Corporate Services,ATOS IT SERVICES UK LTD,2014556,28.84 ,Provision of IT Peripherals and individually ordered software and equipment
Ministry of Justice,MoJ HQ,30/11/2015,265000-IT & Telecommunications,NZ900-Finance & Corporate Services,ATOS IT SERVICES UK LTD,2014556,28.84 ,Provision of IT Peripherals and individually ordered software and equipment
Ministry of Justice,MoJ HQ,30/11/2015,265000-IT & Telecommunications,NZ900-Finance & Corporate Services,ATOS IT SERVICES UK LTD,2014556,25.95 ,Provision of IT Peripherals and individually ordered software and equipment
Ministry of Justice,MoJ HQ,30/11/2015,265000-IT & Telecommunications,NZ900-Finance & Corporate Services,ATOS IT SERVICES UK LTD,2014556,25.78 ,Provision of IT Peripherals and individually ordered software and equipment
Ministry of Justice,MoJ HQ,30/11/2015,265000-IT & Telecommunications,NZ900-Finance & Corporate Services,ATOS IT SERVICES UK LTD,2014556,25.78 ,Provision of IT Peripherals and individually ordered software and equipment
Ministry of Justice,MoJ HQ,30/11/2015,265000-IT & Telecommunications,NZ900-Finance & Corporate Services,ATOS IT SERVICES UK LTD,2014556,25.78 ,Provision of IT Peripherals and individually ordered software and equipment
Ministry of Justice,MoJ HQ,30/11/2015,265000-IT & Telecommunications,NZ900-Finance & Corporate Services,ATOS IT SERVICES UK LTD,2014556,25.23 ,Provision of IT Peripherals and individually ordered software and equipment
Ministry of Justice,MoJ HQ,30/11/2015,265000-IT & Telecommunications,NZ900-Finance & Corporate Services,ATOS IT SERVICES UK LTD,2014556,20.18 ,Provision of IT Peripherals and individually ordered software and equipment
Ministry of Justice,MoJ HQ,30/11/2015,265000-IT & Telecommunications,NZ900-Finance & Corporate Services,ATOS IT SERVICES UK LTD,2014556,19.96 ,Provision of IT Peripherals and individually ordered software and equipment
Ministry of Justice,MoJ HQ,30/11/2015,265000-IT & Telecommunications,NZ900-Finance & Corporate Services,ATOS IT SERVICES UK LTD,2014556,19.68 ,Provision of IT Peripherals and individually ordered software and equipment
Ministry of Justice,MoJ HQ,30/11/2015,265000-IT & Telecommunications,NZ900-Finance & Corporate Services,ATOS IT SERVICES UK LTD,2014556,17.15 ,Provision of IT Peripherals and individually ordered software and equipment
Ministry of Justice,MoJ HQ,30/11/2015,265000-IT & Telecommunications,NZ900-Finance & Corporate Services,ATOS IT SERVICES UK LTD,2014556,12.98 ,Provision of IT Peripherals and individually ordered software and equipment
Ministry of Justice,MoJ HQ,30/11/2015,265000-IT & Telecommunications,NZ900-Finance & Corporate Services,ATOS IT SERVICES UK LTD,2014556,11.62 ,Provision of IT Peripherals and individually ordered software and equipment
Ministry of Justice,MoJ HQ,30/11/2015,265000-IT & Telecommunications,NZ900-Finance & Corporate Services,ATOS IT SERVICES UK LTD,2014556,11.62 ,Provision of IT Peripherals and individually ordered software and equipment
Ministry of Justice,MoJ HQ,30/11/2015,265000-IT & Telecommunications,NZ900-Finance & Corporate Services,ATOS IT SERVICES UK LTD,2014556,10.09 ,Provision of IT Peripherals and individually ordered software and equipment
Ministry of Justice,MoJ HQ,30/11/2015,265000-IT & Telecommunications,NZ900-Finance & Corporate Services,ATOS IT SERVICES UK LTD,2014556,10.09 ,Provision of IT Peripherals and individually ordered software and equipment
Ministry of Justice,MoJ HQ,30/11/2015,265000-IT & Telecommunications,NZ900-Finance & Corporate Services,ATOS IT SERVICES UK LTD,2014556,10.09 ,Provision of IT Peripherals and individually ordered software and equipment
Ministry of Justice,MoJ HQ,30/11/2015,265000-IT & Telecommunications,NZ900-Finance & Corporate Services,ATOS IT SERVICES UK LTD,2014556,8.19 ,Provision of IT Peripherals and individually ordered software and equipment
Ministry of Justice,MoJ HQ,02/11/2015,265000-IT & Telecommunications,NZ900-Finance & Corporate Services,ATOS IT SERVICES UK LTD,2012759,258.33 ,Provision of IT Peripherals and individually ordered software and equipment
Ministry of Justice,MoJ HQ,02/11/2015,265000-IT & Telecommunications,NZ900-Finance & Corporate Services,ATOS IT SERVICES UK LTD,2012759,258.33 ,Provision of IT Peripherals and individually ordered software and equipment
Ministry of Justice,MoJ HQ,02/11/2015,265000-IT & Telecommunications,NZ900-Finance & Corporate Services,ATOS IT SERVICES UK LTD,2012759,111.45 ,Provision of IT Peripherals and individually ordered software and equipment
Ministry of Justice,MoJ HQ,02/11/2015,265000-IT & Telecommunications,NZ900-Finance & Corporate Services,ATOS IT SERVICES UK LTD,2012759,111.45 ,Provision of IT Peripherals and individually ordered software and equipment
Ministry of Justice,MoJ HQ,02/11/2015,265000-IT & Telecommunications,NZ900-Finance & Corporate Services,ATOS IT SERVICES UK LTD,2012759,78.26 ,Provision of IT Peripherals and individually ordered software and equipment
Ministry of Justice,MoJ HQ,02/11/2015,265000-IT & Telecommunications,NZ900-Finance & Corporate Services,ATOS IT SERVICES UK LTD,2012759,78.26 ,Provision of IT Peripherals and individually ordered software and equipment
Ministry of Justice,MoJ HQ,02/11/2015,265000-IT & Telecommunications,NZ900-Finance & Corporate Services,ATOS IT SERVICES UK LTD,2012759,25.78 ,Provision of IT Peripherals and individually ordered software and equipment
Ministry of Justice,MoJ HQ,02/11/2015,265000-IT & Telecommunications,NZ900-Finance & Corporate Services,ATOS IT SERVICES UK LTD,2012759,25.78 ,Provision of IT Peripherals and individually ordered software and equipment
Ministry of Justice,MoJ HQ,02/11/2015,265000-IT & Telecommunications,NZ900-Finance & Corporate Services,ATOS IT SERVICES UK LTD,2012759,25.78 ,Provision of IT Peripherals and individually ordered software and equipment
Ministry of Justice,MoJ HQ,02/11/2015,265000-IT & Telecommunications,NZ900-Finance & Corporate Services,ATOS IT SERVICES UK LTD,2012759,25.78 ,Provision of IT Peripherals and individually ordered software and equipment
Ministry of Justice,MoJ HQ,02/11/2015,265000-IT & Telecommunications,NZ900-Finance & Corporate Services,ATOS IT SERVICES UK LTD,2012759,25.78 ,Provision of IT Peripherals and individually ordered software and equipment
Ministry of Justice,MoJ HQ,02/11/2015,265000-IT & Telecommunications,NZ900-Finance & Corporate Services,ATOS IT SERVICES UK LTD,2012759,25.78 ,Provision of IT Peripherals and individually ordered software and equipment
Ministry of Justice,MoJ HQ,02/11/2015,265000-IT & Telecommunications,NZ900-Finance & Corporate Services,ATOS IT SERVICES UK LTD,2012759,11.62 ,Provision of IT Peripherals and individually ordered software and equipment
Ministry of Justice,MoJ HQ,02/11/2015,265000-IT & Telecommunications,NZ900-Finance & Corporate Services,ATOS IT SERVICES UK LTD,2012759,10.09 ,Provision of IT Peripherals and individually ordered software and equipment
Ministry of Justice,MoJ HQ,02/11/2015,265000-IT & Telecommunications,NZ900-Finance & Corporate Services,ATOS IT SERVICES UK LTD,2012759,6.38 ,Provision of IT Peripherals and individually ordered software and equipment
Ministry of Justice,MoJ HQ,02/11/2015,265000-IT & Telecommunications,NZ900-Finance & Corporate Services,ATOS IT SERVICES UK LTD,2012759,6.38 ,Provision of IT Peripherals and individually ordered software and equipment
Ministry of Justice,MoJ HQ,12/11/2015,265000-IT & Telecommunications,NZ900-Finance & Corporate Services,CACI LTD,2013338,"94,696.89 ",Youth Justice Board Exemplar Technical Build
Ministry of Justice,MoJ HQ,12/11/2015,265000-IT & Telecommunications,NZ900-Finance & Corporate Services,CACI LTD,2013338,"43,264.97 ",Youth Justice Board Exemplar Technical Build
Ministry of Justice,MoJ HQ,16/11/2015,265000-IT & Telecommunications,NZ900-Finance & Corporate Services,CACI LTD,2013518,"66,159.00 ",Youth Justice Board Exemplar Technical Build
Ministry of Justice,MoJ HQ,16/11/2015,265000-IT & Telecommunications,NZ900-Finance & Corporate Services,CACI LTD,2013518,"33,562.60 ",Youth Justice Board Exemplar Technical Build
Ministry of Justice,MoJ HQ,19/11/2015,265000-IT & Telecommunications,NZ900-Finance & Corporate Services,i2N LTD,2013844,"35,555.08 ",Youth Justice Board Exemplar Technical Build
Ministry of Justice,MoJ HQ,19/11/2015,265000-IT & Telecommunications,NZ900-Finance & Corporate Services,i2N LTD,2013844,"27,733.75 ",Youth Justice Board Exemplar Technical Build
Ministry of Justice,MoJ HQ,19/11/2015,265000-IT & Telecommunications,NZ900-Finance & Corporate Services,i2N LTD,2013844,"24,595.00 ",Youth Justice Board Exemplar Technical Build
Ministry of Justice,MoJ HQ,26/11/2015,265000-IT & Telecommunications,NZ900-Finance & Corporate Services,i2N LTD,2014388,"24,174.34 ",Youth Justice Board Exemplar Technical Build
Ministry of Justice,MoJ HQ,26/11/2015,265000-IT & Telecommunications,NZ900-Finance & Corporate Services,i2N LTD,2014388,"1,082.00 ",Youth Justice Board Exemplar Technical Build
Ministry of Justice,MoJ HQ,30/11/2015,265000-IT & Telecommunications,NZ900-Finance & Corporate Services,ATOS IT SERVICES UK LTD,2014556,658.92 ,Provision of IT Peripherals and individually ordered software and equipment
Ministry of Justice,MoJ HQ,30/11/2015,265000-IT & Telecommunications,NZ900-Finance & Corporate Services,ATOS IT SERVICES UK LTD,2014556,295.41 ,Provision of IT Peripherals and individually ordered software and equipment
Ministry of Justice,MoJ HQ,30/11/2015,265000-IT & Telecommunications,NZ900-Finance & Corporate Services,ATOS IT SERVICES UK LTD,2014556,258.33 ,Provision of IT Peripherals and individually ordered software and equipment
Ministry of Justice,MoJ HQ,30/11/2015,265000-IT & Telecommunications,NZ900-Finance & Corporate Services,ATOS IT SERVICES UK LTD,2014556,219.64 ,Provision of IT Peripherals and individually ordered software and equipment
Ministry of Justice,MoJ HQ,30/11/2015,265000-IT & Telecommunications,NZ900-Finance & Corporate Services,ATOS IT SERVICES UK LTD,2014556,219.64 ,Provision of IT Peripherals and individually ordered software and equipment
Ministry of Justice,MoJ HQ,30/11/2015,265000-IT & Telecommunications,NZ900-Finance & Corporate Services,ATOS IT SERVICES UK LTD,2014556,116.08 ,Provision of IT Peripherals and individually ordered software and equipment
Ministry of Justice,MoJ HQ,30/11/2015,265000-IT & Telecommunications,NZ900-Finance & Corporate Services,ATOS IT SERVICES UK LTD,2014556,111.45 ,Provision of IT Peripherals and individually ordered software and equipment
Ministry of Justice,MoJ HQ,30/11/2015,265000-IT & Telecommunications,NZ900-Finance & Corporate Services,ATOS IT SERVICES UK LTD,2014556,111.45 ,Provision of IT Peripherals and individually ordered software and equipment
Ministry of Justice,MoJ HQ,30/11/2015,265000-IT & Telecommunications,NZ900-Finance & Corporate Services,ATOS IT SERVICES UK LTD,2014556,111.45 ,Provision of IT Peripherals and individually ordered software and equipment
Ministry of Justice,MoJ HQ,30/11/2015,265000-IT & Telecommunications,NZ900-Finance & Corporate Services,ATOS IT SERVICES UK LTD,2014556,111.45 ,Provision of IT Peripherals and individually ordered software and equipment
Ministry of Justice,MoJ HQ,30/11/2015,265000-IT & Telecommunications,NZ900-Finance & Corporate Services,ATOS IT SERVICES UK LTD,2014556,78.26 ,Provision of IT Peripherals and individually ordered software and equipment
Ministry of Justice,MoJ HQ,30/11/2015,265000-IT & Telecommunications,NZ900-Finance & Corporate Services,ATOS IT SERVICES UK LTD,2014556,78.26 ,Provision of IT Peripherals and individually ordered software and equipment
Ministry of Justice,MoJ HQ,30/11/2015,265000-IT & Telecommunications,NZ900-Finance & Corporate Services,ATOS IT SERVICES UK LTD,2014556,78.26 ,Provision of IT Peripherals and individually ordered software and equipment
Ministry of Justice,MoJ HQ,30/11/2015,265000-IT & Telecommunications,NZ900-Finance & Corporate Services,ATOS IT SERVICES UK LTD,2014556,43.22 ,Provision of IT Peripherals and individually ordered software and equipment
Ministry of Justice,MoJ HQ,30/11/2015,265000-IT & Telecommunications,NZ900-Finance & Corporate Services,ATOS IT SERVICES UK LTD,2014556,25.78 ,Provision of IT Peripherals and individually ordered software and equipment
Ministry of Justice,MoJ HQ,30/11/2015,265000-IT & Telecommunications,NZ900-Finance & Corporate Services,ATOS IT SERVICES UK LTD,2014556,11.17 ,Provision of IT Peripherals and individually ordered software and equipment
Ministry of Justice,MoJ HQ,30/11/2015,265000-IT & Telecommunications,NZ900-Finance & Corporate Services,ATOS IT SERVICES UK LTD,2014556,8.19 ,Provision of IT Peripherals and individually ordered software and equipment
Ministry of Justice,MoJ HQ,30/11/2015,265000-IT & Telecommunications,NZ900-Finance & Corporate Services,ATOS IT SERVICES UK LTD,2014556,283.58 ,Provision of IT Peripherals and individually ordered software and equipment
Ministry of Justice,MoJ HQ,30/11/2015,265000-IT & Telecommunications,NZ900-Finance & Corporate Services,ATOS IT SERVICES UK LTD,2014556,257.80 ,Provision of IT Peripherals and individually ordered software and equipment
Ministry of Justice,MoJ HQ,30/11/2015,265000-IT & Telecommunications,NZ900-Finance & Corporate Services,ATOS IT SERVICES UK LTD,2014556,257.80 ,Provision of IT Peripherals and individually ordered software and equipment
Ministry of Justice,MoJ HQ,30/11/2015,265000-IT & Telecommunications,NZ900-Finance & Corporate Services,ATOS IT SERVICES UK LTD,2014556,51.56 ,Provision of IT Peripherals and individually ordered software and equipment
Ministry of Justice,MoJ HQ,30/11/2015,265000-IT & Telecommunications,NZ900-Finance & Corporate Services,ATOS IT SERVICES UK LTD,2014556,25.78 ,Provision of IT Peripherals and individually ordered software and equipment
Ministry of Justice,MoJ HQ,02/11/2015,265000-IT & Telecommunications,NZ900-Finance & Corporate Services,ATOS IT SERVICES UK LTD,2012759,25.78 ,Provision of IT Peripherals and individually ordered software and equipment
Ministry of Justice,MoJ HQ,30/11/2015,265000-IT & Telecommunications,NZ900-Finance & Corporate Services,ATOS IT SERVICES UK LTD,2014556,25.78 ,Provision of IT Peripherals and individually ordered software and equipment
Ministry of Justice,MoJ HQ,30/11/2015,265000-IT & Telecommunications,NZ900-Finance & Corporate Services,ATOS IT SERVICES UK LTD,2014556,25.78 ,Provision of IT Peripherals and individually ordered software and equipment
Ministry of Justice,MoJ HQ,30/11/2015,265000-IT & Telecommunications,NZ900-Finance & Corporate Services,ATOS IT SERVICES UK LTD,2014556,25.78 ,Provision of IT Peripherals and individually ordered software and equipment
Ministry of Justice,MoJ HQ,30/11/2015,265000-IT & Telecommunications,NZ900-Finance & Corporate Services,ATOS IT SERVICES UK LTD,2014556,25.78 ,Provision of IT Peripherals and individually ordered software and equipment
Ministry of Justice,MoJ HQ,30/11/2015,265000-IT & Telecommunications,NZ900-Finance & Corporate Services,ATOS IT SERVICES UK LTD,2014556,25.78 ,Provision of IT Peripherals and individually ordered software and equipment
Ministry of Justice,MoJ HQ,30/11/2015,265000-IT & Telecommunications,NZ900-Finance & Corporate Services,ATOS IT SERVICES UK LTD,2014556,25.78 ,Provision of IT Peripherals and individually ordered software and equipment
Ministry of Justice,MoJ HQ,02/11/2015,265000-IT & Telecommunications,NZ900-Finance & Corporate Services,ATOS IT SERVICES UK LTD,2012759,278.16 ,Provision of IT Peripherals and individually ordered software and equipment
Ministry of Justice,MoJ HQ,02/11/2015,265000-IT & Telecommunications,NZ900-Finance & Corporate Services,ATOS IT SERVICES UK LTD,2012759,11.62 ,Provision of IT Peripherals and individually ordered software and equipment
Ministry of Justice,MoJ HQ,02/11/2015,265000-IT & Telecommunications,NZ900-Finance & Corporate Services,ATOS IT SERVICES UK LTD,2012759,11.62 ,Provision of IT Peripherals and individually ordered software and equipment
Ministry of Justice,MoJ HQ,02/11/2015,265000-IT & Telecommunications,NZ900-Finance & Corporate Services,ATOS IT SERVICES UK LTD,2012759,11.62 ,Provision of IT Peripherals and individually ordered software and equipment
Ministry of Justice,MoJ HQ,09/11/2015,512000-Intangible GBV - Additions,NZ900-Finance & Corporate Services,HOME OFFICE,10539,"75,475.00 ",The Way We Work project
Ministry of Justice,MoJ HQ,09/11/2015,512000-Intangible GBV - Additions,NZ900-Finance & Corporate Services,HOME OFFICE,10540,"94,025.00 ",The Way We Work project
Ministry of Justice,MoJ HQ,09/11/2015,512000-Intangible GBV - Additions,NZ900-Finance & Corporate Services,HOME OFFICE IT,10541,"22,050.00 ",Common Platform Programme-Transition Syncironisation
Ministry of Justice,MoJ HQ,02/11/2015,265000-IT & Telecommunications,NZ900-Finance & Corporate Services,ATOS IT SERVICES UK LTD,2012759,"1,069.76 ",The Way We Work project
Ministry of Justice,MoJ HQ,05/11/2015,532000-Tangible GBV - Additions,NZ900-Finance & Corporate Services,ATOS IT SERVICES UK LTD,2012931,"400,000.00 ",The Way We Work project Laptops 
Ministry of Justice,MoJ HQ,05/11/2015,532000-Tangible GBV - Additions,NZ900-Finance & Corporate Services,ATOS IT SERVICES UK LTD,2012932,"433,178.02 ",The Way We Work project Laptops 
Ministry of Justice,MoJ HQ,05/11/2015,265000-IT & Telecommunications,NZ900-Finance & Corporate Services,ATOS IT SERVICES UK LTD,2012932,"209,130.09 ",Technology  - Deployment managed Service 
Ministry of Justice,MoJ HQ,09/11/2015,512000-Intangible GBV - Additions,NZ900-Finance & Corporate Services,ATOS IT SERVICES UK LTD,2013131,"115,000.00 ",TW3 Software (Windows 8.1 Apps)
Ministry of Justice,MoJ HQ,09/11/2015,512000-Intangible GBV - Additions,NZ900-Finance & Corporate Services,ATOS IT SERVICES UK LTD,2013132,"27,272.00 ",TW3 Software (Windows 8.1 Apps)
Ministry of Justice,MoJ HQ,09/11/2015,512000-Intangible GBV - Additions,NZ900-Finance & Corporate Services,SOPRA STERIA LTD,2013278,"90,302.03 ",Common Platform Programme-Transition Syncironisation
Ministry of Justice,MoJ HQ,09/11/2015,512000-Intangible GBV - Additions,NZ900-Finance & Corporate Services,SOPRA STERIA LTD,2013278,"23,739.50 ",Common Platform Programme-Defence
Ministry of Justice,MoJ HQ,09/11/2015,512000-Intangible GBV - Additions,NZ900-Finance & Corporate Services,TRIAD GROUP PLC,2013297,"22,855.00 ",Common Platform Programme - Legacy Trans. 
Ministry of Justice,MoJ HQ,12/11/2015,265000-IT & Telecommunications,NZ900-Finance & Corporate Services,ATOS IT SERVICES UK LTD,2013321,"593,218.00 ",The Way We Work project
Ministry of Justice,MoJ HQ,12/11/2015,265000-IT & Telecommunications,NZ900-Finance & Corporate Services,ATOS IT SERVICES UK LTD,2013321,"406,625.70 ",The Way We Work project
Ministry of Justice,MoJ HQ,12/11/2015,265000-IT & Telecommunications,NZ900-Finance & Corporate Services,ATOS IT SERVICES UK LTD,2013322,"157,067.78 ",The Way We Work project
Ministry of Justice,MoJ HQ,12/11/2015,265000-IT & Telecommunications,NZ900-Finance & Corporate Services,ATOS IT SERVICES UK LTD,2013322,"76,889.20 ",The Way We Work project
Ministry of Justice,MoJ HQ,12/11/2015,512000-Intangible GBV - Additions,NZ900-Finance & Corporate Services,SOPRA STERIA LTD,2013433,"49,023.00 ",Common Platform Programme - Core Crime 
Ministry of Justice,MoJ HQ,16/11/2015,512000-Intangible GBV - Additions,NZ900-Finance & Corporate Services,KAINOS SOFTWARE LTD,2013594,"50,886.67 ",Common Platform Programme-Transition Syncironisation
Ministry of Justice,MoJ HQ,16/11/2015,512000-Intangible GBV - Additions,NZ900-Finance & Corporate Services,SKYSCAPE CLOUD SERVICES LTD,2013686,"216,648.89 ",Common Platform Programme - LPaSS
Ministry of Justice,MoJ HQ,16/11/2015,512000-Intangible GBV - Additions,NZ900-Finance & Corporate Services,SKYSCAPE CLOUD SERVICES LTD,2013686,"43,329.78 ",Common Platform Programme - LPaSS
Ministry of Justice,MoJ HQ,16/11/2015,512000-Intangible GBV - Additions,NZ900-Finance & Corporate Services,SOPRA STERIA LTD,2013688,"67,808.25 ",Common Platform Programme - Legacy Trans. 
Ministry of Justice,MoJ HQ,16/11/2015,512000-Intangible GBV - Additions,NZ900-Finance & Corporate Services,TRIAD GROUP PLC,2013708,"124,915.00 ",Common Platform Programme - LPaSS
Ministry of Justice,MoJ HQ,19/11/2015,512000-Intangible GBV - Additions,NZ900-Finance & Corporate Services,AGILESPHERE LLP,2013748,"59,755.01 ",Common Platform Programme - Archive Data 
Ministry of Justice,MoJ HQ,19/11/2015,265000-IT & Telecommunications,NZ900-Finance & Corporate Services,ATOS IT SERVICES UK LTD,2013758,"44,439.00 ",The Way We Work project
Ministry of Justice,MoJ HQ,19/11/2015,512000-Intangible GBV - Additions,NZ900-Finance & Corporate Services,CGI IT UK LTD,2013784,"61,464.00 ",Tech Refresh Upgrades
Ministry of Justice,MoJ HQ,19/11/2015,512000-Intangible GBV - Additions,NZ900-Finance & Corporate Services,SOPRA STERIA LTD,2013934,"73,573.00 ",Common Platform Programme-Transition Syncironisation
Ministry of Justice,MoJ HQ,23/11/2015,512000-Intangible GBV - Additions,NZ900-Finance & Corporate Services,CAPGEMINI UK PLC,2014024,"85,481.00 ",Common Platform Programme - Info Quality + Collbartion 
Ministry of Justice,MoJ HQ,23/11/2015,512000-Intangible GBV - Additions,NZ900-Finance & Corporate Services,CAPGEMINI UK PLC,2014024,"82,598.50 ",Common Platform Programme - Info Quality + Collbartion 
Ministry of Justice,MoJ HQ,23/11/2015,512000-Intangible GBV - Additions,NZ900-Finance & Corporate Services,CAPGEMINI UK PLC,2014024,"44,411.50 ",Common Platform Programme - Info Quality + Collbartion 
Ministry of Justice,MoJ HQ,23/11/2015,512000-Intangible GBV - Additions,NZ900-Finance & Corporate Services,CGI IT UK LTD,2014030,"141,137.23 ",TW3 Software (Windows 8.1 Apps)
Ministry of Justice,MoJ HQ,23/11/2015,512000-Intangible GBV - Additions,NZ900-Finance & Corporate Services,SOPRA STERIA LTD,2014223,"75,280.00 ",Common Platform Programme - Legacy Trans. 
Ministry of Justice,MoJ HQ,23/11/2015,512000-Intangible GBV - Additions,NZ900-Finance & Corporate Services,SOPRA STERIA LTD,2014223,"68,425.00 ",Common Platform Programme - Core Crime 
Ministry of Justice,MoJ HQ,26/11/2015,265000-IT & Telecommunications,NZ900-Finance & Corporate Services,ATOS IT SERVICES UK LTD,2014284,"104,120.00 ",The Way We Work project
Ministry of Justice,MoJ HQ,26/11/2015,532000-Tangible GBV - Additions,NZ900-Finance & Corporate Services,ATOS IT SERVICES UK LTD,2014285,"602,192.85 ",YJB - Carework AssetPlus
Ministry of Justice,MoJ HQ,26/11/2015,532000-Tangible GBV - Additions,NZ900-Finance & Corporate Services,ATOS IT SERVICES UK LTD,2014285,"120,438.57 ",YJB - Carework AssetPlus
Ministry of Justice,MoJ HQ,26/11/2015,532000-Tangible GBV - Additions,NZ900-Finance & Corporate Services,BT GLOBAL SERVICES,2014306,"796,183.66 ",Criminal Justice System Eff-Web
Ministry of Justice,MoJ HQ,26/11/2015,532000-Tangible GBV - Additions,NZ900-Finance & Corporate Services,BT GLOBAL SERVICES,2014306,"159,236.73 ",Criminal Justice System Eff-Web
Ministry of Justice,MoJ HQ,26/11/2015,512000-Intangible GBV - Additions,NZ900-Finance & Corporate Services,CGI IT UK LTD,2014319,"58,828.00 ",TW3 Software (Windows 8.1 Apps)
Ministry of Justice,MoJ HQ,26/11/2015,512000-Intangible GBV - Additions,NZ900-Finance & Corporate Services,CGI IT UK LTD,2014319,"34,499.50 ",Common Platform Programme - Concept Court
Ministry of Justice,MoJ HQ,26/11/2015,512000-Intangible GBV - Additions,NZ900-Finance & Corporate Services,SOPRA STERIA LTD,2014490,"50,039.00 ",Common Platform Programme - Info Quality + Collbartion 
Ministry of Justice,MoJ HQ,26/11/2015,512000-Intangible GBV - Additions,NZ900-Finance & Corporate Services,SOPRA STERIA LTD,2014490,"39,170.35 ",Common Platform Programme - Info Quality + Collbartion 
Ministry of Justice,MoJ HQ,30/11/2015,512000-Intangible GBV - Additions,NZ900-Finance & Corporate Services,ACTICA CONSULTING LTD,2014553,"170,000.00 ",Common Platform Programme - Archive Data 
Ministry of Justice,MoJ HQ,30/11/2015,512000-Intangible GBV - Additions,NZ900-Finance & Corporate Services,ACTICA CONSULTING LTD,2014553,"63,750.00 ",Common Platform Programme - Archive Data 
Ministry of Justice,MoJ HQ,30/11/2015,512000-Intangible GBV - Additions,NZ900-Finance & Corporate Services,ATOS IT SERVICES UK LTD,2014557,"66,784.00 ",TW3 Software (Windows 8.1 Apps)
Ministry of Justice,MoJ HQ,30/11/2015,512000-Intangible GBV - Additions,NZ900-Finance & Corporate Services,CGI IT UK LTD,2014577,"82,054.00 ",Common Platform Programme - Mag. Court Rota 
Ministry of Justice,MoJ HQ,30/11/2015,512000-Intangible GBV - Additions,NZ900-Finance & Corporate Services,CGI IT UK LTD,2014577,"76,564.00 ",Common Platform Programme - Mag. Court Rota 
Ministry of Justice,MoJ HQ,30/11/2015,512000-Intangible GBV - Additions,NZ900-Finance & Corporate Services,TRIAD GROUP PLC,2014716,"215,045.50 ",Common Platform Programme-Resulting
Ministry of Justice,MoJ HQ,30/11/2015,512000-Intangible GBV - Additions,NZ900-Finance & Corporate Services,TRIAD GROUP PLC,2014716,"21,250.00 ",Common Platform Programme - LPaSS
Ministry of Justice,MoJ HQ,30/11/2015,265000-IT & Telecommunications,NZ900-Finance & Corporate Services,ATOS IT SERVICES UK LTD,2014556,23.24 ,Provision of IT Peripherals and individually ordered software and equipment
Ministry of Justice,MoJ HQ,30/11/2015,265000-IT & Telecommunications,NZ900-Finance & Corporate Services,ATOS IT SERVICES UK LTD,2014556,23.24 ,Provision of IT Peripherals and individually ordered software and equipment
Ministry of Justice,MoJ HQ,30/11/2015,265000-IT & Telecommunications,NZ900-Finance & Corporate Services,ATOS IT SERVICES UK LTD,2014556,11.62 ,Provision of IT Peripherals and individually ordered software and equipment
Ministry of Justice,MoJ HQ,30/11/2015,265000-IT & Telecommunications,NZ900-Finance & Corporate Services,ATOS IT SERVICES UK LTD,2014556,11.62 ,Provision of IT Peripherals and individually ordered software and equipment
Ministry of Justice,MoJ HQ,30/11/2015,265000-IT & Telecommunications,NZ900-Finance & Corporate Services,ATOS IT SERVICES UK LTD,2014556,11.62 ,Provision of IT Peripherals and individually ordered software and equipment
Ministry of Justice,MoJ HQ,30/11/2015,265000-IT & Telecommunications,NZ900-Finance & Corporate Services,ATOS IT SERVICES UK LTD,2014556,11.62 ,Provision of IT Peripherals and individually ordered software and equipment
Ministry of Justice,MoJ HQ,30/11/2015,265000-IT & Telecommunications,NZ900-Finance & Corporate Services,ATOS IT SERVICES UK LTD,2014556,11.62 ,Provision of IT Peripherals and individually ordered software and equipment
Ministry of Justice,MoJ HQ,30/11/2015,265000-IT & Telecommunications,NZ900-Finance & Corporate Services,ATOS IT SERVICES UK LTD,2014556,11.62 ,Provision of IT Peripherals and individually ordered software and equipment
Ministry of Justice,MoJ HQ,04/11/2015,512000-Intangible GBV - Additions,NZ900-Finance & Corporate Services,YOUTH JUSTICE BOARD FOR ENGLAND & WALES,10531,"79,300.04 ",YJB - Carework AssetPlus
Ministry of Justice,MoJ HQ,12/11/2015,512000-Intangible GBV - Additions,NZ900-Finance & Corporate Services,CACI LTD,2013338,"195,326.00 ",YJB - Carework AssetPlus
Ministry of Justice,MoJ HQ,12/11/2015,512000-Intangible GBV - Additions,NZ900-Finance & Corporate Services,CACI LTD,2013338,"151,589.00 ",YJB - Carework AssetPlus
Ministry of Justice,MoJ HQ,12/11/2015,512000-Intangible GBV - Additions,NZ900-Finance & Corporate Services,CACI LTD,2013338,"39,065.20 ",YJB - Carework AssetPlus
Ministry of Justice,MoJ HQ,12/11/2015,512000-Intangible GBV - Additions,NZ900-Finance & Corporate Services,CACI LTD,2013338,"30,317.80 ",YJB - Carework AssetPlus
Ministry of Justice,MoJ HQ,19/11/2015,532000-Tangible GBV - Additions,NZ900-Finance & Corporate Services,SOPRA STERIA LTD,2013934,"103,802.94 ",Analytical Services Server (JSAS for ASD)
Ministry of Justice,MoJ HQ,19/11/2015,532000-Tangible GBV - Additions,NZ900-Finance & Corporate Services,SOPRA STERIA LTD,2013934,"20,760.59 ",Analytical Services Server (JSAS for ASD)
Ministry of Justice,MoJ HQ,02/11/2015,265000-IT & Telecommunications,NZ900-Finance & Corporate Services,ATOS IT SERVICES UK LTD,2012759,57.68 ,Provision of IT Peripherals and individually ordered software and equipment
Ministry of Justice,MoJ HQ,30/11/2015,265000-IT & Telecommunications,NZ900-Finance & Corporate Services,ATOS IT SERVICES UK LTD,2014556,11.62 ,Provision of IT Peripherals and individually ordered software and equipment
Ministry of Justice,MoJ HQ,30/11/2015,265000-IT & Telecommunications,NZ900-Finance & Corporate Services,ATOS IT SERVICES UK LTD,2014556,11.62 ,Provision of IT Peripherals and individually ordered software and equipment
Ministry of Justice,MoJ HQ,30/11/2015,265000-IT & Telecommunications,NZ900-Finance & Corporate Services,ATOS IT SERVICES UK LTD,2014556,46.00 ,Provision of IT Peripherals and individually ordered software and equipment
Ministry of Justice,MoJ HQ,02/11/2015,265000-IT & Telecommunications,NZ900-Finance & Corporate Services,ATOS IT SERVICES UK LTD,2012759,"1,406.15 ",Provision of IT Peripherals and individually ordered software and equipment
Ministry of Justice,MoJ HQ,02/11/2015,265000-IT & Telecommunications,NZ900-Finance & Corporate Services,ATOS IT SERVICES UK LTD,2012759,"1,398.30 ",Provision of IT Peripherals and individually ordered software and equipment
Ministry of Justice,MoJ HQ,02/11/2015,265000-IT & Telecommunications,NZ900-Finance & Corporate Services,ATOS IT SERVICES UK LTD,2012759,587.22 ,Provision of IT Peripherals and individually ordered software and equipment
Ministry of Justice,MoJ HQ,02/11/2015,265000-IT & Telecommunications,NZ900-Finance & Corporate Services,ATOS IT SERVICES UK LTD,2012759,515.00 ,Provision of IT Peripherals and individually ordered software and equipment
Ministry of Justice,MoJ HQ,02/11/2015,265000-IT & Telecommunications,NZ900-Finance & Corporate Services,ATOS IT SERVICES UK LTD,2012759,154.68 ,Provision of IT Peripherals and individually ordered software and equipment
Ministry of Justice,MoJ HQ,02/11/2015,265000-IT & Telecommunications,NZ900-Finance & Corporate Services,ATOS IT SERVICES UK LTD,2012759,128.90 ,Provision of IT Peripherals and individually ordered software and equipment
Ministry of Justice,MoJ HQ,02/11/2015,265000-IT & Telecommunications,NZ900-Finance & Corporate Services,ATOS IT SERVICES UK LTD,2012759,128.90 ,Provision of IT Peripherals and individually ordered software and equipment
Ministry of Justice,MoJ HQ,02/11/2015,265000-IT & Telecommunications,NZ900-Finance & Corporate Services,ATOS IT SERVICES UK LTD,2012759,78.26 ,Provision of IT Peripherals and individually ordered software and equipment
Ministry of Justice,MoJ HQ,02/11/2015,265000-IT & Telecommunications,NZ900-Finance & Corporate Services,ATOS IT SERVICES UK LTD,2012759,77.34 ,Provision of IT Peripherals and individually ordered software and equipment
Ministry of Justice,MoJ HQ,02/11/2015,265000-IT & Telecommunications,NZ900-Finance & Corporate Services,ATOS IT SERVICES UK LTD,2012759,63.80 ,Provision of IT Peripherals and individually ordered software and equipment
Ministry of Justice,MoJ HQ,02/11/2015,265000-IT & Telecommunications,NZ900-Finance & Corporate Services,ATOS IT SERVICES UK LTD,2012759,51.56 ,Provision of IT Peripherals and individually ordered software and equipment
Ministry of Justice,MoJ HQ,02/11/2015,265000-IT & Telecommunications,NZ900-Finance & Corporate Services,ATOS IT SERVICES UK LTD,2012759,51.56 ,Provision of IT Peripherals and individually ordered software and equipment
Ministry of Justice,MoJ HQ,02/11/2015,265000-IT & Telecommunications,NZ900-Finance & Corporate Services,ATOS IT SERVICES UK LTD,2012759,51.56 ,Provision of IT Peripherals and individually ordered software and equipment
Ministry of Justice,MoJ HQ,02/11/2015,265000-IT & Telecommunications,NZ900-Finance & Corporate Services,ATOS IT SERVICES UK LTD,2012759,46.00 ,Provision of IT Peripherals and individually ordered software and equipment
Ministry of Justice,MoJ HQ,02/11/2015,265000-IT & Telecommunications,NZ900-Finance & Corporate Services,ATOS IT SERVICES UK LTD,2012759,46.00 ,Provision of IT Peripherals and individually ordered software and equipment
Ministry of Justice,MoJ HQ,02/11/2015,265000-IT & Telecommunications,NZ900-Finance & Corporate Services,ATOS IT SERVICES UK LTD,2012759,46.00 ,Provision of IT Peripherals and individually ordered software and equipment
Ministry of Justice,MoJ HQ,02/11/2015,265000-IT & Telecommunications,NZ900-Finance & Corporate Services,ATOS IT SERVICES UK LTD,2012759,46.00 ,Provision of IT Peripherals and individually ordered software and equipment
Ministry of Justice,MoJ HQ,02/11/2015,265000-IT & Telecommunications,NZ900-Finance & Corporate Services,ATOS IT SERVICES UK LTD,2012759,46.00 ,Provision of IT Peripherals and individually ordered software and equipment
Ministry of Justice,MoJ HQ,02/11/2015,265000-IT & Telecommunications,NZ900-Finance & Corporate Services,ATOS IT SERVICES UK LTD,2012759,46.00 ,Provision of IT Peripherals and individually ordered software and equipment
Ministry of Justice,MoJ HQ,02/11/2015,265000-IT & Telecommunications,NZ900-Finance & Corporate Services,ATOS IT SERVICES UK LTD,2012759,46.00 ,Provision of IT Peripherals and individually ordered software and equipment
Ministry of Justice,MoJ HQ,02/11/2015,265000-IT & Telecommunications,NZ900-Finance & Corporate Services,ATOS IT SERVICES UK LTD,2012759,46.00 ,Provision of IT Peripherals and individually ordered software and equipment
Ministry of Justice,MoJ HQ,02/11/2015,265000-IT & Telecommunications,NZ900-Finance & Corporate Services,ATOS IT SERVICES UK LTD,2012759,36.00 ,Provision of IT Peripherals and individually ordered software and equipment
Ministry of Justice,MoJ HQ,02/11/2015,265000-IT & Telecommunications,NZ900-Finance & Corporate Services,ATOS IT SERVICES UK LTD,2012759,28.84 ,Provision of IT Peripherals and individually ordered software and equipment
Ministry of Justice,MoJ HQ,02/11/2015,265000-IT & Telecommunications,NZ900-Finance & Corporate Services,ATOS IT SERVICES UK LTD,2012759,25.78 ,Provision of IT Peripherals and individually ordered software and equipment
Ministry of Justice,MoJ HQ,02/11/2015,265000-IT & Telecommunications,NZ900-Finance & Corporate Services,ATOS IT SERVICES UK LTD,2012759,25.78 ,Provision of IT Peripherals and individually ordered software and equipment
Ministry of Justice,MoJ HQ,02/11/2015,265000-IT & Telecommunications,NZ900-Finance & Corporate Services,ATOS IT SERVICES UK LTD,2012759,25.78 ,Provision of IT Peripherals and individually ordered software and equipment
Ministry of Justice,MoJ HQ,02/11/2015,265000-IT & Telecommunications,NZ900-Finance & Corporate Services,ATOS IT SERVICES UK LTD,2012759,25.78 ,Provision of IT Peripherals and individually ordered software and equipment
Ministry of Justice,MoJ HQ,02/11/2015,265000-IT & Telecommunications,NZ900-Finance & Corporate Services,ATOS IT SERVICES UK LTD,2012759,25.78 ,Provision of IT Peripherals and individually ordered software and equipment
Ministry of Justice,MoJ HQ,02/11/2015,265000-IT & Telecommunications,NZ900-Finance & Corporate Services,ATOS IT SERVICES UK LTD,2012759,25.78 ,Provision of IT Peripherals and individually ordered software and equipment
Ministry of Justice,MoJ HQ,02/11/2015,265000-IT & Telecommunications,NZ900-Finance & Corporate Services,ATOS IT SERVICES UK LTD,2012759,25.78 ,Provision of IT Peripherals and individually ordered software and equipment
Ministry of Justice,MoJ HQ,02/11/2015,265000-IT & Telecommunications,NZ900-Finance & Corporate Services,ATOS IT SERVICES UK LTD,2012759,25.78 ,Provision of IT Peripherals and individually ordered software and equipment
Ministry of Justice,MoJ HQ,02/11/2015,265000-IT & Telecommunications,NZ900-Finance & Corporate Services,ATOS IT SERVICES UK LTD,2012759,25.78 ,Provision of IT Peripherals and individually ordered software and equipment
Ministry of Justice,MoJ HQ,02/11/2015,265000-IT & Telecommunications,NZ900-Finance & Corporate Services,ATOS IT SERVICES UK LTD,2012759,25.78 ,Provision of IT Peripherals and individually ordered software and equipment
Ministry of Justice,MoJ HQ,02/11/2015,265000-IT & Telecommunications,NZ900-Finance & Corporate Services,ATOS IT SERVICES UK LTD,2012759,25.78 ,Provision of IT Peripherals and individually ordered software and equipment
Ministry of Justice,MoJ HQ,02/11/2015,265000-IT & Telecommunications,NZ900-Finance & Corporate Services,ATOS IT SERVICES UK LTD,2012759,15.14 ,Provision of IT Peripherals and individually ordered software and equipment
Ministry of Justice,MoJ HQ,02/11/2015,265000-IT & Telecommunications,NZ900-Finance & Corporate Services,ATOS IT SERVICES UK LTD,2012759,12.00 ,Provision of IT Peripherals and individually ordered software and equipment
Ministry of Justice,MoJ HQ,02/11/2015,265000-IT & Telecommunications,NZ900-Finance & Corporate Services,ATOS IT SERVICES UK LTD,2012759,10.92 ,Provision of IT Peripherals and individually ordered software and equipment
Ministry of Justice,MoJ HQ,02/11/2015,265000-IT & Telecommunications,NZ900-Finance & Corporate Services,ATOS IT SERVICES UK LTD,2012759,10.09 ,Provision of IT Peripherals and individually ordered software and equipment
Ministry of Justice,MoJ HQ,02/11/2015,265000-IT & Telecommunications,NZ900-Finance & Corporate Services,ATOS IT SERVICES UK LTD,2012759,9.09 ,Provision of IT Peripherals and individually ordered software and equipment
Ministry of Justice,MoJ HQ,02/11/2015,265000-IT & Telecommunications,NZ900-Finance & Corporate Services,CGI IT UK LTD,2012783,"23,424.00 ",Annual renewal of Meris licences
Ministry of Justice,MoJ HQ,05/11/2015,265000-IT & Telecommunications,NZ900-Finance & Corporate Services,ATOS IT SERVICES UK LTD,2012932,"61,653.87 ",Call centre charges
Ministry of Justice,MoJ HQ,09/11/2015,265000-IT & Telecommunications,NZ900-Finance & Corporate Services,ATOS IT SERVICES UK LTD,2013131,"31,265.00 ",SmartWorkplace software packaging
Ministry of Justice,MoJ HQ,23/11/2015,265000-IT & Telecommunications,NZ900-Finance & Corporate Services,ATOS IT SERVICES UK LTD,2013994,"26,259.13 ",Packet Shaper licence upgrade
Ministry of Justice,MoJ HQ,30/11/2015,265000-IT & Telecommunications,NZ900-Finance & Corporate Services,ATOS IT SERVICES UK LTD,2014556,618.00 ,Provision of IT Peripherals and individually ordered software and equipment
Ministry of Justice,MoJ HQ,30/11/2015,265000-IT & Telecommunications,NZ900-Finance & Corporate Services,ATOS IT SERVICES UK LTD,2014556,312.12 ,Provision of IT Peripherals and individually ordered software and equipment
Ministry of Justice,MoJ HQ,30/11/2015,265000-IT & Telecommunications,NZ900-Finance & Corporate Services,ATOS IT SERVICES UK LTD,2014556,166.86 ,Provision of IT Peripherals and individually ordered software and equipment
Ministry of Justice,MoJ HQ,30/11/2015,265000-IT & Telecommunications,NZ900-Finance & Corporate Services,ATOS IT SERVICES UK LTD,2014556,128.90 ,Provision of IT Peripherals and individually ordered software and equipment
Ministry of Justice,MoJ HQ,30/11/2015,265000-IT & Telecommunications,NZ900-Finance & Corporate Services,ATOS IT SERVICES UK LTD,2014556,83.96 ,Provision of IT Peripherals and individually ordered software and equipment
Ministry of Justice,MoJ HQ,30/11/2015,265000-IT & Telecommunications,NZ900-Finance & Corporate Services,ATOS IT SERVICES UK LTD,2014556,82.78 ,Provision of IT Peripherals and individually ordered software and equipment
Ministry of Justice,MoJ HQ,30/11/2015,265000-IT & Telecommunications,NZ900-Finance & Corporate Services,ATOS IT SERVICES UK LTD,2014556,77.34 ,Provision of IT Peripherals and individually ordered software and equipment
Ministry of Justice,MoJ HQ,30/11/2015,265000-IT & Telecommunications,NZ900-Finance & Corporate Services,ATOS IT SERVICES UK LTD,2014556,51.56 ,Provision of IT Peripherals and individually ordered software and equipment
Ministry of Justice,MoJ HQ,30/11/2015,265000-IT & Telecommunications,NZ900-Finance & Corporate Services,ATOS IT SERVICES UK LTD,2014556,51.56 ,Provision of IT Peripherals and individually ordered software and equipment
Ministry of Justice,MoJ HQ,30/11/2015,265000-IT & Telecommunications,NZ900-Finance & Corporate Services,ATOS IT SERVICES UK LTD,2014556,51.48 ,Provision of IT Peripherals and individually ordered software and equipment
Ministry of Justice,MoJ HQ,30/11/2015,265000-IT & Telecommunications,NZ900-Finance & Corporate Services,ATOS IT SERVICES UK LTD,2014556,46.00 ,Provision of IT Peripherals and individually ordered software and equipment
Ministry of Justice,MoJ HQ,30/11/2015,265000-IT & Telecommunications,NZ900-Finance & Corporate Services,ATOS IT SERVICES UK LTD,2014556,46.00 ,Provision of IT Peripherals and individually ordered software and equipment
Ministry of Justice,MoJ HQ,30/11/2015,265000-IT & Telecommunications,NZ900-Finance & Corporate Services,ATOS IT SERVICES UK LTD,2014556,46.00 ,Provision of IT Peripherals and individually ordered software and equipment
Ministry of Justice,MoJ HQ,30/11/2015,265000-IT & Telecommunications,NZ900-Finance & Corporate Services,ATOS IT SERVICES UK LTD,2014556,46.00 ,Provision of IT Peripherals and individually ordered software and equipment
Ministry of Justice,MoJ HQ,30/11/2015,265000-IT & Telecommunications,NZ900-Finance & Corporate Services,ATOS IT SERVICES UK LTD,2014556,46.00 ,Provision of IT Peripherals and individually ordered software and equipment
Ministry of Justice,MoJ HQ,30/11/2015,265000-IT & Telecommunications,NZ900-Finance & Corporate Services,ATOS IT SERVICES UK LTD,2014556,46.00 ,Provision of IT Peripherals and individually ordered software and equipment
Ministry of Justice,MoJ HQ,30/11/2015,265000-IT & Telecommunications,NZ900-Finance & Corporate Services,ATOS IT SERVICES UK LTD,2014556,31.31 ,Provision of IT Peripherals and individually ordered software and equipment
Ministry of Justice,MoJ HQ,30/11/2015,265000-IT & Telecommunications,NZ900-Finance & Corporate Services,ATOS IT SERVICES UK LTD,2014556,25.78 ,Provision of IT Peripherals and individually ordered software and equipment
Ministry of Justice,MoJ HQ,30/11/2015,265000-IT & Telecommunications,NZ900-Finance & Corporate Services,ATOS IT SERVICES UK LTD,2014556,25.78 ,Provision of IT Peripherals and individually ordered software and equipment
Ministry of Justice,MoJ HQ,30/11/2015,265000-IT & Telecommunications,NZ900-Finance & Corporate Services,ATOS IT SERVICES UK LTD,2014556,25.78 ,Provision of IT Peripherals and individually ordered software and equipment
Ministry of Justice,MoJ HQ,30/11/2015,265000-IT & Telecommunications,NZ900-Finance & Corporate Services,ATOS IT SERVICES UK LTD,2014556,25.78 ,Provision of IT Peripherals and individually ordered software and equipment
Ministry of Justice,MoJ HQ,30/11/2015,265000-IT & Telecommunications,NZ900-Finance & Corporate Services,ATOS IT SERVICES UK LTD,2014556,25.78 ,Provision of IT Peripherals and individually ordered software and equipment
Ministry of Justice,MoJ HQ,30/11/2015,265000-IT & Telecommunications,NZ900-Finance & Corporate Services,ATOS IT SERVICES UK LTD,2014556,25.78 ,Provision of IT Peripherals and individually ordered software and equipment
Ministry of Justice,MoJ HQ,30/11/2015,265000-IT & Telecommunications,NZ900-Finance & Corporate Services,ATOS IT SERVICES UK LTD,2014556,25.78 ,Provision of IT Peripherals and individually ordered software and equipment
Ministry of Justice,MoJ HQ,30/11/2015,265000-IT & Telecommunications,NZ900-Finance & Corporate Services,ATOS IT SERVICES UK LTD,2014556,25.78 ,Provision of IT Peripherals and individually ordered software and equipment
Ministry of Justice,MoJ HQ,30/11/2015,265000-IT & Telecommunications,NZ900-Finance & Corporate Services,ATOS IT SERVICES UK LTD,2014556,25.78 ,Provision of IT Peripherals and individually ordered software and equipment
Ministry of Justice,MoJ HQ,30/11/2015,265000-IT & Telecommunications,NZ900-Finance & Corporate Services,ATOS IT SERVICES UK LTD,2014556,25.78 ,Provision of IT Peripherals and individually ordered software and equipment
Ministry of Justice,MoJ HQ,30/11/2015,265000-IT & Telecommunications,NZ900-Finance & Corporate Services,ATOS IT SERVICES UK LTD,2014556,25.78 ,Provision of IT Peripherals and individually ordered software and equipment
Ministry of Justice,MoJ HQ,30/11/2015,265000-IT & Telecommunications,NZ900-Finance & Corporate Services,ATOS IT SERVICES UK LTD,2014556,25.78 ,Provision of IT Peripherals and individually ordered software and equipment
Ministry of Justice,MoJ HQ,30/11/2015,265000-IT & Telecommunications,NZ900-Finance & Corporate Services,ATOS IT SERVICES UK LTD,2014556,25.78 ,Provision of IT Peripherals and individually ordered software and equipment
Ministry of Justice,MoJ HQ,30/11/2015,265000-IT & Telecommunications,NZ900-Finance & Corporate Services,ATOS IT SERVICES UK LTD,2014556,25.78 ,Provision of IT Peripherals and individually ordered software and equipment
Ministry of Justice,MoJ HQ,30/11/2015,265000-IT & Telecommunications,NZ900-Finance & Corporate Services,ATOS IT SERVICES UK LTD,2014556,25.78 ,Provision of IT Peripherals and individually ordered software and equipment
Ministry of Justice,MoJ HQ,30/11/2015,265000-IT & Telecommunications,NZ900-Finance & Corporate Services,ATOS IT SERVICES UK LTD,2014556,18.33 ,Provision of IT Peripherals and individually ordered software and equipment
Ministry of Justice,MoJ HQ,30/11/2015,265000-IT & Telecommunications,NZ900-Finance & Corporate Services,ATOS IT SERVICES UK LTD,2014556,18.33 ,Provision of IT Peripherals and individually ordered software and equipment
Ministry of Justice,MoJ HQ,30/11/2015,265000-IT & Telecommunications,NZ900-Finance & Corporate Services,ATOS IT SERVICES UK LTD,2014556,18.33 ,Provision of IT Peripherals and individually ordered software and equipment
Ministry of Justice,MoJ HQ,30/11/2015,265000-IT & Telecommunications,NZ900-Finance & Corporate Services,ATOS IT SERVICES UK LTD,2014556,12.00 ,Provision of IT Peripherals and individually ordered software and equipment
Ministry of Justice,MoJ HQ,30/11/2015,265000-IT & Telecommunications,NZ900-Finance & Corporate Services,ATOS IT SERVICES UK LTD,2014556,11.62 ,Provision of IT Peripherals and individually ordered software and equipment
Ministry of Justice,MoJ HQ,30/11/2015,265000-IT & Telecommunications,NZ900-Finance & Corporate Services,ATOS IT SERVICES UK LTD,2014556,11.62 ,Provision of IT Peripherals and individually ordered software and equipment
Ministry of Justice,MoJ HQ,30/11/2015,265000-IT & Telecommunications,NZ900-Finance & Corporate Services,ATOS IT SERVICES UK LTD,2014556,11.62 ,Provision of IT Peripherals and individually ordered software and equipment
Ministry of Justice,MoJ HQ,30/11/2015,265000-IT & Telecommunications,NZ900-Finance & Corporate Services,ATOS IT SERVICES UK LTD,2014556,11.62 ,Provision of IT Peripherals and individually ordered software and equipment
Ministry of Justice,MoJ HQ,30/11/2015,265000-IT & Telecommunications,NZ900-Finance & Corporate Services,ATOS IT SERVICES UK LTD,2014556,11.62 ,Provision of IT Peripherals and individually ordered software and equipment
Ministry of Justice,MoJ HQ,30/11/2015,265000-IT & Telecommunications,NZ900-Finance & Corporate Services,ATOS IT SERVICES UK LTD,2014556,11.62 ,Provision of IT Peripherals and individually ordered software and equipment
Ministry of Justice,MoJ HQ,30/11/2015,265000-IT & Telecommunications,NZ900-Finance & Corporate Services,ATOS IT SERVICES UK LTD,2014556,10.92 ,Provision of IT Peripherals and individually ordered software and equipment
Ministry of Justice,MoJ HQ,30/11/2015,265000-IT & Telecommunications,NZ900-Finance & Corporate Services,ATOS IT SERVICES UK LTD,2014556,6.38 ,Provision of IT Peripherals and individually ordered software and equipment
Ministry of Justice,MoJ HQ,02/11/2015,265000-IT & Telecommunications,NZ900-Finance & Corporate Services,ATOS IT SERVICES UK LTD,2012759,"1,589.73 ",Provision of IT Peripherals and individually ordered software and equipment
Ministry of Justice,MoJ HQ,02/11/2015,265000-IT & Telecommunications,NZ900-Finance & Corporate Services,ATOS IT SERVICES UK LTD,2012759,"1,589.73 ",Provision of IT Peripherals and individually ordered software and equipment
Ministry of Justice,MoJ HQ,02/11/2015,265000-IT & Telecommunications,NZ900-Finance & Corporate Services,ATOS IT SERVICES UK LTD,2012759,"1,398.30 ",Provision of IT Peripherals and individually ordered software and equipment
Ministry of Justice,MoJ HQ,02/11/2015,265000-IT & Telecommunications,NZ900-Finance & Corporate Services,ATOS IT SERVICES UK LTD,2012759,"1,398.30 ",Provision of IT Peripherals and individually ordered software and equipment
Ministry of Justice,MoJ HQ,02/11/2015,265000-IT & Telecommunications,NZ900-Finance & Corporate Services,ATOS IT SERVICES UK LTD,2012759,"1,398.30 ",Provision of IT Peripherals and individually ordered software and equipment
Ministry of Justice,MoJ HQ,02/11/2015,265000-IT & Telecommunications,NZ900-Finance & Corporate Services,ATOS IT SERVICES UK LTD,2012759,"1,398.30 ",Provision of IT Peripherals and individually ordered software and equipment
Ministry of Justice,MoJ HQ,02/11/2015,265000-IT & Telecommunications,NZ900-Finance & Corporate Services,ATOS IT SERVICES UK LTD,2012759,"1,398.30 ",Provision of IT Peripherals and individually ordered software and equipment
Ministry of Justice,MoJ HQ,02/11/2015,265000-IT & Telecommunications,NZ900-Finance & Corporate Services,ATOS IT SERVICES UK LTD,2012759,859.37 ,Provision of IT Peripherals and individually ordered software and equipment
Ministry of Justice,MoJ HQ,02/11/2015,265000-IT & Telecommunications,NZ900-Finance & Corporate Services,ATOS IT SERVICES UK LTD,2012759,859.37 ,Provision of IT Peripherals and individually ordered software and equipment
Ministry of Justice,MoJ HQ,02/11/2015,265000-IT & Telecommunications,NZ900-Finance & Corporate Services,ATOS IT SERVICES UK LTD,2012759,859.37 ,Provision of IT Peripherals and individually ordered software and equipment
Ministry of Justice,MoJ HQ,02/11/2015,265000-IT & Telecommunications,NZ900-Finance & Corporate Services,ATOS IT SERVICES UK LTD,2012759,859.37 ,Provision of IT Peripherals and individually ordered software and equipment
Ministry of Justice,MoJ HQ,02/11/2015,265000-IT & Telecommunications,NZ900-Finance & Corporate Services,ATOS IT SERVICES UK LTD,2012759,859.37 ,Provision of IT Peripherals and individually ordered software and equipment
Ministry of Justice,MoJ HQ,02/11/2015,265000-IT & Telecommunications,NZ900-Finance & Corporate Services,ATOS IT SERVICES UK LTD,2012759,859.37 ,Provision of IT Peripherals and individually ordered software and equipment
Ministry of Justice,MoJ HQ,02/11/2015,265000-IT & Telecommunications,NZ900-Finance & Corporate Services,ATOS IT SERVICES UK LTD,2012759,859.37 ,Provision of IT Peripherals and individually ordered software and equipment
Ministry of Justice,MoJ HQ,02/11/2015,265000-IT & Telecommunications,NZ900-Finance & Corporate Services,ATOS IT SERVICES UK LTD,2012759,859.37 ,Provision of IT Peripherals and individually ordered software and equipment
Ministry of Justice,MoJ HQ,02/11/2015,265000-IT & Telecommunications,NZ900-Finance & Corporate Services,ATOS IT SERVICES UK LTD,2012759,859.37 ,Provision of IT Peripherals and individually ordered software and equipment
Ministry of Justice,MoJ HQ,02/11/2015,265000-IT & Telecommunications,NZ900-Finance & Corporate Services,ATOS IT SERVICES UK LTD,2012759,859.37 ,Provision of IT Peripherals and individually ordered software and equipment
Ministry of Justice,MoJ HQ,02/11/2015,265000-IT & Telecommunications,NZ900-Finance & Corporate Services,ATOS IT SERVICES UK LTD,2012759,859.37 ,Provision of IT Peripherals and individually ordered software and equipment
Ministry of Justice,MoJ HQ,02/11/2015,265000-IT & Telecommunications,NZ900-Finance & Corporate Services,ATOS IT SERVICES UK LTD,2012759,859.37 ,Provision of IT Peripherals and individually ordered software and equipment
Ministry of Justice,MoJ HQ,02/11/2015,265000-IT & Telecommunications,NZ900-Finance & Corporate Services,ATOS IT SERVICES UK LTD,2012759,859.37 ,Provision of IT Peripherals and individually ordered software and equipment
Ministry of Justice,MoJ HQ,02/11/2015,265000-IT & Telecommunications,NZ900-Finance & Corporate Services,ATOS IT SERVICES UK LTD,2012759,859.37 ,Provision of IT Peripherals and individually ordered software and equipment
Ministry of Justice,MoJ HQ,02/11/2015,265000-IT & Telecommunications,NZ900-Finance & Corporate Services,ATOS IT SERVICES UK LTD,2012759,859.37 ,Provision of IT Peripherals and individually ordered software and equipment
Ministry of Justice,MoJ HQ,02/11/2015,265000-IT & Telecommunications,NZ900-Finance & Corporate Services,ATOS IT SERVICES UK LTD,2012759,859.37 ,Provision of IT Peripherals and individually ordered software and equipment
Ministry of Justice,MoJ HQ,02/11/2015,265000-IT & Telecommunications,NZ900-Finance & Corporate Services,ATOS IT SERVICES UK LTD,2012759,381.33 ,Provision of IT Peripherals and individually ordered software and equipment
Ministry of Justice,MoJ HQ,02/11/2015,265000-IT & Telecommunications,NZ900-Finance & Corporate Services,ATOS IT SERVICES UK LTD,2012759,354.13 ,Provision of IT Peripherals and individually ordered software and equipment
Ministry of Justice,MoJ HQ,02/11/2015,265000-IT & Telecommunications,NZ900-Finance & Corporate Services,ATOS IT SERVICES UK LTD,2012759,354.13 ,Provision of IT Peripherals and individually ordered software and equipment
Ministry of Justice,MoJ HQ,02/11/2015,265000-IT & Telecommunications,NZ900-Finance & Corporate Services,ATOS IT SERVICES UK LTD,2012759,328.00 ,Provision of IT Peripherals and individually ordered software and equipment
Ministry of Justice,MoJ HQ,02/11/2015,265000-IT & Telecommunications,NZ900-Finance & Corporate Services,ATOS IT SERVICES UK LTD,2012759,328.00 ,Provision of IT Peripherals and individually ordered software and equipment
Ministry of Justice,MoJ HQ,02/11/2015,265000-IT & Telecommunications,NZ900-Finance & Corporate Services,ATOS IT SERVICES UK LTD,2012759,265.63 ,Provision of IT Peripherals and individually ordered software and equipment
Ministry of Justice,MoJ HQ,02/11/2015,265000-IT & Telecommunications,NZ900-Finance & Corporate Services,ATOS IT SERVICES UK LTD,2012759,265.63 ,Provision of IT Peripherals and individually ordered software and equipment
Ministry of Justice,MoJ HQ,02/11/2015,265000-IT & Telecommunications,NZ900-Finance & Corporate Services,ATOS IT SERVICES UK LTD,2012759,265.63 ,Provision of IT Peripherals and individually ordered software and equipment
Ministry of Justice,MoJ HQ,02/11/2015,265000-IT & Telecommunications,NZ900-Finance & Corporate Services,ATOS IT SERVICES UK LTD,2012759,265.63 ,Provision of IT Peripherals and individually ordered software and equipment
Ministry of Justice,MoJ HQ,02/11/2015,265000-IT & Telecommunications,NZ900-Finance & Corporate Services,ATOS IT SERVICES UK LTD,2012759,265.63 ,Provision of IT Peripherals and individually ordered software and equipment
Ministry of Justice,MoJ HQ,02/11/2015,265000-IT & Telecommunications,NZ900-Finance & Corporate Services,ATOS IT SERVICES UK LTD,2012759,164.00 ,Provision of IT Peripherals and individually ordered software and equipment
Ministry of Justice,MoJ HQ,02/11/2015,265000-IT & Telecommunications,NZ900-Finance & Corporate Services,ATOS IT SERVICES UK LTD,2012759,164.00 ,Provision of IT Peripherals and individually ordered software and equipment
Ministry of Justice,MoJ HQ,02/11/2015,265000-IT & Telecommunications,NZ900-Finance & Corporate Services,ATOS IT SERVICES UK LTD,2012759,164.00 ,Provision of IT Peripherals and individually ordered software and equipment
Ministry of Justice,MoJ HQ,02/11/2015,265000-IT & Telecommunications,NZ900-Finance & Corporate Services,ATOS IT SERVICES UK LTD,2012759,164.00 ,Provision of IT Peripherals and individually ordered software and equipment
Ministry of Justice,MoJ HQ,02/11/2015,265000-IT & Telecommunications,NZ900-Finance & Corporate Services,ATOS IT SERVICES UK LTD,2012759,164.00 ,Provision of IT Peripherals and individually ordered software and equipment
Ministry of Justice,MoJ HQ,02/11/2015,265000-IT & Telecommunications,NZ900-Finance & Corporate Services,ATOS IT SERVICES UK LTD,2012759,164.00 ,Provision of IT Peripherals and individually ordered software and equipment
Ministry of Justice,MoJ HQ,02/11/2015,265000-IT & Telecommunications,NZ900-Finance & Corporate Services,ATOS IT SERVICES UK LTD,2012759,164.00 ,Provision of IT Peripherals and individually ordered software and equipment
Ministry of Justice,MoJ HQ,02/11/2015,265000-IT & Telecommunications,NZ900-Finance & Corporate Services,ATOS IT SERVICES UK LTD,2012759,164.00 ,Provision of IT Peripherals and individually ordered software and equipment
Ministry of Justice,MoJ HQ,02/11/2015,265000-IT & Telecommunications,NZ900-Finance & Corporate Services,ATOS IT SERVICES UK LTD,2012759,164.00 ,Provision of IT Peripherals and individually ordered software and equipment
Ministry of Justice,MoJ HQ,02/11/2015,265000-IT & Telecommunications,NZ900-Finance & Corporate Services,ATOS IT SERVICES UK LTD,2012759,164.00 ,Provision of IT Peripherals and individually ordered software and equipment
Ministry of Justice,MoJ HQ,02/11/2015,265000-IT & Telecommunications,NZ900-Finance & Corporate Services,ATOS IT SERVICES UK LTD,2012759,164.00 ,Provision of IT Peripherals and individually ordered software and equipment
Ministry of Justice,MoJ HQ,02/11/2015,265000-IT & Telecommunications,NZ900-Finance & Corporate Services,ATOS IT SERVICES UK LTD,2012759,164.00 ,Provision of IT Peripherals and individually ordered software and equipment
Ministry of Justice,MoJ HQ,02/11/2015,265000-IT & Telecommunications,NZ900-Finance & Corporate Services,ATOS IT SERVICES UK LTD,2012759,113.16 ,Provision of IT Peripherals and individually ordered software and equipment
Ministry of Justice,MoJ HQ,02/11/2015,265000-IT & Telecommunications,NZ900-Finance & Corporate Services,ATOS IT SERVICES UK LTD,2012759,83.96 ,Provision of IT Peripherals and individually ordered software and equipment
Ministry of Justice,MoJ HQ,02/11/2015,265000-IT & Telecommunications,NZ900-Finance & Corporate Services,ATOS IT SERVICES UK LTD,2012759,55.15 ,Provision of IT Peripherals and individually ordered software and equipment
Ministry of Justice,MoJ HQ,02/11/2015,265000-IT & Telecommunications,NZ900-Finance & Corporate Services,ATOS IT SERVICES UK LTD,2012759,48.12 ,Provision of IT Peripherals and individually ordered software and equipment
Ministry of Justice,MoJ HQ,02/11/2015,265000-IT & Telecommunications,NZ900-Finance & Corporate Services,ATOS IT SERVICES UK LTD,2012759,46.22 ,Provision of IT Peripherals and individually ordered software and equipment
Ministry of Justice,MoJ HQ,02/11/2015,265000-IT & Telecommunications,NZ900-Finance & Corporate Services,ATOS IT SERVICES UK LTD,2012759,46.00 ,Provision of IT Peripherals and individually ordered software and equipment
Ministry of Justice,MoJ HQ,02/11/2015,265000-IT & Telecommunications,NZ900-Finance & Corporate Services,ATOS IT SERVICES UK LTD,2012759,46.00 ,Provision of IT Peripherals and individually ordered software and equipment
Ministry of Justice,MoJ HQ,02/11/2015,265000-IT & Telecommunications,NZ900-Finance & Corporate Services,ATOS IT SERVICES UK LTD,2012759,43.22 ,Provision of IT Peripherals and individually ordered software and equipment
Ministry of Justice,MoJ HQ,02/11/2015,265000-IT & Telecommunications,NZ900-Finance & Corporate Services,ATOS IT SERVICES UK LTD,2012759,43.22 ,Provision of IT Peripherals and individually ordered software and equipment
Ministry of Justice,MoJ HQ,02/11/2015,265000-IT & Telecommunications,NZ900-Finance & Corporate Services,ATOS IT SERVICES UK LTD,2012759,43.22 ,Provision of IT Peripherals and individually ordered software and equipment
Ministry of Justice,MoJ HQ,02/11/2015,265000-IT & Telecommunications,NZ900-Finance & Corporate Services,ATOS IT SERVICES UK LTD,2012759,43.22 ,Provision of IT Peripherals and individually ordered software and equipment
Ministry of Justice,MoJ HQ,02/11/2015,265000-IT & Telecommunications,NZ900-Finance & Corporate Services,ATOS IT SERVICES UK LTD,2012759,43.22 ,Provision of IT Peripherals and individually ordered software and equipment
Ministry of Justice,MoJ HQ,02/11/2015,265000-IT & Telecommunications,NZ900-Finance & Corporate Services,ATOS IT SERVICES UK LTD,2012759,43.22 ,Provision of IT Peripherals and individually ordered software and equipment
Ministry of Justice,MoJ HQ,02/11/2015,265000-IT & Telecommunications,NZ900-Finance & Corporate Services,ATOS IT SERVICES UK LTD,2012759,35.39 ,Provision of IT Peripherals and individually ordered software and equipment
Ministry of Justice,MoJ HQ,02/11/2015,265000-IT & Telecommunications,NZ900-Finance & Corporate Services,ATOS IT SERVICES UK LTD,2012759,22.84 ,Provision of IT Peripherals and individually ordered software and equipment
Ministry of Justice,MoJ HQ,02/11/2015,265000-IT & Telecommunications,NZ900-Finance & Corporate Services,ATOS IT SERVICES UK LTD,2012759,22.84 ,Provision of IT Peripherals and individually ordered software and equipment
Ministry of Justice,MoJ HQ,02/11/2015,265000-IT & Telecommunications,NZ900-Finance & Corporate Services,ATOS IT SERVICES UK LTD,2012759,22.84 ,Provision of IT Peripherals and individually ordered software and equipment
Ministry of Justice,MoJ HQ,02/11/2015,265000-IT & Telecommunications,NZ900-Finance & Corporate Services,ATOS IT SERVICES UK LTD,2012759,22.84 ,Provision of IT Peripherals and individually ordered software and equipment
Ministry of Justice,MoJ HQ,02/11/2015,265000-IT & Telecommunications,NZ900-Finance & Corporate Services,ATOS IT SERVICES UK LTD,2012759,12.98 ,Provision of IT Peripherals and individually ordered software and equipment
Ministry of Justice,MoJ HQ,30/11/2015,265000-IT & Telecommunications,NZ900-Finance & Corporate Services,ATOS IT SERVICES UK LTD,2014556,"2,320.09 ",Costs of site powerdown
Ministry of Justice,MoJ HQ,30/11/2015,265000-IT & Telecommunications,NZ900-Finance & Corporate Services,ATOS IT SERVICES UK LTD,2014556,"1,589.73 ",Costs of site powerdown
Ministry of Justice,MoJ HQ,30/11/2015,265000-IT & Telecommunications,NZ900-Finance & Corporate Services,ATOS IT SERVICES UK LTD,2014556,859.37 ,Provision of IT Peripherals and individually ordered software and equipment
Ministry of Justice,MoJ HQ,30/11/2015,265000-IT & Telecommunications,NZ900-Finance & Corporate Services,ATOS IT SERVICES UK LTD,2014556,859.37 ,Provision of IT Peripherals and individually ordered software and equipment
Ministry of Justice,MoJ HQ,30/11/2015,265000-IT & Telecommunications,NZ900-Finance & Corporate Services,ATOS IT SERVICES UK LTD,2014556,859.37 ,Provision of IT Peripherals and individually ordered software and equipment
Ministry of Justice,MoJ HQ,30/11/2015,265000-IT & Telecommunications,NZ900-Finance & Corporate Services,ATOS IT SERVICES UK LTD,2014556,859.37 ,Provision of IT Peripherals and individually ordered software and equipment
Ministry of Justice,MoJ HQ,30/11/2015,265000-IT & Telecommunications,NZ900-Finance & Corporate Services,ATOS IT SERVICES UK LTD,2014556,859.37 ,Provision of IT Peripherals and individually ordered software and equipment
Ministry of Justice,MoJ HQ,30/11/2015,265000-IT & Telecommunications,NZ900-Finance & Corporate Services,ATOS IT SERVICES UK LTD,2014556,859.37 ,Provision of IT Peripherals and individually ordered software and equipment
Ministry of Justice,MoJ HQ,30/11/2015,265000-IT & Telecommunications,NZ900-Finance & Corporate Services,ATOS IT SERVICES UK LTD,2014556,859.37 ,Provision of IT Peripherals and individually ordered software and equipment
Ministry of Justice,MoJ HQ,30/11/2015,265000-IT & Telecommunications,NZ900-Finance & Corporate Services,ATOS IT SERVICES UK LTD,2014556,587.22 ,Provision of IT Peripherals and individually ordered software and equipment
Ministry of Justice,MoJ HQ,30/11/2015,265000-IT & Telecommunications,NZ900-Finance & Corporate Services,ATOS IT SERVICES UK LTD,2014556,381.33 ,Provision of IT Peripherals and individually ordered software and equipment
Ministry of Justice,MoJ HQ,30/11/2015,265000-IT & Telecommunications,NZ900-Finance & Corporate Services,ATOS IT SERVICES UK LTD,2014556,282.62 ,Provision of IT Peripherals and individually ordered software and equipment
Ministry of Justice,MoJ HQ,30/11/2015,265000-IT & Telecommunications,NZ900-Finance & Corporate Services,ATOS IT SERVICES UK LTD,2014556,265.63 ,Provision of IT Peripherals and individually ordered software and equipment
Ministry of Justice,MoJ HQ,30/11/2015,265000-IT & Telecommunications,NZ900-Finance & Corporate Services,ATOS IT SERVICES UK LTD,2014556,164.00 ,Provision of IT Peripherals and individually ordered software and equipment
Ministry of Justice,MoJ HQ,30/11/2015,265000-IT & Telecommunications,NZ900-Finance & Corporate Services,ATOS IT SERVICES UK LTD,2014556,164.00 ,Provision of IT Peripherals and individually ordered software and equipment
Ministry of Justice,MoJ HQ,30/11/2015,265000-IT & Telecommunications,NZ900-Finance & Corporate Services,ATOS IT SERVICES UK LTD,2014556,164.00 ,Provision of IT Peripherals and individually ordered software and equipment
Ministry of Justice,MoJ HQ,30/11/2015,265000-IT & Telecommunications,NZ900-Finance & Corporate Services,ATOS IT SERVICES UK LTD,2014556,164.00 ,Provision of IT Peripherals and individually ordered software and equipment
Ministry of Justice,MoJ HQ,30/11/2015,265000-IT & Telecommunications,NZ900-Finance & Corporate Services,ATOS IT SERVICES UK LTD,2014556,164.00 ,Provision of IT Peripherals and individually ordered software and equipment
Ministry of Justice,MoJ HQ,30/11/2015,265000-IT & Telecommunications,NZ900-Finance & Corporate Services,ATOS IT SERVICES UK LTD,2014556,164.00 ,Provision of IT Peripherals and individually ordered software and equipment
Ministry of Justice,MoJ HQ,30/11/2015,265000-IT & Telecommunications,NZ900-Finance & Corporate Services,ATOS IT SERVICES UK LTD,2014556,164.00 ,Provision of IT Peripherals and individually ordered software and equipment
Ministry of Justice,MoJ HQ,30/11/2015,265000-IT & Telecommunications,NZ900-Finance & Corporate Services,ATOS IT SERVICES UK LTD,2014556,164.00 ,Provision of IT Peripherals and individually ordered software and equipment
Ministry of Justice,MoJ HQ,30/11/2015,265000-IT & Telecommunications,NZ900-Finance & Corporate Services,ATOS IT SERVICES UK LTD,2014556,164.00 ,Provision of IT Peripherals and individually ordered software and equipment
Ministry of Justice,MoJ HQ,30/11/2015,265000-IT & Telecommunications,NZ900-Finance & Corporate Services,ATOS IT SERVICES UK LTD,2014556,164.00 ,Provision of IT Peripherals and individually ordered software and equipment
Ministry of Justice,MoJ HQ,30/11/2015,265000-IT & Telecommunications,NZ900-Finance & Corporate Services,ATOS IT SERVICES UK LTD,2014556,164.00 ,Provision of IT Peripherals and individually ordered software and equipment
Ministry of Justice,MoJ HQ,30/11/2015,265000-IT & Telecommunications,NZ900-Finance & Corporate Services,ATOS IT SERVICES UK LTD,2014556,164.00 ,Provision of IT Peripherals and individually ordered software and equipment
Ministry of Justice,MoJ HQ,30/11/2015,265000-IT & Telecommunications,NZ900-Finance & Corporate Services,ATOS IT SERVICES UK LTD,2014556,164.00 ,Provision of IT Peripherals and individually ordered software and equipment
Ministry of Justice,MoJ HQ,30/11/2015,265000-IT & Telecommunications,NZ900-Finance & Corporate Services,ATOS IT SERVICES UK LTD,2014556,164.00 ,Provision of IT Peripherals and individually ordered software and equipment
Ministry of Justice,MoJ HQ,30/11/2015,265000-IT & Telecommunications,NZ900-Finance & Corporate Services,ATOS IT SERVICES UK LTD,2014556,164.00 ,Provision of IT Peripherals and individually ordered software and equipment
Ministry of Justice,MoJ HQ,30/11/2015,265000-IT & Telecommunications,NZ900-Finance & Corporate Services,ATOS IT SERVICES UK LTD,2014556,164.00 ,Provision of IT Peripherals and individually ordered software and equipment
Ministry of Justice,MoJ HQ,30/11/2015,265000-IT & Telecommunications,NZ900-Finance & Corporate Services,ATOS IT SERVICES UK LTD,2014556,83.96 ,Provision of IT Peripherals and individually ordered software and equipment
Ministry of Justice,MoJ HQ,30/11/2015,265000-IT & Telecommunications,NZ900-Finance & Corporate Services,ATOS IT SERVICES UK LTD,2014556,83.96 ,Provision of IT Peripherals and individually ordered software and equipment
Ministry of Justice,MoJ HQ,30/11/2015,265000-IT & Telecommunications,NZ900-Finance & Corporate Services,ATOS IT SERVICES UK LTD,2014556,48.12 ,Provision of IT Peripherals and individually ordered software and equipment
Ministry of Justice,MoJ HQ,30/11/2015,265000-IT & Telecommunications,NZ900-Finance & Corporate Services,ATOS IT SERVICES UK LTD,2014556,48.12 ,Provision of IT Peripherals and individually ordered software and equipment
Ministry of Justice,MoJ HQ,30/11/2015,265000-IT & Telecommunications,NZ900-Finance & Corporate Services,ATOS IT SERVICES UK LTD,2014556,48.12 ,Provision of IT Peripherals and individually ordered software and equipment
Ministry of Justice,MoJ HQ,30/11/2015,265000-IT & Telecommunications,NZ900-Finance & Corporate Services,ATOS IT SERVICES UK LTD,2014556,48.12 ,Provision of IT Peripherals and individually ordered software and equipment
Ministry of Justice,MoJ HQ,30/11/2015,265000-IT & Telecommunications,NZ900-Finance & Corporate Services,ATOS IT SERVICES UK LTD,2014556,48.12 ,Provision of IT Peripherals and individually ordered software and equipment
Ministry of Justice,MoJ HQ,30/11/2015,265000-IT & Telecommunications,NZ900-Finance & Corporate Services,ATOS IT SERVICES UK LTD,2014556,48.12 ,Provision of IT Peripherals and individually ordered software and equipment
Ministry of Justice,MoJ HQ,30/11/2015,265000-IT & Telecommunications,NZ900-Finance & Corporate Services,ATOS IT SERVICES UK LTD,2014556,48.12 ,Provision of IT Peripherals and individually ordered software and equipment
Ministry of Justice,MoJ HQ,30/11/2015,265000-IT & Telecommunications,NZ900-Finance & Corporate Services,ATOS IT SERVICES UK LTD,2014556,48.12 ,Provision of IT Peripherals and individually ordered software and equipment
Ministry of Justice,MoJ HQ,30/11/2015,265000-IT & Telecommunications,NZ900-Finance & Corporate Services,ATOS IT SERVICES UK LTD,2014556,48.12 ,Provision of IT Peripherals and individually ordered software and equipment
Ministry of Justice,MoJ HQ,30/11/2015,265000-IT & Telecommunications,NZ900-Finance & Corporate Services,ATOS IT SERVICES UK LTD,2014556,48.12 ,Provision of IT Peripherals and individually ordered software and equipment
Ministry of Justice,MoJ HQ,30/11/2015,265000-IT & Telecommunications,NZ900-Finance & Corporate Services,ATOS IT SERVICES UK LTD,2014556,48.12 ,Provision of IT Peripherals and individually ordered software and equipment
Ministry of Justice,MoJ HQ,30/11/2015,265000-IT & Telecommunications,NZ900-Finance & Corporate Services,ATOS IT SERVICES UK LTD,2014556,48.12 ,Provision of IT Peripherals and individually ordered software and equipment
Ministry of Justice,MoJ HQ,30/11/2015,265000-IT & Telecommunications,NZ900-Finance & Corporate Services,ATOS IT SERVICES UK LTD,2014556,48.12 ,Provision of IT Peripherals and individually ordered software and equipment
Ministry of Justice,MoJ HQ,30/11/2015,265000-IT & Telecommunications,NZ900-Finance & Corporate Services,ATOS IT SERVICES UK LTD,2014556,48.12 ,Provision of IT Peripherals and individually ordered software and equipment
Ministry of Justice,MoJ HQ,30/11/2015,265000-IT & Telecommunications,NZ900-Finance & Corporate Services,ATOS IT SERVICES UK LTD,2014556,46.00 ,Provision of IT Peripherals and individually ordered software and equipment
Ministry of Justice,MoJ HQ,30/11/2015,265000-IT & Telecommunications,NZ900-Finance & Corporate Services,ATOS IT SERVICES UK LTD,2014556,43.22 ,Provision of IT Peripherals and individually ordered software and equipment
Ministry of Justice,MoJ HQ,30/11/2015,265000-IT & Telecommunications,NZ900-Finance & Corporate Services,ATOS IT SERVICES UK LTD,2014556,33.33 ,Provision of IT Peripherals and individually ordered software and equipment
Ministry of Justice,MoJ HQ,30/11/2015,265000-IT & Telecommunications,NZ900-Finance & Corporate Services,ATOS IT SERVICES UK LTD,2014556,22.84 ,Provision of IT Peripherals and individually ordered software and equipment
Ministry of Justice,MoJ HQ,19/11/2015,265000-IT & Telecommunications,NZ900-Finance & Corporate Services,IBM DIRECT( UNITED KINGDOM) LTD,2013845,"2,370,333.00 ",IBM ELA Licence Support Contribution
Ministry of Justice,MoJ HQ,19/11/2015,265000-IT & Telecommunications,NZ900-Finance & Corporate Services,IBM DIRECT( UNITED KINGDOM) LTD,2013845,"474,066.60 ",IBM ELA Licence Support Contribution
Ministry of Justice,MoJ HQ,26/11/2015,265000-IT & Telecommunications,NZ900-Finance & Corporate Services,SOPRA STERIA LTD,2014490,"23,044.97 ",GAPS 2 - Monthly Support costs
Ministry of Justice,MoJ HQ,26/11/2015,265000-IT & Telecommunications,NZ900-Finance & Corporate Services,SOPRA STERIA LTD,2014490,"4,608.99 ",GAPS 2 - Monthly Support costs
Ministry of Justice,MoJ HQ,30/11/2015,265000-IT & Telecommunications,NZ900-Finance & Corporate Services,VODAFONE LTD (RETAIL),2014726,"608,525.68 ",Vodafone Telephony Services
Ministry of Justice,MoJ HQ,30/11/2015,265000-IT & Telecommunications,NZ900-Finance & Corporate Services,VODAFONE LTD (RETAIL),2014726,"121,705.14 ",Vodafone Telephony Services
Ministry of Justice,MoJ HQ,23/11/2015,610400-Debtors <1 year - Prepayments & Accrued Income,WW000-Balance Sheet,BIRMINGHAM CITY COUNCIL,2013988,"18,364.25 ",Payment of Rates for the Axis Building (Part 5th Floor) 
Ministry of Justice,MoJ HQ,23/11/2015,610400-Debtors <1 year - Prepayments & Accrued Income,WW000-Balance Sheet,BIRMINGHAM CITY COUNCIL,2013988,"16,515.50 ","Duplicate payment of Rates erroneously made against HQ BE code, correction being processed.."
Ministry of Justice,MoJ HQ,23/11/2015,610400-Debtors <1 year - Prepayments & Accrued Income,WW000-Balance Sheet,BIRMINGHAM CITY COUNCIL,2013988,"4,930.00 ","Payment of Rates for the Axis Building (8th Floor, West) "
Ministry of Justice,MoJ HQ,23/11/2015,610400-Debtors <1 year - Prepayments & Accrued Income,WW000-Balance Sheet,BIRMINGHAM CITY COUNCIL,2013988,"2,933.35 ",Payment of Rates for the Axis Building (4th Floor) 
Ministry of Justice,MoJ HQ,23/11/2015,610400-Debtors <1 year - Prepayments & Accrued Income,WW000-Balance Sheet,BIRMINGHAM CITY COUNCIL,2013988,"2,859.40 ","Payment of Rates for the Axis Building (8th Floor, South) "
Ministry of Justice,MoJ HQ,23/11/2015,610400-Debtors <1 year - Prepayments & Accrued Income,WW000-Balance Sheet,CITY OF WESTMINSTER,2013989,"611,496.00 ",Payment of Rates for 102 Petty France
Ministry of Justice,MoJ HQ,23/11/2015,610400-Debtors <1 year - Prepayments & Accrued Income,WW000-Balance Sheet,CITY OF WESTMINSTER,2013989,"130,815.00 ",Payment of Rates for Clive House
Ministry of Justice,MoJ HQ,23/11/2015,610400-Debtors <1 year - Prepayments & Accrued Income,WW000-Balance Sheet,CITY OF WESTMINSTER,2013989,"18,734.00 ",Payment of Rates for 30 Millbank
Ministry of Justice,MoJ HQ,27/11/2015,610400-Debtors <1 year - Prepayments & Accrued Income,WW000-Balance Sheet,LEICESTER CITY COUNCIL,2014552,"6,063.90 ",Payment of Rates for Peat House
Ministry of Justice,MoJ HQ,27/11/2015,610400-Debtors <1 year - Prepayments & Accrued Income,WW000-Balance Sheet,LEICESTER CITY COUNCIL,2014552,"6,057.84 ",Payment of Rates for Peat House
Ministry of Justice,MoJ HQ,02/11/2015,265000-IT & Telecommunications,"RD999-CJG - DGs Office, BDSU, Inspectorates & Ombudsman",ATOS IT SERVICES UK LTD,2012759,492.00 , Provision of IT Peripherals and individually ordered software and equipment- ALB - Prison and Probation Ombudsman
Ministry of Justice,MoJ HQ,02/11/2015,265000-IT & Telecommunications,"RD999-CJG - DGs Office, BDSU, Inspectorates & Ombudsman",ATOS IT SERVICES UK LTD,2012759,297.12 , Provision of IT Peripherals and individually ordered software and equipment
Ministry of Justice,MoJ HQ,02/11/2015,265000-IT & Telecommunications,"RD999-CJG - DGs Office, BDSU, Inspectorates & Ombudsman",ATOS IT SERVICES UK LTD,2012759,278.16 , Provision of IT Peripherals and individually ordered software and equipment- ALB - Prison and Probation Ombudsman
Ministry of Justice,MoJ HQ,02/11/2015,265000-IT & Telecommunications,"RD999-CJG - DGs Office, BDSU, Inspectorates & Ombudsman",ATOS IT SERVICES UK LTD,2012759,258.33 , Provision of IT Peripherals and individually ordered software and equipment- ALB- HM Chief Inspectorate of prison
Ministry of Justice,MoJ HQ,02/11/2015,265000-IT & Telecommunications,"RD999-CJG - DGs Office, BDSU, Inspectorates & Ombudsman",ATOS IT SERVICES UK LTD,2012759,258.33 , Provision of IT Peripherals and individually ordered software and equipment- ALB- HM Chief Inspectorate of prison
Ministry of Justice,MoJ HQ,02/11/2015,265000-IT & Telecommunications,"RD999-CJG - DGs Office, BDSU, Inspectorates & Ombudsman",ATOS IT SERVICES UK LTD,2012759,258.33 , Provision of IT Peripherals and individually ordered software and equipment- ALB- HM Chief Inspectorate of prison
Ministry of Justice,MoJ HQ,02/11/2015,265000-IT & Telecommunications,"RD999-CJG - DGs Office, BDSU, Inspectorates & Ombudsman",ATOS IT SERVICES UK LTD,2012759,164.00 , Provision of IT Peripherals and individually ordered software and equipment
Ministry of Justice,MoJ HQ,02/11/2015,265000-IT & Telecommunications,"RD999-CJG - DGs Office, BDSU, Inspectorates & Ombudsman",ATOS IT SERVICES UK LTD,2012759,164.00 , Provision of IT Peripherals and individually ordered software and equipment- ALB - Prison and Probation Ombudsman
Ministry of Justice,MoJ HQ,02/11/2015,265000-IT & Telecommunications,"RD999-CJG - DGs Office, BDSU, Inspectorates & Ombudsman",ATOS IT SERVICES UK LTD,2012759,150.12 , Provision of IT Peripherals and individually ordered software and equipment- ALB- HM Chief Inspectorate of prison
Ministry of Justice,MoJ HQ,02/11/2015,265000-IT & Telecommunications,"RD999-CJG - DGs Office, BDSU, Inspectorates & Ombudsman",ATOS IT SERVICES UK LTD,2012759,150.12 , Provision of IT Peripherals and individually ordered software and equipment- ALB- HM Chief Inspectorate of prison
Ministry of Justice,MoJ HQ,02/11/2015,265000-IT & Telecommunications,"RD999-CJG - DGs Office, BDSU, Inspectorates & Ombudsman",ATOS IT SERVICES UK LTD,2012759,82.78 , Provision of IT Peripherals and individually ordered software and equipment -ALB - HM Chief Inspectorate of Probation
Ministry of Justice,MoJ HQ,02/11/2015,265000-IT & Telecommunications,"RD999-CJG - DGs Office, BDSU, Inspectorates & Ombudsman",ATOS IT SERVICES UK LTD,2012759,82.78 , Provision of IT Peripherals and individually ordered software and equipment -ALB - HM Chief Inspectorate of Probation
Ministry of Justice,MoJ HQ,02/11/2015,265000-IT & Telecommunications,"RD999-CJG - DGs Office, BDSU, Inspectorates & Ombudsman",ATOS IT SERVICES UK LTD,2012759,82.78 , Provision of IT Peripherals and individually ordered software and equipment -ALB - HM Chief Inspectorate of Probation
Ministry of Justice,MoJ HQ,02/11/2015,265000-IT & Telecommunications,"RD999-CJG - DGs Office, BDSU, Inspectorates & Ombudsman",ATOS IT SERVICES UK LTD,2012759,82.78 , Provision of IT Peripherals and individually ordered software and equipment -ALB - HM Chief Inspectorate of Probation
Ministry of Justice,MoJ HQ,02/11/2015,265000-IT & Telecommunications,"RD999-CJG - DGs Office, BDSU, Inspectorates & Ombudsman",ATOS IT SERVICES UK LTD,2012759,78.26 , Provision of IT Peripherals and individually ordered software and equipment -ALB - HM Chief Inspectorate of Probation
